Local authority department which incurred the expenditure,Service Division,Cost Centre,Summary of the Purpose of Expenditure,Expense Type,Expense Code,Detailed Expense Type,Date of Transaction,Transaction Number,Beneficiary,Merchant Category Number,Merchant Category,Gross Amount,VAT,Net Amount
Children and Young Peoples Services,Childrens Services,85342,9 Cedar Drive Aycliffe,Supplies and Services,328041,Clothing Uniforms and Laundry,01-Nov-16,5434515299,KINGFISHER LEISUREWEAR,7296,Clothing uniforms and laundry,57,0,57
Resources,Financial Services,52865,SF-Financial Services Team,Supplies and Services,308011,Furniture,01-Nov-16,5434515301,MAGUIRE TA LTD,5713,Furniture repair and replacement,148,0,148
Regeneration and Local Services,Direct Services,21242,Catering - County Hall,Supplies and Services,324117,Provisions,01-Nov-16,5434515323,FREEMAN CATERING BUTCH,5422,Catering costs - provisions,92.19,0,92.19
Regeneration and Local Services,Direct Services,21242,Catering - County Hall,Supplies and Services,324117,Provisions,01-Nov-16,5434515325,JR HOLLAND FOODSERVICE,5422,Catering costs - provisions,31.72,0,31.72
Regeneration and Local Services,Direct Services,21242,Catering - County Hall,Supplies and Services,324117,Provisions,01-Nov-16,5434515327,JR HOLLAND FOODSERVICE,5422,Catering costs - provisions,6.58,0,6.58
Regeneration and Local Services,Direct Services,21242,Catering - County Hall,Supplies and Services,324117,Provisions,01-Nov-16,5434515329,BRAKE BROS LTD,5811,Catering costs - provisions,196.52,0,196.52
Regeneration and Local Services,Culture & Sport,54812,Gala Theatre - Catering etc,Supplies and Services,324117,Provisions,01-Nov-16,5434515331,JR HOLLAND FOODSERVICE,5422,Catering costs - provisions,41.75,0,41.75
Regeneration and Local Services,Culture & Sport,54812,Gala Theatre - Catering etc,Supplies and Services,324117,Provisions,01-Nov-16,5434515333,BRAKE BROS LTD,5811,Catering costs - provisions,155.4,25.9,129.5
Regeneration and Local Services,Culture & Sport,54812,Gala Theatre - Catering etc,Supplies and Services,324117,Provisions,01-Nov-16,5434515333 - 1,BRAKE BROS LTD,5811,Catering costs - provisions,85.11,,85.11
Regeneration and Local Services,Spatial Policy Planning Assets & Environment,31200,North Pennines Core,Supplies and Services,384999,Miscellaneous Expenses,01-Nov-16,5434515351,HOBBYCRAFT,5970,Other expenses,15,2.5,12.5
Children and Young Peoples Services,Childrens Services,85351,Framwellgate Moor CU,Supplies and Services,324117,Provisions,01-Nov-16,5434515353,ASDA HOME SHOPPING,5411,Catering costs - provisions,151.71,0,151.71
Children and Young Peoples Services,Childrens Services,85351,Framwellgate Moor CU,Supplies and Services,324117,Provisions,01-Nov-16,5434515355,ASDA HOME SHOPPING,5411,Catering costs - provisions,-1.07,0,-1.07
Regeneration and Local Services,Economic Development and Housing,30737,Durham Works Flexible Fund,Supplies and Services,384999,Miscellaneous Expenses,01-Nov-16,5434515387,GRO HM PASSPORT OFFICE,9399,Other expenses,23.4,0,23.4
Children and Young Peoples Services,Childrens Services,85957,Secure Management,Supplies and Services,328041,Clothing Uniforms and Laundry,01-Nov-16,5434515391,VERY.CO.UK,5964,Clothing uniforms and laundry,60,0,60
Children and Young Peoples Services,Childrens Services,85957,Secure Management,Supplies and Services,328041,Clothing Uniforms and Laundry,01-Nov-16,5434515393,VERY.CO.UK,5964,Clothing uniforms and laundry,3.99,0,3.99
Children and Young Peoples Services,Childrens Services,85957,Secure Management,Supplies and Services,328041,Clothing Uniforms and Laundry,01-Nov-16,5434515395,WWW.FOOTLOCKER.EU,5661,Clothing uniforms and laundry,129.99,21.67,108.32
Children and Young Peoples Services,Childrens Services,85957,Secure Management,Supplies and Services,328041,Clothing Uniforms and Laundry,01-Nov-16,5434515397,SCOTTS INTERNET,5941,Clothing uniforms and laundry,53.99,0,53.99
Regeneration and Local Services,Direct Services,10301,C&G - North Grounds Maintenance,Supplies and Services,304403,Equipment and Materials,01-Nov-16,5434515409,BESCOL,5231,Other consumables,38.71,6.45,32.26
Regeneration and Local Services,Culture & Sport,11060,Hardwick Park Catering,Supplies and Services,324117,Provisions,01-Nov-16,5434515411,FREEMAN CATERING BUTCH,5422,Catering costs - provisions,41.27,0,41.27
Regeneration and Local Services,Culture & Sport,11060,Hardwick Park Catering,Supplies and Services,324117,Provisions,01-Nov-16,5434515413,FREEMAN CATERING BUTCH,5422,Catering costs - provisions,39.24,0,39.24
Regeneration and Local Services,Culture & Sport,11060,Hardwick Park Catering,Supplies and Services,324117,Provisions,01-Nov-16,5434515415,JR HOLLAND FOODSERVICE,5422,Catering costs - provisions,110.52,0,110.52
Regeneration and Local Services,Culture & Sport,11060,Hardwick Park Catering,Supplies and Services,324117,Provisions,01-Nov-16,5434515417,JR HOLLAND FOODSERVICE,5422,Catering costs - provisions,69.95,0,69.95
Resources,I.C.T. Services,65335,Operations - System & Repairs Trading,Supplies and Services,304639,Equipment and Materials,01-Nov-16,5434515419,THE REPLACE BASE LTD,5999,Technicians-supplies,116.88,19.48,97.4
Resources,I.C.T. Services,65335,Operations - System & Repairs Trading,Supplies and Services,304639,Equipment and Materials,01-Nov-16,5434515419 - 1,THE REPLACE BASE LTD,5999,Technicians-supplies,4.78,,4.78
Regeneration and Local Services,Economic Development and Housing,30762,Organisational Training & Development,Employees,40149,Recruitment Instruction and Training,01-Nov-16,5434515423,CITB,8220,Training-all costs,30,5,25
Regeneration and Local Services,Economic Development and Housing,30762,Organisational Training & Development,Employees,40149,Recruitment Instruction and Training,01-Nov-16,5434515425,CITB,8220,Training-all costs,30,5,25
Regeneration and Local Services,Economic Development and Housing,30762,Organisational Training & Development,Employees,40149,Recruitment Instruction and Training,01-Nov-16,5434515427,CITB,8220,Training-all costs,30,5,25
Regeneration and Local Services,Direct Services,21234,Catering - Locomotion,Supplies and Services,324117,Provisions,01-Nov-16,5434515435,BRAKE BROS LTD,5811,Catering costs - provisions,278.1,46.35,231.75
Regeneration and Local Services,Direct Services,21234,Catering - Locomotion,Supplies and Services,324117,Provisions,01-Nov-16,5434515435 - 1,BRAKE BROS LTD,5811,Catering costs - provisions,52.47,,52.47
Regeneration and Local Services,Direct Services,10525,Catering - Green Lane,Supplies and Services,324117,Provisions,01-Nov-16,5434515439,FREEMAN CATERING BUTCH,5422,Catering costs - provisions,41.37,0,41.37
Regeneration and Local Services,Direct Services,10525,Catering - Green Lane,Supplies and Services,324117,Provisions,01-Nov-16,5434515441,FREEMAN CATERING BUTCH,5422,Catering costs - provisions,33.97,0,33.97
Regeneration and Local Services,Direct Services,10525,Catering - Green Lane,Supplies and Services,324117,Provisions,01-Nov-16,5434515443,BRAKE BROS LTD,5811,Catering costs - provisions,10.8,1.8,9
Regeneration and Local Services,Direct Services,10525,Catering - Green Lane,Supplies and Services,324117,Provisions,01-Nov-16,5434515443 - 1,BRAKE BROS LTD,5811,Catering costs - provisions,105.57,,105.57
Children and Young Peoples Services,Childrens Services,85957,Secure Management,Supplies and Services,304252,Equipment and Materials,01-Nov-16,5434515451,JAMES ARMSTRONG & CO L,7216,Equipment-repairsserviceinsurance,130.2,21.7,108.5
Children and Young Peoples Services,Childrens Services,85352,Tow Law CU,Supplies and Services,328041,Clothing Uniforms and Laundry,01-Nov-16,5434515455,MATALAN,5691,Clothing uniforms and laundry,29.05,4.84,24.21
Regeneration and Local Services,Direct Services,20073,Bldg Serv - R&M Div 73 - Gas Servicing,Supplies and Services,304221,Equipment and Materials,01-Nov-16,5434515479,WWW.CORGI-DIRECT.COM,5211,Direct materials,108,18,90
Resources,I.C.T. Services,69010,Administration,Supplies and Services,304259,Equipment and Materials,01-Nov-16,5434515483,DURHAM COUNTY COUNCIL,9399,Equipment-purchase and rental,12,0,12
Regeneration and Local Services,Culture & Sport,11056,AAP Funding - Sport & Leisure,Supplies and Services,304649,Equipment and Materials,01-Nov-16,5434515493,WWW.SMYTHSTOYS.COM,5945,Toys,36.98,0,36.98
Regeneration and Local Services,Direct Services,10301,C&G - North Grounds Maintenance,Supplies and Services,304259,Equipment and Materials,01-Nov-16,5434515495,HARELAW SAWMILL,5211,Equipment-purchase and rental,162.54,27.09,135.45
Regeneration and Local Services,Transport and Contracted Services,31701,Care Connect All Localities,Supplies and Services,344033,Telephones,01-Nov-16,5434515501,BT BILL PAYMENT 2,4812,Telephones general-all costs,88.47,14.75,73.72
Regeneration and Local Services,Transport and Contracted Services,31701,Care Connect All Localities,Supplies and Services,344033,Telephones,01-Nov-16,5434515503,BT BILL PAYMENT 2,4812,Telephones general-all costs,88.47,14.75,73.72
Regeneration and Local Services,Transport and Contracted Services,31701,Care Connect All Localities,Supplies and Services,344033,Telephones,01-Nov-16,5434515505,BT BILL PAYMENT 2,4812,Telephones general-all costs,109.94,18.32,91.62
Regeneration and Local Services,Transport and Contracted Services,31701,Care Connect All Localities,Supplies and Services,344033,Telephones,01-Nov-16,5434515507,BT BILL PAYMENT 2,4812,Telephones general-all costs,29.49,4.92,24.57
Regeneration and Local Services,Transport and Contracted Services,31701,Care Connect All Localities,Supplies and Services,344033,Telephones,01-Nov-16,5434515509,BT BILL PAYMENT 2,4812,Telephones general-all costs,88.47,14.75,73.72
Regeneration and Local Services,Transport and Contracted Services,31701,Care Connect All Localities,Supplies and Services,344033,Telephones,01-Nov-16,5434515511,BT BILL PAYMENT 2,4812,Telephones general-all costs,84.58,14.1,70.48
Regeneration and Local Services,Direct Services,21324,Catering - Meadowfield,Supplies and Services,324117,Provisions,01-Nov-16,5434515517,FREEMAN CATERING BUTCH,5422,Catering costs - provisions,71.6,0,71.6
Regeneration and Local Services,Direct Services,21324,Catering - Meadowfield,Supplies and Services,324117,Provisions,01-Nov-16,5434515519,FREEMAN CATERING BUTCH,5422,Catering costs - provisions,55.69,0,55.69
Regeneration and Local Services,Direct Services,21324,Catering - Meadowfield,Supplies and Services,324117,Provisions,01-Nov-16,5434515521,BRAKE BROS LTD,5811,Catering costs - provisions,80.16,0,80.16
Regeneration and Local Services,Culture & Sport,11191,Wellbeing4Life,Supplies and Services,324117,Provisions,01-Nov-16,5434515543,SAINSBURYS SACAT 0776,5411,Catering costs - provisions,38.7,0,38.7
Regeneration and Local Services,Economic Development and Housing,30737,Durham Works Flexible Fund,Supplies and Services,328041,Clothing Uniforms and Laundry,01-Nov-16,5434515547,INDUSTRIAL WORKWEAR LI,5137,Clothing uniforms and laundry,39.54,0,39.54
Children and Young Peoples Services,Childrens Services,88083,Ferryhill 0 - 5,Supplies and Services,324117,Provisions,01-Nov-16,5434515549,ASDA HOME SHOPPING,5411,Catering costs - provisions,33.5,0,33.5
Children and Young Peoples Services,Childrens Services,74000,TTF-Attachment and Results,Supplies and Services,304403,Equipment and Materials,01-Nov-16,5434515553,TESCO - Childrens Room,5999,Other consumables,27.5,0,27.5
Children and Young Peoples Services,Childrens Services,74000,TTF-Attachment and Results,Supplies and Services,304403,Equipment and Materials,01-Nov-16,5434515555,TESCO DIRECT,5999,Other consumables,115,0,115
Children and Young Peoples Services,Childrens Services,74000,TTF-Attachment and Results,Supplies and Services,304259,Equipment and Materials,01-Nov-16,5434515557,WILKO.COM,5722,Equipment-purchase and rental,143,0,143
Regeneration and Local Services,Direct Services,21235,Catering - Wharton Park,Supplies and Services,324117,Provisions,01-Nov-16,5434515565,JR HOLLAND FOODSERVICE,5422,Catering costs - provisions,23.77,0,23.77
Regeneration and Local Services,Spatial Policy Planning Assets & Environment,31217,North Pennines - Cold Blooded & Spineless,Supplies and Services,348037,Subsistence,01-Nov-16,5434515567,IZ The Golden Lion Ho,5812,Subsistence,10.2,0,10.2
Regeneration and Local Services,Culture & Sport,11060,Hardwick Park Catering,Supplies and Services,332047,Printing Stationery and Gen Off Exps,01-Nov-16,5434515569,TILLROLLSDIRECT.CO,5111,Stationery,33.3,0,33.3
Regeneration and Local Services,Culture & Sport,10605,Woodhouse Close Leisure Complex,Supplies and Services,324117,Provisions,01-Nov-16,5434515573,FREEMAN CATERING BUTCH,5422,Catering costs - provisions,43.8,0,43.8
Regeneration and Local Services,Economic Development and Housing,30712,VCD - Project Delivery,Supplies and Services,336005,Advertising,01-Nov-16,5434515575,FACEBK 8YKHRAEVC2,7311,Advertising other than for staff,457.71,0,457.71
Transformation and Partnerships,Partnerships & Community Engagement Div.,60472,Syrian Vulnerable Persons Scheme,Supplies and Services,308011,Furniture,01-Nov-16,5434515577,ASDA SUPERSTORE 4987,5411,Furniture repair and replacement,30,0,30
Regeneration and Local Services,Culture & Sport,11210,Parks & Countryside,Supplies and Services,384999,Miscellaneous Expenses,01-Nov-16,5434515583,Amazon UK Marketplace,5942,Other expenses,8.95,0,8.95
Regeneration and Local Services,Culture & Sport,11210,Parks & Countryside,Supplies and Services,384999,Miscellaneous Expenses,01-Nov-16,5434515585,Amazon UK Marketplace,5942,Other expenses,14.52,0,14.52
Resources,Legal & Democratic Services,69335,Democratic Services,Supplies and Services,348037,Subsistence,01-Nov-16,5438538603,MEDITERRANEO,5812,Subsistence,104.43,0,104.43
Regeneration and Local Services,Culture & Sport,11056,AAP Funding - Sport & Leisure,Supplies and Services,304649,Equipment and Materials,01-Nov-16,5438538927,TOYS R US,5311,Toys,17.94,0,17.94
Regeneration and Local Services,Spatial Policy Planning Assets & Environment,31200,North Pennines Core,Supplies and Services,304403,Equipment and Materials,01-Nov-16,5443000335,RJB STONE LTD - MOTO,5947,Other consumables,409.2,68.2,341
Children and Young Peoples Services,Education,71801,Selby Cottage Childcare Centre,Supplies and Services,328041,Clothing Uniforms and Laundry,02-Nov-16,5438538477,B & M RETAIL,5310,Clothing uniforms and laundry,18.94,0,18.94
Children and Young Peoples Services,Childrens Services,85957,Secure Management,Supplies and Services,304245,Equipment and Materials,02-Nov-16,5438538509,SCREWFIX DIRECT,5211,Materials,82.99,13.83,69.16
Children and Young Peoples Services,Childrens Services,85957,Secure Management,Supplies and Services,384999,Miscellaneous Expenses,02-Nov-16,5438538513,ARGOS RETAIL GROUP,5310,Other expenses,33.94,0,33.94
Regeneration and Local Services,Economic Development and Housing,30699,Business Growth and Innovation General,Supplies and Services,304403,Equipment and Materials,02-Nov-16,5438538529,ADOBE CREATIVE CLOUD,5734,Other consumables,45.73,7.62,38.11
Regeneration and Local Services,Economic Development and Housing,30699,Business Growth and Innovation General,Supplies and Services,312011,Newspapers Books and Periodicals,02-Nov-16,5438538531,FASTHOSTS INTERNET,4816,Books-school library,59.99,10,49.99
Regeneration and Local Services,Direct Services,21242,Catering - County Hall,Supplies and Services,324117,Provisions,02-Nov-16,5438538565,JR HOLLAND FOODSERVICE,5422,Catering costs - provisions,179.57,0,179.57
Regeneration and Local Services,Direct Services,21242,Catering - County Hall,Supplies and Services,324117,Provisions,02-Nov-16,5438538569,JR HOLLAND FOODSERVICE,5422,Catering costs - provisions,51.24,0,51.24
Regeneration and Local Services,Direct Services,21242,Catering - County Hall,Supplies and Services,324117,Provisions,02-Nov-16,5438538571,JR HOLLAND FOODSERVICE,5422,Catering costs - provisions,31.35,0,31.35
Regeneration and Local Services,Direct Services,21242,Catering - County Hall,Supplies and Services,324117,Provisions,02-Nov-16,5438538575,JR HOLLAND FOODSERVICE,5422,Catering costs - provisions,14.71,0,14.71
Regeneration and Local Services,Direct Services,21242,Catering - County Hall,Supplies and Services,324117,Provisions,02-Nov-16,5438538577,JR HOLLAND FOODSERVICE,5422,Catering costs - provisions,3.72,0,3.72
Resources,I.C.T. Services,70704,ICT School Services - DLG,Supplies and Services,372009,Subscriptions,02-Nov-16,5438538581,WEB NETWORKSOLUTIONS,5968,Subscriptions,25.38,0,25.38
Regeneration and Local Services,Culture & Sport,11219,Office Services,Supplies and Services,304999,Equipment and Materials,02-Nov-16,5438538597,GOOGLE ADWS2420292471,5968,Misc equipment tools and materials,14.94,0,14.94
Regeneration and Local Services,Culture & Sport,11219,Office Services,Third Party Payments,430100,Rendered by Private Contractors,02-Nov-16,5438538601,MAILCHIMP,7399,Payments to sub-contractors,41.38,0,41.38
Children and Young Peoples Services,Education,71732,Dean Bank Childcare,Supplies and Services,312011,Newspapers Books and Periodicals,02-Nov-16,5438538609,Amazon UK Marketplace,5942,Books-school library,2.49,0,2.49
Children and Young Peoples Services,Education,71732,Dean Bank Childcare,Supplies and Services,312011,Newspapers Books and Periodicals,02-Nov-16,5438538611,Amazon UK Marketplace,5942,Books-school library,1.95,0,1.95
Children and Young Peoples Services,Education,71732,Dean Bank Childcare,Supplies and Services,312011,Newspapers Books and Periodicals,02-Nov-16,5438538615,THE BOOK PEOPLE,5942,Books-school library,23,0,23
Children and Young Peoples Services,Education,71732,Dean Bank Childcare,Supplies and Services,312011,Newspapers Books and Periodicals,02-Nov-16,5438538617,THE BOOK PEOPLE,5942,Books-school library,18,0,18
Children and Young Peoples Services,Education,71732,Dean Bank Childcare,Supplies and Services,312011,Newspapers Books and Periodicals,02-Nov-16,5438538621,Amazon UK Marketplace,5942,Books-school library,3.2,0,3.2
Children and Young Peoples Services,Education,71732,Dean Bank Childcare,Supplies and Services,328041,Clothing Uniforms and Laundry,02-Nov-16,5438538625,B&M RETAIL LTD,5310,Clothing uniforms and laundry,19.99,0,19.99
Children and Young Peoples Services,Childrens Services,85332,Middlestone Moor CU,Supplies and Services,324117,Provisions,02-Nov-16,5438538635,TESCO STORES 2371,5411,Catering costs - provisions,82.41,0,82.41
Regeneration and Local Services,Economic Development and Housing,30737,Durham Works Flexible Fund,Supplies and Services,328041,Clothing Uniforms and Laundry,02-Nov-16,5438538671,PEACOCK STORES LTD,5331,Clothing uniforms and laundry,16.05,0,16.05
Children and Young Peoples Services,Childrens Services,85957,Secure Management,Supplies and Services,328041,Clothing Uniforms and Laundry,02-Nov-16,5438538689,PRETTYLITTLETHING.COM,5631,Clothing uniforms and laundry,48.99,0,48.99
Children and Young Peoples Services,Childrens Services,85957,Secure Management,Supplies and Services,324117,Provisions,02-Nov-16,5438538691,TESCO STORES 6329,5411,Catering costs - provisions,65.05,0,65.05
Children and Young Peoples Services,Childrens Services,85957,Secure Management,Supplies and Services,328041,Clothing Uniforms and Laundry,02-Nov-16,5438538695,VERY.CO.UK,5964,Clothing uniforms and laundry,28,0,28
Children and Young Peoples Services,Childrens Services,85957,Secure Management,Supplies and Services,328041,Clothing Uniforms and Laundry,02-Nov-16,5438538697,VERY.CO.UK,5964,Clothing uniforms and laundry,16.99,0,16.99
Children and Young Peoples Services,Childrens Services,85957,Secure Management,Supplies and Services,328041,Clothing Uniforms and Laundry,02-Nov-16,5438538701,VERY.CO.UK,5964,Clothing uniforms and laundry,16,0,16
Children and Young Peoples Services,Childrens Services,85957,Secure Management,Supplies and Services,328041,Clothing Uniforms and Laundry,02-Nov-16,5438538705,VERY.CO.UK,5964,Clothing uniforms and laundry,3.99,0,3.99
Children and Young Peoples Services,Childrens Services,85957,Secure Management,Supplies and Services,328041,Clothing Uniforms and Laundry,02-Nov-16,5438538707,VERY.CO.UK,5964,Clothing uniforms and laundry,3.99,0,3.99
Regeneration and Local Services,Culture & Sport,11060,Hardwick Park Catering,Supplies and Services,324117,Provisions,02-Nov-16,5438538727,JR HOLLAND FOODSERVICE,5422,Catering costs - provisions,15.4,0,15.4
Regeneration and Local Services,Culture & Sport,11060,Hardwick Park Catering,Supplies and Services,324117,Provisions,02-Nov-16,5438538729,BRAKE BROS LTD,5811,Catering costs - provisions,119.34,19.89,99.45
Regeneration and Local Services,Culture & Sport,11060,Hardwick Park Catering,Supplies and Services,324117,Provisions,02-Nov-16,5438538729 - 1,BRAKE BROS LTD,5811,Catering costs - provisions,134.23,,134.23
Resources,I.C.T. Services,65335,Operations - System & Repairs Trading,Supplies and Services,304639,Equipment and Materials,02-Nov-16,5438538735,THE REPLACE BASE LTD,5999,Technicians-supplies,149.76,24.96,124.8
Resources,I.C.T. Services,65335,Operations - System & Repairs Trading,Supplies and Services,304639,Equipment and Materials,02-Nov-16,5438538735 - 1,THE REPLACE BASE LTD,5999,Technicians-supplies,4.8,,4.8
Regeneration and Local Services,Economic Development and Housing,30762,Organisational Training & Development,Employees,40149,Recruitment Instruction and Training,02-Nov-16,5438538739,CITB,8220,Training-all costs,30,5,25
Regeneration and Local Services,Economic Development and Housing,30762,Organisational Training & Development,Employees,40149,Recruitment Instruction and Training,02-Nov-16,5438538743,CITB,8220,Training-all costs,30,5,25
Regeneration and Local Services,Direct Services,21234,Catering - Locomotion,Supplies and Services,324117,Provisions,02-Nov-16,5438538745,BRAKE BROS LTD,5811,Catering costs - provisions,24.6,4.1,20.5
Regeneration and Local Services,Direct Services,21234,Catering - Locomotion,Supplies and Services,324117,Provisions,02-Nov-16,5438538745 - 1,BRAKE BROS LTD,5811,Catering costs - provisions,147.68,,147.68
Regeneration and Local Services,Direct Services,10525,Catering - Green Lane,Supplies and Services,324117,Provisions,02-Nov-16,5438538757,JR HOLLAND FOODSERVICE,5422,Catering costs - provisions,45.14,0,45.14
Regeneration and Local Services,Direct Services,10525,Catering - Green Lane,Supplies and Services,324117,Provisions,02-Nov-16,5438538761,BRAKE BROS LTD,5811,Catering costs - provisions,20.89,0,20.89
Children and Young Peoples Services,Childrens Services,85352,Tow Law CU,Supplies and Services,324117,Provisions,02-Nov-16,5438538799,TESCO STORES 2371,5411,Catering costs - provisions,263.64,0,263.64
Children and Young Peoples Services,Childrens Services,88063,Bishop Auckland 0 - 5,Supplies and Services,324117,Provisions,02-Nov-16,5438538815,SAINSBURYS LOC4623,5411,Catering costs - provisions,12.75,0,12.75
Children and Young Peoples Services,Childrens Services,85332,Middlestone Moor CU,Supplies and Services,304259,Equipment and Materials,02-Nov-16,5438538821,B & Q 1120,5211,Equipment-purchase and rental,181.41,30.24,151.17
Regeneration and Local Services,Economic Development and Housing,30749,Employability - Youth Contract,Transport,235057,Public Transport,02-Nov-16,5438538849,GO NORTH EAST - V/T,4131,Staff travelling,24.4,0,24.4
Regeneration and Local Services,Economic Development and Housing,30749,Employability - Youth Contract,Transport,235005,Public Transport,02-Nov-16,5438538851,ARRIVA PASSENGER S,7538,Contract tickets,7.8,0,7.8
Regeneration and Local Services,Economic Development and Housing,30749,Employability - Youth Contract,Transport,235005,Public Transport,02-Nov-16,5438538853,ARRIVA PASSENGER S,7538,Contract tickets,14,0,14
Children and Young Peoples Services,Childrens Services,85333,Coxhoe Satelite Home,Supplies and Services,324117,Provisions,02-Nov-16,5438538867,CO-OP GROUP 310016,5411,Catering costs - provisions,15.26,0,15.26
Children and Young Peoples Services,Childrens Services,71616,Seaham Childrens Centre,Supplies and Services,312011,Newspapers Books and Periodicals,02-Nov-16,5438538885,HOME BARGAINS,5251,Books-school library,0.99,0.17,0.82
Children and Young Peoples Services,Childrens Services,71616,Seaham Childrens Centre,Supplies and Services,304259,Equipment and Materials,02-Nov-16,5438538887,WILKO RETAIL LIMIT,5722,Equipment-purchase and rental,6.75,0,6.75
Children and Young Peoples Services,Childrens Services,71616,Seaham Childrens Centre,Supplies and Services,304259,Equipment and Materials,02-Nov-16,5438538889,WILKO RETAIL LIMIT,5722,Equipment-purchase and rental,6.25,0,6.25
Resources,I.C.T. Services,69010,Administration,Supplies and Services,304259,Equipment and Materials,02-Nov-16,5438538901,DARLINGTON BC INTERNET,9399,Equipment-purchase and rental,12,0,12
Regeneration and Local Services,Culture & Sport,54399,Local Delivery-Libraries,Supplies and Services,312009,Newspapers Books and Periodicals,02-Nov-16,5438538923,Amazon EU,5969,Newspapers books and periodicals,7.99,0,7.99
Children and Young Peoples Services,Childrens Services,88003,Peterlee 0 - 5,Supplies and Services,304259,Equipment and Materials,02-Nov-16,5438538949,HARTLEPOOL BC CNP,9399,Equipment-purchase and rental,22.4,0,22.4
Regeneration and Local Services,Culture & Sport,54235,Bp Auckland Town Hall Cafe,Supplies and Services,324117,Provisions,02-Nov-16,5438538951,JR HOLLAND FOODSERVICE,5422,Catering costs - provisions,25.24,0,25.24
Regeneration and Local Services,Direct Services,21324,Catering - Meadowfield,Supplies and Services,324117,Provisions,02-Nov-16,5438538957,JR HOLLAND FOODSERVICE,5422,Catering costs - provisions,47.55,0,47.55
Regeneration and Local Services,Direct Services,21324,Catering - Meadowfield,Supplies and Services,324117,Provisions,02-Nov-16,5438538961,BRAKE BROS LTD,5811,Catering costs - provisions,38.22,6.37,31.85
Regeneration and Local Services,Direct Services,21324,Catering - Meadowfield,Supplies and Services,324117,Provisions,02-Nov-16,5438538961 - 1,BRAKE BROS LTD,5811,Catering costs - provisions,79.24,,79.24
Children and Young Peoples Services,Childrens Services,85333,Coxhoe Satelite Home,Supplies and Services,304259,Equipment and Materials,02-Nov-16,5438538969,B & Q 1006,5211,Equipment-purchase and rental,21,0,21
Regeneration and Local Services,Economic Development and Housing,30737,Durham Works Flexible Fund,Transport,235057,Public Transport,02-Nov-16,5438539015,WWW.SIMPLYGO.COM,4131,Staff travelling,66.24,0,66.24
Children and Young Peoples Services,Childrens Services,74000,TTF-Attachment and Results,Supplies and Services,308011,Furniture,02-Nov-16,5438539027,EDS BEDS LTD,5712,Furniture repair and replacement,134,0,134
Children and Young Peoples Services,Childrens Services,71404,Laurel Avenue Childrens Centre,Supplies and Services,324117,Provisions,02-Nov-16,5438539035,ASDA 4387,5411,Catering costs - provisions,101.5,0,101.5
Children and Young Peoples Services,Childrens Services,71404,Laurel Avenue Childrens Centre,Supplies and Services,324117,Provisions,02-Nov-16,5438539037,TESCO STORES 2371,5411,Catering costs - provisions,8.65,0,8.65
Regeneration and Local Services,Culture & Sport,10605,Woodhouse Close Leisure Complex,Supplies and Services,324117,Provisions,02-Nov-16,5438539057,JR HOLLAND FOODSERVICE,5422,Catering costs - provisions,20.16,0,20.16
Regeneration and Local Services,Culture & Sport,10605,Woodhouse Close Leisure Complex,Supplies and Services,324117,Provisions,02-Nov-16,5438539061,JR HOLLAND FOODSERVICE,5422,Catering costs - provisions,2.38,0,2.38
Children and Young Peoples Services,Childrens Services,88033,Durham 0 - 5,Supplies and Services,324117,Provisions,02-Nov-16,5438539069,ASDA STORES LTD 4313,5411,Catering costs - provisions,24.05,0,24.05
Transformation and Partnerships,Partnerships & Community Engagement Div.,60472,Syrian Vulnerable Persons Scheme,Supplies and Services,308011,Furniture,02-Nov-16,5438539073,ARGOS LTD,5310,Furniture repair and replacement,16.99,2.83,14.16
Regeneration and Local Services,Spatial Policy Planning Assets & Environment,31200,North Pennines Core,Supplies and Services,340001,Postages,02-Nov-16,5438539085,THE POST OFFICE,9402,Postages,24.54,0,24.54
Children and Young Peoples Services,Childrens Services,85957,Secure Management,Supplies and Services,328041,Clothing Uniforms and Laundry,02-Nov-16,5443000013,NEW LOOK INTERNET,5621,Clothing uniforms and laundry,29.97,0,29.97
Children and Young Peoples Services,Childrens Services,85956,Lumley,Supplies and Services,304403,Equipment and Materials,02-Nov-16,5443000017,AMAZON UK RETAIL AMAZO,5999,Other consumables,14.82,0,14.82
Regeneration and Local Services,Culture & Sport,54399,Local Delivery-Libraries,Supplies and Services,312009,Newspapers Books and Periodicals,02-Nov-16,5443000223,AMAZON UK RETAIL AMAZO,5999,Newspapers books and periodicals,6.02,0,6.02
Regeneration and Local Services,Culture & Sport,54399,Local Delivery-Libraries,Supplies and Services,312009,Newspapers Books and Periodicals,02-Nov-16,5443000227,AMAZON UK RETAIL AMAZO,5999,Newspapers books and periodicals,6.46,0,6.46
Resources,I.C.T. Services,70704,ICT School Services - DLG,Supplies and Services,372009,Subscriptions,03-Nov-16,5438538585,WEB NETWORKSOLUTIONS,5968,Subscriptions,0.7,0,0.7
Resources,Legal & Democratic Services,69335,Democratic Services,Supplies and Services,348037,Subsistence,03-Nov-16,5438538607,MEDITERRANEO,5812,Subsistence,2.87,0,2.87
Children and Young Peoples Services,Education,71732,Dean Bank Childcare,Supplies and Services,312011,Newspapers Books and Periodicals,03-Nov-16,5438538623,Amazon UK Marketplace,5942,Books-school library,8.07,0,8.07
Children and Young Peoples Services,Education,71801,Selby Cottage Childcare Centre,Supplies and Services,324117,Provisions,03-Nov-16,5442999783,TESCO STORES 2278,5411,Catering costs - provisions,45.65,0,45.65
Regeneration and Local Services,Economic Development and Housing,30699,Business Growth and Innovation General,Supplies and Services,336005,Advertising,03-Nov-16,5442999825,ADROLL,7311,Advertising other than for staff,1.95,0.33,1.62
Regeneration and Local Services,Economic Development and Housing,30699,Business Growth and Innovation General,Transport,235057,Public Transport,03-Nov-16,5442999829,MANCHESTER VICTORIA ST,4112,Staff travelling,6.1,0,6.1
Regeneration and Local Services,Economic Development and Housing,30699,Business Growth and Innovation General,Supplies and Services,352001,Conference Expenses,03-Nov-16,5442999831,JURYS MANCHESTER I,7011,Conferencesseminars fees etc,278,46.33,231.67
Adult and Health Services,Head of Adults,52760,OP Management,Income,720130,Fees and Charges,03-Nov-16,5442999839,WWW.MONEYCLAIM.GOV,9399,Fees-legal,60,0,60
Resources,Financial Services,65180,Collections,Income,720130,Fees and Charges,03-Nov-16,5442999843,WWW.MONEYCLAIM.GOV,9399,Fees-legal,185,0,185
Adult and Health Services,EnvironmentHealth & Consumer Protection,10934,Works in Default Holding Code,Income,720130,Fees and Charges,03-Nov-16,5442999847,WWW.MONEYCLAIM.GOV,9399,Fees-legal,35,0,35
Regeneration and Local Services,Direct Services,21242,Catering - County Hall,Supplies and Services,324117,Provisions,03-Nov-16,5442999881,JR HOLLAND FOODSERVICE,5422,Catering costs - provisions,57.49,0,57.49
Regeneration and Local Services,Direct Services,21242,Catering - County Hall,Supplies and Services,324117,Provisions,03-Nov-16,5442999885,JR HOLLAND FOODSERVICE,5422,Catering costs - provisions,13.16,0,13.16
Regeneration and Local Services,Direct Services,21242,Catering - County Hall,Supplies and Services,324117,Provisions,03-Nov-16,5442999887,JR HOLLAND FOODSERVICE,5422,Catering costs - provisions,8.55,0,8.55
Regeneration and Local Services,Direct Services,21242,Catering - County Hall,Supplies and Services,324117,Provisions,03-Nov-16,5442999889,BRAKE BROS LTD,5811,Catering costs - provisions,214.48,0,214.48
Resources,I.C.T. Services,70704,ICT School Services - DLG,Supplies and Services,372009,Subscriptions,03-Nov-16,5442999895,WEB NETWORKSOLUTIONS,5968,Subscriptions,164.55,0,164.55
Regeneration and Local Services,Culture & Sport,54812,Gala Theatre - Catering etc,Supplies and Services,324117,Provisions,03-Nov-16,5442999903,JR HOLLAND FOODSERVICE,5422,Catering costs - provisions,51.4,0,51.4
Regeneration and Local Services,Culture & Sport,54812,Gala Theatre - Catering etc,Supplies and Services,324117,Provisions,03-Nov-16,5442999909,BRAKE BROS LTD,5811,Catering costs - provisions,-17.39,0,-17.39
Regeneration and Local Services,Direct Services,21242,Catering - County Hall,Supplies and Services,324117,Provisions,03-Nov-16,5442999935,SAINSBURYS LOC4634,5411,Catering costs - provisions,5.61,0,5.61
Regeneration and Local Services,Culture & Sport,11219,Office Services,Supplies and Services,336005,Advertising,03-Nov-16,5442999937,BANDSINTOWN LLC,7311,Advertising other than for staff,51.11,0,51.11
Children and Young Peoples Services,Education,71732,Dean Bank Childcare,Supplies and Services,312011,Newspapers Books and Periodicals,03-Nov-16,5442999969,Amazon UK Marketplace,5942,Books-school library,3.18,0,3.18
Children and Young Peoples Services,Education,71732,Dean Bank Childcare,Supplies and Services,312011,Newspapers Books and Periodicals,03-Nov-16,5442999971,Amazon UK Marketplace,5942,Books-school library,1.9,0,1.9
Children and Young Peoples Services,Education,71732,Dean Bank Childcare,Supplies and Services,312011,Newspapers Books and Periodicals,03-Nov-16,5442999975,Amazon UK Marketplace,5942,Books-school library,1.75,0,1.75
Children and Young Peoples Services,Education,71732,Dean Bank Childcare,Supplies and Services,312011,Newspapers Books and Periodicals,03-Nov-16,5442999977,Amazon UK Marketplace,5942,Books-school library,1.99,0,1.99
Children and Young Peoples Services,Education,71732,Dean Bank Childcare,Supplies and Services,312011,Newspapers Books and Periodicals,03-Nov-16,5442999981,Amazon UK Marketplace,5942,Books-school library,3.25,0,3.25
Children and Young Peoples Services,Education,71732,Dean Bank Childcare,Supplies and Services,324117,Provisions,03-Nov-16,5442999985,ASDA HOME SHOPPING,5411,Catering costs - provisions,5,0,5
Regeneration and Local Services,Direct Services,10301,C&G - North Grounds Maintenance,Supplies and Services,304259,Equipment and Materials,03-Nov-16,5442999999,HARELAW SAWMILL,5211,Equipment-purchase and rental,500,0,500
Children and Young Peoples Services,Childrens Services,85957,Secure Management,Supplies and Services,324117,Provisions,03-Nov-16,5443000015,TESCO STORES 6329,5411,Catering costs - provisions,125.44,0,125.44
Regeneration and Local Services,Culture & Sport,11060,Hardwick Park Catering,Supplies and Services,324117,Provisions,03-Nov-16,5443000033,JR HOLLAND FOODSERVICE,5422,Catering costs - provisions,30.42,0,30.42
Regeneration and Local Services,Culture & Sport,11060,Hardwick Park Catering,Supplies and Services,324117,Provisions,03-Nov-16,5443000035,BRAKE BROS LTD,5811,Catering costs - provisions,28.86,4.81,24.05
Regeneration and Local Services,Culture & Sport,11060,Hardwick Park Catering,Supplies and Services,324117,Provisions,03-Nov-16,5443000035 - 1,BRAKE BROS LTD,5811,Catering costs - provisions,91.33,,91.33
Resources,I.C.T. Services,65335,Operations - System & Repairs Trading,Supplies and Services,304639,Equipment and Materials,03-Nov-16,5443000049,Amazon UK Marketplace,5942,Technicians-supplies,21.05,0,21.05
Regeneration and Local Services,Economic Development and Housing,31576,B& B - Temp Accom,Supplies and Services,364320,Grants to Voluntary Organisations,03-Nov-16,5443000063,TRAVELODGE,3615,Accommodation assistance,330,55,275
Regeneration and Local Services,Direct Services,10525,Catering - Green Lane,Supplies and Services,324117,Provisions,03-Nov-16,5443000071,BRAKE BROS LTD,5811,Catering costs - provisions,-20.89,0,-20.89
Children and Young Peoples Services,Childrens Services,85352,Tow Law CU,Supplies and Services,308011,Furniture,03-Nov-16,5443000089,IKEA SACAT,5719,Furniture repair and replacement,330,55,275
Children and Young Peoples Services,Childrens Services,88063,Bishop Auckland 0 - 5,Supplies and Services,324117,Provisions,03-Nov-16,5443000103,SAINSBURYS SACAT 2199,5411,Catering costs - provisions,8.12,0,8.12
Regeneration and Local Services,Direct Services,20041,Bldg Serv - Business Development - General,Transport,235057,Public Transport,03-Nov-16,5443000139,METROLINK TVM,4131,Staff travelling,2.8,0,2.8
Resources,Resources Management,69000,Resources Management,Supplies and Services,324117,Provisions,03-Nov-16,5443000153,CO-OP GROUP 010830,5411,Catering costs - provisions,2,0,2
Children and Young Peoples Services,Childrens Services,88043,Consett 0 - 5,Supplies and Services,328041,Clothing Uniforms and Laundry,03-Nov-16,5443000161,W BOYES & CO LTD CONSE,5310,Clothing uniforms and laundry,12.51,2.09,10.42
Children and Young Peoples Services,Childrens Services,88043,Consett 0 - 5,Supplies and Services,328041,Clothing Uniforms and Laundry,03-Nov-16,5443000163,ARGOS RETAIL GROUP,5310,Clothing uniforms and laundry,228.94,0,228.94
Resources,I.C.T. Services,69010,Administration,Supplies and Services,312011,Newspapers Books and Periodicals,03-Nov-16,5443000175,Amazon UK Marketplace,5942,Books-school library,44.95,0,44.95
Resources,I.C.T. Services,69010,Administration,Employees,40149,Recruitment Instruction and Training,03-Nov-16,5443000179,RICS,8699,Training-all costs,36,6,30
Resources,I.C.T. Services,69010,Administration,Employees,40149,Recruitment Instruction and Training,03-Nov-16,5443000183,RICS,8699,Training-all costs,36,6,30
Resources,I.C.T. Services,69010,Administration,Supplies and Services,352001,Conference Expenses,03-Nov-16,5443000187,JURYS MANCHESTER I,7011,Conferencesseminars fees etc,198,0,198
Resources,I.C.T. Services,69010,Administration,Supplies and Services,304259,Equipment and Materials,03-Nov-16,5443000191,WWW.ICO.GOV.UK,9399,Equipment-purchase and rental,35,0,35
Regeneration and Local Services,Culture & Sport,54399,Local Delivery-Libraries,Supplies and Services,312009,Newspapers Books and Periodicals,03-Nov-16,5443000221,AMAZON UK RETAIL AMAZO,5999,Newspapers books and periodicals,8.99,0,8.99
Children and Young Peoples Services,Childrens Services,88073,Barnard Castle 0 - 5,Supplies and Services,312011,Newspapers Books and Periodicals,03-Nov-16,5443000253,Amazon UK Marketplace,5942,Books-school library,59.52,0,59.52
Children and Young Peoples Services,Childrens Services,88073,Barnard Castle 0 - 5,Supplies and Services,312011,Newspapers Books and Periodicals,03-Nov-16,5443000257,Amazon UK Marketplace,5942,Books-school library,20.95,0,20.95
Children and Young Peoples Services,Childrens Services,74000,TTF-Attachment and Results,Supplies and Services,308011,Furniture,03-Nov-16,5443000299,J DODDS CARPETS LTD,5713,Furniture repair and replacement,150,0,150
Children and Young Peoples Services,Childrens Services,74000,TTF-Attachment and Results,Supplies and Services,324117,Provisions,03-Nov-16,5443000301,ASDA 4387,5411,Catering costs - provisions,144.95,0,144.95
Regeneration and Local Services,Culture & Sport,26591,Hardwick Park,Supplies and Services,384999,Miscellaneous Expenses,03-Nov-16,5443000305,"Amazon Svcs Europe,SAR",5942,Other expenses,33.37,0,33.37
Regeneration and Local Services,Culture & Sport,10605,Woodhouse Close Leisure Complex,Supplies and Services,324117,Provisions,03-Nov-16,5443000309,BRAKE BROS LTD,5811,Catering costs - provisions,50.04,8.34,41.7
Regeneration and Local Services,Culture & Sport,10605,Woodhouse Close Leisure Complex,Supplies and Services,324117,Provisions,03-Nov-16,5443000309 - 1,BRAKE BROS LTD,5811,Catering costs - provisions,131.89,,131.89
Regeneration and Local Services,Culture & Sport,11210,Parks & Countryside,Supplies and Services,384999,Miscellaneous Expenses,03-Nov-16,5443000339,Amazon UK Marketplace,5942,Other expenses,7.26,0,7.26
Regeneration and Local Services,Direct Services,20041,Bldg Serv - Business Development - General,Transport,235057,Public Transport,03-Nov-16,5448368519,ECML DURHAM PARKING,7523,Staff travelling,12,0,12
Regeneration and Local Services,Economic Development and Housing,30737,Durham Works Flexible Fund,Supplies and Services,328041,Clothing Uniforms and Laundry,03-Nov-16,5448368745,NEW LOOK INTERNET,5621,Clothing uniforms and laundry,70.96,11.83,59.13
Regeneration and Local Services,Economic Development and Housing,30737,Durham Works Flexible Fund,Supplies and Services,328041,Clothing Uniforms and Laundry,03-Nov-16,5448368749,RIVER ISLAND 400,5691,Clothing uniforms and laundry,38.95,6.49,32.46
Regeneration and Local Services,Economic Development and Housing,30554,International Relations,Transport,235057,Public Transport,03-Nov-16,5448368829,BRITTANY FERRIES,4111,Staff travelling,120.5,0,120.5
Regeneration and Local Services,Economic Development and Housing,30699,Business Growth and Innovation General,Supplies and Services,336005,Advertising,04-Nov-16,5442999833,ADROLL,7311,Advertising other than for staff,0.05,0,0.05
Resources,I.C.T. Services,70704,ICT School Services - DLG,Supplies and Services,372009,Subscriptions,04-Nov-16,5442999899,WEB NETWORKSOLUTIONS,5968,Subscriptions,4.53,0,4.53
Resources,I.C.T. Services,70204,Operations - System & Repairs Team,Supplies and Services,304639,Equipment and Materials,04-Nov-16,5443000055,Amazon UK Marketplace,5942,Technicians-supplies,5.18,0,5.18
Resources,I.C.T. Services,69010,Administration,Supplies and Services,312011,Newspapers Books and Periodicals,04-Nov-16,5443000185,Amazon UK Marketplace,5942,Books-school library,13.44,0,13.44
Children and Young Peoples Services,Childrens Services,71449,Ferryhill One Point Hub,Supplies and Services,312011,Newspapers Books and Periodicals,04-Nov-16,5448368137,HOME BARGAINS SPENNYMO,5251,Books-school library,16.66,0,16.66
Regeneration and Local Services,Economic Development and Housing,30699,Business Growth and Innovation General,Supplies and Services,304403,Equipment and Materials,04-Nov-16,5448368153,MEETEDGAR.COM STARTER,5734,Other consumables,39.19,0,39.19
Adult and Health Services,Head of Adults,52760,OP Management,Income,720130,Fees and Charges,04-Nov-16,5448368163,WWW.MONEYCLAIM.GOV,9399,Fees-legal,77,0,77
Regeneration and Local Services,Direct Services,10367,C&G - South Grounds Maintenance,Supplies and Services,304259,Equipment and Materials,04-Nov-16,5448368189,SCREWFIX,5211,Equipment-purchase and rental,123.66,20.61,103.05
Regeneration and Local Services,Direct Services,10367,C&G - South Grounds Maintenance,Supplies and Services,304259,Equipment and Materials,04-Nov-16,5448368189 - 1,SCREWFIX,5211,Equipment-purchase and rental,0.25,,0.25
Regeneration and Local Services,Direct Services,21242,Catering - County Hall,Supplies and Services,324117,Provisions,04-Nov-16,5448368221,JR HOLLAND FOODSERVICE,5422,Catering costs - provisions,107.86,0,107.86
Regeneration and Local Services,Direct Services,21242,Catering - County Hall,Supplies and Services,324117,Provisions,04-Nov-16,5448368225,JR HOLLAND FOODSERVICE,5422,Catering costs - provisions,13.16,0,13.16
Regeneration and Local Services,Direct Services,21242,Catering - County Hall,Supplies and Services,324117,Provisions,04-Nov-16,5448368227,BRAKE BROS LTD,5811,Catering costs - provisions,148.56,24.76,123.8
Regeneration and Local Services,Direct Services,21242,Catering - County Hall,Supplies and Services,324117,Provisions,04-Nov-16,5448368227 - 1,BRAKE BROS LTD,5811,Catering costs - provisions,184.14,,184.14
Resources,Legal & Democratic Services,69335,Democratic Services,Supplies and Services,348037,Subsistence,04-Nov-16,5448368291,THE BARN,5812,Subsistence,118.65,0,118.65
Regeneration and Local Services,Economic Development and Housing,30737,Durham Works Flexible Fund,Transport,235005,Public Transport,04-Nov-16,5448368331,ARRIVA PASSENGER S,7538,Contract tickets,25,0,25
Regeneration and Local Services,Economic Development and Housing,30737,Durham Works Flexible Fund,Transport,235005,Public Transport,04-Nov-16,5448368335,ARRIVA PASSENGER S,7538,Contract tickets,14,0,14
Children and Young Peoples Services,Childrens Services,88023,Chester Le Street 0 - 5,Supplies and Services,324117,Provisions,04-Nov-16,5448368361,TESCO STORES 2278,5411,Catering costs - provisions,17.2,0,17.2
Children and Young Peoples Services,Childrens Services,85957,Secure Management,Supplies and Services,324117,Provisions,04-Nov-16,5448368379,TESCO STORES 6329,5411,Catering costs - provisions,88.44,0,88.44
Children and Young Peoples Services,Childrens Services,85957,Secure Management,Supplies and Services,328041,Clothing Uniforms and Laundry,04-Nov-16,5448368381,VERY.CO.UK,5964,Clothing uniforms and laundry,50,0,50
Children and Young Peoples Services,Childrens Services,85957,Secure Management,Supplies and Services,328041,Clothing Uniforms and Laundry,04-Nov-16,5448368383,VERY.CO.UK,5964,Clothing uniforms and laundry,3.99,0,3.99
Regeneration and Local Services,Culture & Sport,11060,Hardwick Park Catering,Supplies and Services,324117,Provisions,04-Nov-16,5448368401,JR HOLLAND FOODSERVICE,5422,Catering costs - provisions,47.46,0,47.46
Regeneration and Local Services,Culture & Sport,11060,Hardwick Park Catering,Supplies and Services,324117,Provisions,04-Nov-16,5448368405,BRAKE BROS LTD,5811,Catering costs - provisions,135.6,22.6,113
Regeneration and Local Services,Culture & Sport,11060,Hardwick Park Catering,Supplies and Services,324117,Provisions,04-Nov-16,5448368405 - 1,BRAKE BROS LTD,5811,Catering costs - provisions,164.26,,164.26
Resources,I.C.T. Services,65335,Operations - System & Repairs Trading,Supplies and Services,304639,Equipment and Materials,04-Nov-16,5448368427,Amazon UK Marketplace,5942,Technicians-supplies,17.98,0,17.98
Resources,I.C.T. Services,65335,Operations - System & Repairs Trading,Supplies and Services,304639,Equipment and Materials,04-Nov-16,5448368431,Amazon UK Marketplace,5942,Technicians-supplies,17.98,0,17.98
Regeneration and Local Services,Culture & Sport,54819,Gala Theatre - Theatre,Supplies and Services,304259,Equipment and Materials,04-Nov-16,5448368445,PAYPAL WOW CAMPING,5941,Equipment-purchase and rental,89.85,0,89.85
Regeneration and Local Services,Direct Services,10525,Catering - Green Lane,Supplies and Services,324117,Provisions,04-Nov-16,5448368473,JR HOLLAND FOODSERVICE,5422,Catering costs - provisions,47.21,0,47.21
Regeneration and Local Services,Direct Services,10525,Catering - Green Lane,Supplies and Services,324117,Provisions,04-Nov-16,5448368477,JR HOLLAND FOODSERVICE,5422,Catering costs - provisions,0.75,0,0.75
Children and Young Peoples Services,Childrens Services,74000,TTF-Attachment and Results,Supplies and Services,304403,Equipment and Materials,04-Nov-16,5448368497,TESCO - Seller_IST_1_2,5999,Other consumables,142.5,0,142.5
Resources,I.C.T. Services,69010,Administration,Supplies and Services,304999,Equipment and Materials,04-Nov-16,5448368533,COUNTRY BASKETS,5193,Misc equipment tools and materials,587.41,97.9,489.51
Resources,I.C.T. Services,69010,Administration,Supplies and Services,304259,Equipment and Materials,04-Nov-16,5448368535,DURHAM COUNTY COUNCIL,9399,Equipment-purchase and rental,12,0,12
Resources,I.C.T. Services,69010,Administration,Supplies and Services,352001,Conference Expenses,04-Nov-16,5448368539,JURYS MANCHESTER I,7011,Conferencesseminars fees etc,198,0,198
Resources,I.C.T. Services,69010,Administration,Supplies and Services,352001,Conference Expenses,04-Nov-16,5448368543,JURYS MANCHESTER I,7011,Conferencesseminars fees etc,99,0,99
Resources,I.C.T. Services,69010,Administration,Employees,40149,Recruitment Instruction and Training,04-Nov-16,5448368545,PREMIER INN,3811,Training-all costs,177.9,29.65,148.25
Resources,I.C.T. Services,69010,Administration,Supplies and Services,304259,Equipment and Materials,04-Nov-16,5448368547,DISCLOSURE SCOT,9399,Equipment-purchase and rental,25,0,25
Resources,I.C.T. Services,69010,Administration,Supplies and Services,304259,Equipment and Materials,04-Nov-16,5448368549,DISCLOSURE SCOT,9399,Equipment-purchase and rental,25,0,25
Resources,I.C.T. Services,69010,Administration,Supplies and Services,304259,Equipment and Materials,04-Nov-16,5448368553,DISCLOSURE SCOT,9399,Equipment-purchase and rental,25,0,25
Regeneration and Local Services,Spatial Policy Planning Assets & Environment,31200,North Pennines Core,Transport,235057,Public Transport,04-Nov-16,5448368561,Hotel on Booking.com,4722,Staff travelling,46,0,46
Regeneration and Local Services,Culture & Sport,54399,Local Delivery-Libraries,Supplies and Services,312009,Newspapers Books and Periodicals,04-Nov-16,5448368565,Amazon UK Marketplace,5942,Newspapers books and periodicals,4.7,0,4.7
Regeneration and Local Services,Direct Services,10301,C&G - North Grounds Maintenance,Supplies and Services,304999,Equipment and Materials,04-Nov-16,5448368589,NEW ROW FARM NURSERIES,5193,Misc equipment tools and materials,418.44,69.74,348.7
Regeneration and Local Services,Direct Services,10301,C&G - North Grounds Maintenance,Supplies and Services,312011,Newspapers Books and Periodicals,04-Nov-16,5448368591,GRALANDS WOODWORK SUPP,5251,Books-school library,58.49,9.75,48.74
Children and Young Peoples Services,Childrens Services,88013,Seaham 0 - 5,Supplies and Services,384999,Miscellaneous Expenses,04-Nov-16,5448368603,HOBBYCRAFT (INTERNET),5970,Other expenses,30,0,30
Regeneration and Local Services,Culture & Sport,54235,Bp Auckland Town Hall Cafe,Supplies and Services,324117,Provisions,04-Nov-16,5448368625,JR HOLLAND FOODSERVICE,5422,Catering costs - provisions,27.92,0,27.92
Regeneration and Local Services,Direct Services,21324,Catering - Meadowfield,Supplies and Services,324117,Provisions,04-Nov-16,5448368645,JR HOLLAND FOODSERVICE,5422,Catering costs - provisions,46.44,0,46.44
Regeneration and Local Services,Direct Services,21324,Catering - Meadowfield,Supplies and Services,324117,Provisions,04-Nov-16,5448368649,JR HOLLAND FOODSERVICE,5422,Catering costs - provisions,9.87,0,9.87
Regeneration and Local Services,Direct Services,21324,Catering - Meadowfield,Supplies and Services,324117,Provisions,04-Nov-16,5448368651,JR HOLLAND FOODSERVICE,5422,Catering costs - provisions,5.08,0,5.08
Children and Young Peoples Services,Childrens Services,85333,Coxhoe Satelite Home,Supplies and Services,338048,Services,04-Nov-16,5448368661,HMCOURTS-SERVICE.G,9222,Court Costs,15,0,15
Regeneration and Local Services,Direct Services,10301,C&G - North Grounds Maintenance,Supplies and Services,304999,Equipment and Materials,04-Nov-16,5448368665,GUSTHARTS CHAINSAW CTR,7699,Misc equipment tools and materials,299.52,0,299.52
Regeneration and Local Services,Direct Services,10301,C&G - North Grounds Maintenance,Supplies and Services,304403,Equipment and Materials,04-Nov-16,5448368669,FRED WILLIAMSON,5231,Other consumables,67.8,11.3,56.5
Regeneration and Local Services,Direct Services,10301,C&G - North Grounds Maintenance,Supplies and Services,304403,Equipment and Materials,04-Nov-16,5448368669 - 1,FRED WILLIAMSON,5231,Other consumables,2.69,,2.69
Adult and Health Services,Planning & Service Strategy,54630,Comm Marketing and Information,Supplies and Services,342033,Computers and Communications,04-Nov-16,5448368783,STK SHUTTERSTOCK.COM,7333,Computer hardware,"1,000.00",0,1000
Regeneration and Local Services,Spatial Policy Planning Assets & Environment,31217,North Pennines - Cold Blooded & Spineless,Supplies and Services,324117,Provisions,04-Nov-16,5448368785,TESCO STORES 4358,5411,Catering costs - provisions,7.52,0,7.52
Regeneration and Local Services,Culture & Sport,10605,Woodhouse Close Leisure Complex,Supplies and Services,324117,Provisions,04-Nov-16,5448368787,BRAKE BROS LTD,5811,Catering costs - provisions,110.47,0,110.47
Regeneration and Local Services,Culture & Sport,54819,Gala Theatre - Theatre,Supplies and Services,304259,Equipment and Materials,04-Nov-16,5448368791,WWW.LTT-GROUP.DE,5722,Equipment-purchase and rental,580.53,0,580.53
Regeneration and Local Services,Economic Development and Housing,30737,Durham Works Flexible Fund,Supplies and Services,328041,Clothing Uniforms and Laundry,04-Nov-16,5448368803,MATALAN,5691,Clothing uniforms and laundry,49.05,0,49.05
Transformation and Partnerships,Partnerships & Community Engagement Div.,60472,Syrian Vulnerable Persons Scheme,Supplies and Services,308011,Furniture,04-Nov-16,5448368807,ASDA SUPERSTORE 4987,5411,Furniture repair and replacement,6,0,6
Regeneration and Local Services,Economic Development and Housing,30737,Durham Works Flexible Fund,Supplies and Services,328041,Clothing Uniforms and Laundry,04-Nov-16,5455243727,NEW LOOK MCOMM,5621,Clothing uniforms and laundry,22.99,0,22.99
Children and Young Peoples Services,Childrens Services,85342,9 Cedar Drive Aycliffe,Supplies and Services,324117,Provisions,05-Nov-16,5448368149,TESCO STORES 2916,5411,Catering costs - provisions,116.47,0,116.47
Resources,Legal & Democratic Services,69335,Democratic Services,Transport,235057,Public Transport,05-Nov-16,5448368293,TAXI G??TEBORG,4121,Staff travelling,55.8,0,55.8
Children and Young Peoples Services,Childrens Services,85957,Secure Management,Supplies and Services,324117,Provisions,05-Nov-16,5448368385,TESCO STORES 6329,5411,Catering costs - provisions,112.69,0,112.69
Resources,Resources Management,69000,Resources Management,Supplies and Services,324117,Provisions,05-Nov-16,5448368523,SAINSBURYS SACAT (2303,5411,Catering costs - provisions,2,0,2
Regeneration and Local Services,Culture & Sport,54399,Local Delivery-Libraries,Supplies and Services,312009,Newspapers Books and Periodicals,05-Nov-16,5448368569,Amazon EU,5969,Newspapers books and periodicals,109.9,0,109.9
Regeneration and Local Services,Direct Services,21235,Catering - Wharton Park,Supplies and Services,324117,Provisions,05-Nov-16,5448368775,BRAKE BROS LTD,5811,Catering costs - provisions,116.98,0,116.98
Regeneration and Local Services,Direct Services,21235,Catering - Wharton Park,Supplies and Services,324117,Provisions,05-Nov-16,5448368779,BRAKE BROS LTD,5811,Catering costs - provisions,71.22,11.87,59.35
Regeneration and Local Services,Direct Services,21235,Catering - Wharton Park,Supplies and Services,324117,Provisions,05-Nov-16,5448368779 - 1,BRAKE BROS LTD,5811,Catering costs - provisions,18.96,,18.96
Dedicated Schools Grant,Dedicated Schools Grant,79075,Learning Difficulties Team,Supplies and Services,312009,Newspapers Books and Periodicals,06-Nov-16,5448368171,Amazon EU,5969,Newspapers books and periodicals,32.88,0,32.88
Regeneration and Local Services,Culture & Sport,54399,Local Delivery-Libraries,Supplies and Services,312009,Newspapers Books and Periodicals,06-Nov-16,5448368571,AMAZON UK RETAIL AMAZO,5999,Newspapers books and periodicals,7.99,0,7.99
Regeneration and Local Services,Spatial Policy Planning Assets & Environment,31200,North Pennines Core,Supplies and Services,352001,Conference Expenses,06-Nov-16,5455244147,CLAYTON HOTEL MANCHEST,7011,Conferencesseminars fees etc,75,0,75
Regeneration and Local Services,Economic Development and Housing,30699,Business Growth and Innovation General,Supplies and Services,304403,Equipment and Materials,07-Nov-16,5448368155,MEETEDGAR.COM STARTER,5734,Other consumables,1.08,0,1.08
Resources,Legal & Democratic Services,69335,Democratic Services,Transport,235057,Public Transport,07-Nov-16,5448368295,TAXI G??TEBORG,4121,Staff travelling,3.26,0,3.26
Resources,Legal & Democratic Services,69335,Democratic Services,Supplies and Services,348037,Subsistence,07-Nov-16,5448368299,THE BARN,5812,Subsistence,1.53,0,1.53
Regeneration and Local Services,Culture & Sport,54819,Gala Theatre - Theatre,Supplies and Services,304259,Equipment and Materials,07-Nov-16,5448368793,WWW.LTT-GROUP.DE,5722,Equipment-purchase and rental,15.96,0,15.96
Children and Young Peoples Services,Education,71801,Selby Cottage Childcare Centre,Supplies and Services,324117,Provisions,07-Nov-16,5455243205,ASDA HOME SHOPPING,5411,Catering costs - provisions,72.92,0,72.92
Children and Young Peoples Services,Education,71801,Selby Cottage Childcare Centre,Supplies and Services,324117,Provisions,07-Nov-16,5455243215,ASDA HOME SHOPPING,5411,Catering costs - provisions,46.25,0,46.25
Children and Young Peoples Services,Education,71801,Selby Cottage Childcare Centre,Supplies and Services,324117,Provisions,07-Nov-16,5455243219,TESCO STORES 2278,5411,Catering costs - provisions,3.7,0.62,3.08
Children and Young Peoples Services,Education,71801,Selby Cottage Childcare Centre,Supplies and Services,324117,Provisions,07-Nov-16,5455243229,ASDA HOME SHOPPING,5411,Catering costs - provisions,-1.65,0,-1.65
Children and Young Peoples Services,Childrens Services,88093,Newton Aycliffe 0 - 5,Supplies and Services,324117,Provisions,07-Nov-16,5455243309,ASDA HOME SHOPPING,5411,Catering costs - provisions,28.35,0,28.35
Regeneration and Local Services,Economic Development and Housing,31500,Housing Solutions - Core Team,Supplies and Services,352001,Conference Expenses,07-Nov-16,5455243327,TRAVELODGE,3615,Conferencesseminars fees etc,88,0,88
Children and Young Peoples Services,Childrens Services,85957,Secure Management,Supplies and Services,384999,Miscellaneous Expenses,07-Nov-16,5455243379,Amazon UK Marketplace,5942,Other expenses,25.98,0,25.98
Children and Young Peoples Services,Childrens Services,85957,Secure Management,Supplies and Services,304245,Equipment and Materials,07-Nov-16,5455243387,SCREWFIX DIRECT,5211,Materials,28.34,4.72,23.62
Children and Young Peoples Services,Childrens Services,85957,Secure Management,Supplies and Services,304245,Equipment and Materials,07-Nov-16,5455243393,WORKSHOP SUPPLIES,5251,Materials,38.62,6.44,32.18
Regeneration and Local Services,Economic Development and Housing,30674,Business Services General,Supplies and Services,328041,Clothing Uniforms and Laundry,07-Nov-16,5455243421,POUNDLAND LTD 1186,5310,Clothing uniforms and laundry,3,0.5,2.5
Regeneration and Local Services,Economic Development and Housing,30674,Business Services General,Supplies and Services,324117,Provisions,07-Nov-16,5455243429,TESCO STORES 6029,5411,Catering costs - provisions,5.3,0.88,4.42
Regeneration and Local Services,Direct Services,21242,Catering - County Hall,Supplies and Services,324117,Provisions,07-Nov-16,5455243475,BRAMBLES FOODS LTD,5499,Catering costs - provisions,833.09,0,833.09
Regeneration and Local Services,Direct Services,21242,Catering - County Hall,Supplies and Services,324117,Provisions,07-Nov-16,5455243481,JR HOLLAND FOODSERVICE,5422,Catering costs - provisions,49.78,0,49.78
Regeneration and Local Services,Direct Services,21242,Catering - County Hall,Supplies and Services,324117,Provisions,07-Nov-16,5455243497,JR HOLLAND FOODSERVICE,5422,Catering costs - provisions,13.52,0,13.52
Regeneration and Local Services,Direct Services,21242,Catering - County Hall,Supplies and Services,324117,Provisions,07-Nov-16,5455243501,BRAKE BROS LTD,5811,Catering costs - provisions,244.13,0,244.13
Regeneration and Local Services,Direct Services,21242,Catering - County Hall,Supplies and Services,324117,Provisions,07-Nov-16,5455243515,JR HOLLAND FOODSERVICE,5422,Catering costs - provisions,-3.72,0,-3.72
Regeneration and Local Services,Direct Services,21242,Catering - County Hall,Supplies and Services,324117,Provisions,07-Nov-16,5455243525,JR HOLLAND FOODSERVICE,5422,Catering costs - provisions,-3.72,0,-3.72
Regeneration and Local Services,Economic Development and Housing,30749,Employability - Youth Contract,Transport,235005,Public Transport,07-Nov-16,5455243657,ARRIVA PASSENGER S,7538,Contract tickets,6.5,0,6.5
Children and Young Peoples Services,Education,71732,Dean Bank Childcare,Supplies and Services,324117,Provisions,07-Nov-16,5455243681,ASDA HOME SHOPPING,5411,Catering costs - provisions,44.43,0,44.43
Regeneration and Local Services,Culture & Sport,11060,Hardwick Park Catering,Supplies and Services,324117,Provisions,07-Nov-16,5455243771,JR HOLLAND FOODSERVICE,5422,Catering costs - provisions,27.28,0,27.28
Regeneration and Local Services,Culture & Sport,11060,Hardwick Park Catering,Supplies and Services,324117,Provisions,07-Nov-16,5455243777,BRAKE BROS LTD,5811,Catering costs - provisions,82.02,13.67,68.35
Regeneration and Local Services,Culture & Sport,11060,Hardwick Park Catering,Supplies and Services,324117,Provisions,07-Nov-16,5455243777 - 1,BRAKE BROS LTD,5811,Catering costs - provisions,160.22,,160.22
Regeneration and Local Services,Culture & Sport,11060,Hardwick Park Catering,Supplies and Services,324117,Provisions,07-Nov-16,5455243797,BRAKE BROS LTD,5811,Catering costs - provisions,21.18,3.53,17.65
Regeneration and Local Services,Culture & Sport,11060,Hardwick Park Catering,Supplies and Services,324117,Provisions,07-Nov-16,5455243797 - 1,BRAKE BROS LTD,5811,Catering costs - provisions,54.08,,54.08
Regeneration and Local Services,Culture & Sport,11060,Hardwick Park Catering,Supplies and Services,324117,Provisions,07-Nov-16,5455243803,JR HOLLAND FOODSERVICE,5422,Catering costs - provisions,-6.56,0,-6.56
Regeneration and Local Services,Direct Services,21234,Catering - Locomotion,Supplies and Services,324117,Provisions,07-Nov-16,5455243833,BRAMBLES FOODS LTD,5499,Catering costs - provisions,137.78,0,137.78
Regeneration and Local Services,Economic Development and Housing,31576,B& B - Temp Accom,Supplies and Services,364320,Grants to Voluntary Organisations,07-Nov-16,5455243843,MANOR HOUSE,5812,Accommodation assistance,150,0,150
Regeneration and Local Services,Direct Services,10525,Catering - Green Lane,Supplies and Services,324117,Provisions,07-Nov-16,5455243899,BRAMBLES FOODS LTD,5499,Catering costs - provisions,97.06,0,97.06
Regeneration and Local Services,Direct Services,10525,Catering - Green Lane,Supplies and Services,324117,Provisions,07-Nov-16,5455243907,BRAKE BROS LTD,5811,Catering costs - provisions,50.44,0,50.44
Regeneration and Local Services,Projects and Business services,10832,Business Support,Supplies and Services,304259,Equipment and Materials,07-Nov-16,5455243939,Amazon UK Marketplace,5942,Equipment-purchase and rental,23.93,0,23.93
Children and Young Peoples Services,Childrens Services,88063,Bishop Auckland 0 - 5,Supplies and Services,324117,Provisions,07-Nov-16,5455243969,WM MORRISON 040,5411,Catering costs - provisions,51.97,0,51.97
Resources,I.C.T. Services,69010,Administration,Supplies and Services,312011,Newspapers Books and Periodicals,07-Nov-16,5455244109,Amazon UK Marketplace,5942,Books-school library,43.98,0,43.98
Resources,I.C.T. Services,69010,Administration,Supplies and Services,304259,Equipment and Materials,07-Nov-16,5455244113,WWW.CABLING4LESS.CO.UK,5732,Equipment-purchase and rental,146.88,24.48,122.4
Resources,I.C.T. Services,69010,Administration,Supplies and Services,304259,Equipment and Materials,07-Nov-16,5455244119,DURHAM COUNTY COUNCIL,9399,Equipment-purchase and rental,12,0,12
Resources,I.C.T. Services,69010,Administration,Supplies and Services,304259,Equipment and Materials,07-Nov-16,5455244123,DURHAM COUNTY COUNCIL,9399,Equipment-purchase and rental,-12,0,-12
Regeneration and Local Services,Culture & Sport,54235,Bp Auckland Town Hall Cafe,Supplies and Services,324117,Provisions,07-Nov-16,5455244201,JR HOLLAND FOODSERVICE,5422,Catering costs - provisions,5.27,0,5.27
Regeneration and Local Services,Culture & Sport,54235,Bp Auckland Town Hall Cafe,Supplies and Services,324117,Provisions,07-Nov-16,5455244211,BRAKE BROS LTD,5811,Catering costs - provisions,56.57,0,56.57
Regeneration and Local Services,Direct Services,21324,Catering - Meadowfield,Supplies and Services,324117,Provisions,07-Nov-16,5455244253,BRAMBLES FOODS LTD,5499,Catering costs - provisions,80.4,0,80.4
Regeneration and Local Services,Culture & Sport,11086,Positive Futures,Supplies and Services,324117,Provisions,07-Nov-16,5455244331,W M MORRISONS,5411,Catering costs - provisions,10.8,0,10.8
Regeneration and Local Services,Direct Services,21235,Catering - Wharton Park,Supplies and Services,324117,Provisions,07-Nov-16,5455244415,BRAMBLES FOODS LTD,5499,Catering costs - provisions,531.18,0,531.18
Regeneration and Local Services,Direct Services,21235,Catering - Wharton Park,Supplies and Services,324117,Provisions,07-Nov-16,5455244421,JR HOLLAND FOODSERVICE,5422,Catering costs - provisions,11.18,0,11.18
Regeneration and Local Services,Spatial Policy Planning Assets & Environment,31217,North Pennines - Cold Blooded & Spineless,Supplies and Services,348037,Subsistence,07-Nov-16,5455244435,THE HEMMEL CAFE,5812,Subsistence,10.35,0,10.35
Regeneration and Local Services,Culture & Sport,10605,Woodhouse Close Leisure Complex,Supplies and Services,324117,Provisions,07-Nov-16,5455244451,JR HOLLAND FOODSERVICE,5422,Catering costs - provisions,39.82,0,39.82
Regeneration and Local Services,Culture & Sport,10605,Woodhouse Close Leisure Complex,Supplies and Services,324117,Provisions,07-Nov-16,5455244457,BRAKE BROS LTD,5811,Catering costs - provisions,80.51,0,80.51
Regeneration and Local Services,Economic Development and Housing,31500,Housing Solutions - Core Team,Employees,40149,Recruitment Instruction and Training,07-Nov-16,5458443527,PREMIER INN,3811,Training-all costs,68,0,68
Adult and Health Services,Head of Adults,55807,Newton Aycliffe Pathways,Supplies and Services,304403,Equipment and Materials,07-Nov-16,5458443917,AMAZON UK RETAIL AMAZO,5999,Other consumables,7.99,0,7.99
Regeneration and Local Services,Culture & Sport,54235,Bp Auckland Town Hall Cafe,Supplies and Services,324117,Provisions,07-Nov-16,5486518537,BRAKE BROS LTD,5811,Catering costs - provisions,335.28,55.88,279.4
Regeneration and Local Services,Culture & Sport,54235,Bp Auckland Town Hall Cafe,Supplies and Services,324117,Provisions,07-Nov-16,5486518537 - 1,BRAKE BROS LTD,5811,Catering costs - provisions,195.37,,195.37
Children and Young Peoples Services,Childrens Services,88033,Durham 0 - 5,Supplies and Services,304259,Equipment and Materials,08-Nov-16,5458443505,GRO HM PASSPORT OFFICE,9399,Equipment-purchase and rental,9.25,0,9.25
Regeneration and Local Services,Economic Development and Housing,31500,Housing Solutions - Core Team,Supplies and Services,352001,Conference Expenses,08-Nov-16,5458443529,TRAVELODGE,3615,Conferencesseminars fees etc,182,0,182
Regeneration and Local Services,Economic Development and Housing,31500,Housing Solutions - Core Team,Supplies and Services,352001,Conference Expenses,08-Nov-16,5458443531,TRAVELODGE,3615,Conferencesseminars fees etc,47,0,47
Children and Young Peoples Services,Childrens Services,85957,Secure Management,Supplies and Services,384999,Miscellaneous Expenses,08-Nov-16,5458443545,Amazon UK Marketplace,5942,Other expenses,11,0,11
Children and Young Peoples Services,Childrens Services,85342,9 Cedar Drive Aycliffe,Supplies and Services,324117,Provisions,08-Nov-16,5458443555,E RUSSUM & SONS LTD,5399,Catering costs - provisions,50.35,0,50.35
Adult and Health Services,Head of Adults,52760,OP Management,Income,720130,Fees and Charges,08-Nov-16,5458443559,HMCOURT-SERVICES.G,9222,Fees-legal,110,0,110
Children and Young Peoples Services,Childrens Services,71440,Barnard Castle One Point Hub,Supplies and Services,328041,Clothing Uniforms and Laundry,08-Nov-16,5458443605,ORIGINAL FACTORY S,5311,Clothing uniforms and laundry,12.05,0,12.05
Children and Young Peoples Services,Childrens Services,71440,Barnard Castle One Point Hub,Supplies and Services,324117,Provisions,08-Nov-16,5458443607,CO-OP GROUP 310015,5411,Catering costs - provisions,6.31,0,6.31
Regeneration and Local Services,Direct Services,21242,Catering - County Hall,Supplies and Services,324117,Provisions,08-Nov-16,5458443611,JR HOLLAND FOODSERVICE,5422,Catering costs - provisions,43.44,0,43.44
Regeneration and Local Services,Direct Services,21242,Catering - County Hall,Supplies and Services,324117,Provisions,08-Nov-16,5458443615,JR HOLLAND FOODSERVICE,5422,Catering costs - provisions,6.58,0,6.58
Regeneration and Local Services,Direct Services,10367,C&G - South Grounds Maintenance,Supplies and Services,304259,Equipment and Materials,08-Nov-16,5458443621,JT ATKINSON & SONS LTD,5211,Equipment-purchase and rental,13.49,0,13.49
Regeneration and Local Services,Culture & Sport,54812,Gala Theatre - Catering etc,Supplies and Services,324117,Provisions,08-Nov-16,5458443625,JR HOLLAND FOODSERVICE,5422,Catering costs - provisions,39.06,0,39.06
Regeneration and Local Services,Culture & Sport,54812,Gala Theatre - Catering etc,Supplies and Services,324117,Provisions,08-Nov-16,5458443629,BRAKE BROS LTD,5811,Catering costs - provisions,155.04,25.84,129.2
Regeneration and Local Services,Culture & Sport,54812,Gala Theatre - Catering etc,Supplies and Services,324117,Provisions,08-Nov-16,5458443629 - 1,BRAKE BROS LTD,5811,Catering costs - provisions,122.1,,122.1
Regeneration and Local Services,Direct Services,21242,Catering - County Hall,Supplies and Services,324117,Provisions,08-Nov-16,5458443637,SAINSBURYS 0776,5411,Catering costs - provisions,23.85,0,23.85
Children and Young Peoples Services,Childrens Services,85351,Framwellgate Moor CU,Supplies and Services,324117,Provisions,08-Nov-16,5458443649,ASDA HOME SHOPPING,5411,Catering costs - provisions,144.83,0,144.83
Children and Young Peoples Services,Childrens Services,85351,Framwellgate Moor CU,Supplies and Services,324117,Provisions,08-Nov-16,5458443651,ASDA HOME SHOPPING,5411,Catering costs - provisions,-0.1,0,-0.1
Children and Young Peoples Services,Education,71732,Dean Bank Childcare,Supplies and Services,312011,Newspapers Books and Periodicals,08-Nov-16,5458443715,HOME BARGAINS(STOCKTON,5251,Books-school library,15.26,2.54,12.72
Children and Young Peoples Services,Education,71732,Dean Bank Childcare,Supplies and Services,328041,Clothing Uniforms and Laundry,08-Nov-16,5458443719,B&M RETAIL LTD,5310,Clothing uniforms and laundry,3.98,0,3.98
Regeneration and Local Services,Economic Development and Housing,30737,Durham Works Flexible Fund,Supplies and Services,328041,Clothing Uniforms and Laundry,08-Nov-16,5458443721,NEW LOOK INTERNET,5621,Clothing uniforms and laundry,36.97,0,36.97
Regeneration and Local Services,Culture & Sport,11191,Wellbeing4Life,Supplies and Services,324117,Provisions,08-Nov-16,5458443735,ASDA STORES,5411,Catering costs - provisions,18.62,0,18.62
Children and Young Peoples Services,Childrens Services,85957,Secure Management,Supplies and Services,328041,Clothing Uniforms and Laundry,08-Nov-16,5458443767,PAYPAL GYMKINGLIMI,5611,Clothing uniforms and laundry,49.49,0,49.49
Children and Young Peoples Services,Childrens Services,85957,Secure Management,Supplies and Services,384999,Miscellaneous Expenses,08-Nov-16,5458443771,Amazon EU,5969,Other expenses,7.86,0,7.86
Children and Young Peoples Services,Childrens Services,85957,Secure Management,Supplies and Services,328041,Clothing Uniforms and Laundry,08-Nov-16,5458443777,WWW.FOOTLOCKER.EU,5661,Clothing uniforms and laundry,129.99,21.67,108.32
Children and Young Peoples Services,Childrens Services,85957,Secure Management,Supplies and Services,328041,Clothing Uniforms and Laundry,08-Nov-16,5458443779,SCOTTS INTERNET,5941,Clothing uniforms and laundry,29.99,0,29.99
Children and Young Peoples Services,Childrens Services,85957,Secure Management,Supplies and Services,328041,Clothing Uniforms and Laundry,08-Nov-16,5458443781,SPORTSDIRECT.COM,5941,Clothing uniforms and laundry,54.98,9.16,45.82
Children and Young Peoples Services,Childrens Services,85957,Secure Management,Supplies and Services,328041,Clothing Uniforms and Laundry,08-Nov-16,5458443783,WWW.FOOTASYLUM.COM,5941,Clothing uniforms and laundry,85.94,0,85.94
Children and Young Peoples Services,Childrens Services,85957,Secure Management,Supplies and Services,328041,Clothing Uniforms and Laundry,08-Nov-16,5458443785,WWW.FOOTASYLUM.COM,5941,Clothing uniforms and laundry,104.98,0,104.98
Children and Young Peoples Services,Childrens Services,85957,Secure Management,Supplies and Services,328041,Clothing Uniforms and Laundry,08-Nov-16,5458443787,VERY.CO.UK,5964,Clothing uniforms and laundry,65,0,65
Children and Young Peoples Services,Childrens Services,85957,Secure Management,Supplies and Services,328041,Clothing Uniforms and Laundry,08-Nov-16,5458443791,VERY.CO.UK,5964,Clothing uniforms and laundry,35,0,35
Children and Young Peoples Services,Childrens Services,85957,Secure Management,Supplies and Services,328041,Clothing Uniforms and Laundry,08-Nov-16,5458443793,VERY.CO.UK,5964,Clothing uniforms and laundry,3.99,0,3.99
Children and Young Peoples Services,Childrens Services,85957,Secure Management,Supplies and Services,328041,Clothing Uniforms and Laundry,08-Nov-16,5458443797,VERY.CO.UK,5964,Clothing uniforms and laundry,3.99,0,3.99
Children and Young Peoples Services,Childrens Services,85957,Secure Management,Supplies and Services,328041,Clothing Uniforms and Laundry,08-Nov-16,5458443801,VERY.CO.UK,5964,Clothing uniforms and laundry,-60,0,-60
Regeneration and Local Services,Direct Services,10301,C&G - North Grounds Maintenance,Supplies and Services,304221,Equipment and Materials,08-Nov-16,5458443847,GREENHAM TRADING LTD,5085,Direct materials,31.31,5.22,26.09
Regeneration and Local Services,Direct Services,10301,C&G - North Grounds Maintenance,Supplies and Services,304403,Equipment and Materials,08-Nov-16,5458443849,BESCOL,5231,Other consumables,15.48,2.58,12.9
Regeneration and Local Services,Direct Services,10301,C&G - North Grounds Maintenance,Supplies and Services,304259,Equipment and Materials,08-Nov-16,5458443853,B & Q 1332,5211,Equipment-purchase and rental,60,10,50
Regeneration and Local Services,Culture & Sport,11060,Hardwick Park Catering,Supplies and Services,324117,Provisions,08-Nov-16,5458443857,JR HOLLAND FOODSERVICE,5422,Catering costs - provisions,77.7,0,77.7
Regeneration and Local Services,Culture & Sport,11060,Hardwick Park Catering,Supplies and Services,324117,Provisions,08-Nov-16,5458443861,JR HOLLAND FOODSERVICE,5422,Catering costs - provisions,26.33,0,26.33
Regeneration and Local Services,Culture & Sport,11060,Hardwick Park Catering,Supplies and Services,324117,Provisions,08-Nov-16,5458443865,BRAKE BROS LTD,5811,Catering costs - provisions,-12.47,-2.08,-10.39
Regeneration and Local Services,Spatial Policy Planning Assets & Environment,31200,North Pennines Core,Supplies and Services,348037,Subsistence,08-Nov-16,5458443867,THE PUNCH BOWL INN,5812,Subsistence,65.4,0,65.4
Resources,I.C.T. Services,65335,Operations - System & Repairs Trading,Supplies and Services,304639,Equipment and Materials,08-Nov-16,5458443871,THE REPLACE BASE LTD,5999,Technicians-supplies,49.92,8.32,41.6
Resources,I.C.T. Services,65335,Operations - System & Repairs Trading,Supplies and Services,304639,Equipment and Materials,08-Nov-16,5458443871 - 1,THE REPLACE BASE LTD,5999,Technicians-supplies,2.38,,2.38
Regeneration and Local Services,Culture & Sport,54815,Gala Theatre Stage School,Supplies and Services,304999,Equipment and Materials,08-Nov-16,5458443875,Amazon Prime,5968,Misc equipment tools and materials,-7.99,0,-7.99
Regeneration and Local Services,Economic Development and Housing,30762,Organisational Training & Development,Employees,40149,Recruitment Instruction and Training,08-Nov-16,5458443879,CITB,8220,Training-all costs,30,5,25
Regeneration and Local Services,Economic Development and Housing,30762,Organisational Training & Development,Employees,40149,Recruitment Instruction and Training,08-Nov-16,5458443881,CITB,8220,Training-all costs,30,5,25
Regeneration and Local Services,Culture & Sport,54819,Gala Theatre - Theatre,Supplies and Services,384999,Miscellaneous Expenses,08-Nov-16,5458443887,PAYPAL,5945,Other expenses,58.98,0,58.98
Regeneration and Local Services,Direct Services,10525,Catering - Green Lane,Supplies and Services,324117,Provisions,08-Nov-16,5458443893,BRAKE BROS LTD,5811,Catering costs - provisions,96.72,16.12,80.6
Regeneration and Local Services,Direct Services,10525,Catering - Green Lane,Supplies and Services,324117,Provisions,08-Nov-16,5458443893 - 1,BRAKE BROS LTD,5811,Catering costs - provisions,74.6,,74.6
Regeneration and Local Services,Culture & Sport,54501,HM Prison Durham,Supplies and Services,312011,Newspapers Books and Periodicals,08-Nov-16,5458443905,Amazon UK Marketplace,5942,Books-school library,30,0,30
Adult and Health Services,Head of Adults,55807,Newton Aycliffe Pathways,Supplies and Services,312011,Newspapers Books and Periodicals,08-Nov-16,5458443909,Amazon UK Marketplace,5942,Books-school library,54.12,0,54.12
Adult and Health Services,Head of Adults,53815,The Orchards Extra Care,Premises,145023,Cleaning and Domestic Supplies,08-Nov-16,5458443913,Amazon UK Marketplace,5942,Cleaning and domestic materials,27.96,0,27.96
Children and Young Peoples Services,Childrens Services,88063,Bishop Auckland 0 - 5,Supplies and Services,384999,Miscellaneous Expenses,08-Nov-16,5458443929,W BOYES & CO LTD BISHO,5310,Other expenses,28.86,0,28.86
Children and Young Peoples Services,Childrens Services,88063,Bishop Auckland 0 - 5,Supplies and Services,324117,Provisions,08-Nov-16,5458443933,SAINSBURYS SACAT 2199,5411,Catering costs - provisions,4.5,0,4.5
Children and Young Peoples Services,Childrens Services,85332,Middlestone Moor CU,Supplies and Services,324117,Provisions,08-Nov-16,5458443943,TESCO STORES 6329,5411,Catering costs - provisions,115.71,0,115.71
Resources,I.C.T. Services,69010,Administration,Supplies and Services,312011,Newspapers Books and Periodicals,08-Nov-16,5458444013,Amazon UK Marketplace,5942,Books-school library,5.97,0,5.97
Resources,I.C.T. Services,69010,Administration,Supplies and Services,304259,Equipment and Materials,08-Nov-16,5458444017,SUNDERLAND CC,9399,Equipment-purchase and rental,10,0,10
Resources,I.C.T. Services,69010,Administration,Supplies and Services,342033,Computers and Communications,08-Nov-16,5458444019,PAYPAL KINGSFIELDC,7372,Computer hardware,191.94,0,191.94
Regeneration and Local Services,Culture & Sport,54399,Local Delivery-Libraries,Supplies and Services,312009,Newspapers Books and Periodicals,08-Nov-16,5458444049,AMAZON UK RETAIL AMAZO,5999,Newspapers books and periodicals,39.95,0,39.95
Children and Young Peoples Services,Childrens Services,88003,Peterlee 0 - 5,Supplies and Services,304259,Equipment and Materials,08-Nov-16,5458444099,SUNDERLAND CC,9399,Equipment-purchase and rental,10,0,10
Regeneration and Local Services,Culture & Sport,54235,Bp Auckland Town Hall Cafe,Supplies and Services,324117,Provisions,08-Nov-16,5458444103,JR HOLLAND FOODSERVICE,5422,Catering costs - provisions,6.2,0,6.2
Regeneration and Local Services,Direct Services,21324,Catering - Meadowfield,Supplies and Services,324117,Provisions,08-Nov-16,5458444109,BRAKE BROS LTD,5811,Catering costs - provisions,78.58,0,78.58
Regeneration and Local Services,Culture & Sport,11191,Wellbeing4Life,Supplies and Services,324117,Provisions,08-Nov-16,5458444177,SAINSBURYS SACAT 0776,5411,Catering costs - provisions,14.1,0,14.1
Regeneration and Local Services,Culture & Sport,26591,Hardwick Park,Supplies and Services,304245,Equipment and Materials,08-Nov-16,5458444205,WWW.GREEN-TECH.CO.UK,7399,Materials,48,8,40
Regeneration and Local Services,Culture & Sport,54819,Gala Theatre - Theatre,Supplies and Services,304259,Equipment and Materials,08-Nov-16,5458444209,WWW.LTT-GROUP.DE,5722,Equipment-purchase and rental,-581.9,0,-581.9
Regeneration and Local Services,Economic Development and Housing,30737,Durham Works Flexible Fund,Supplies and Services,328041,Clothing Uniforms and Laundry,08-Nov-16,5462497791,RIVER ISLAND 400,5691,Clothing uniforms and laundry,40.95,0,40.95
Children and Young Peoples Services,Childrens Services,88003,Peterlee 0 - 5,Supplies and Services,304403,Equipment and Materials,08-Nov-16,5462498597,AMAZON UK RETAIL AMAZO,5999,Other consumables,22.63,0,22.63
Regeneration and Local Services,Economic Development and Housing,30737,Durham Works Flexible Fund,Supplies and Services,312011,Newspapers Books and Periodicals,09-Nov-16,5458444187,Amazon EU,5969,Books-school library,11.98,0,11.98
Regeneration and Local Services,Culture & Sport,54819,Gala Theatre - Theatre,Supplies and Services,304259,Equipment and Materials,09-Nov-16,5458444211,WWW.LTT-GROUP.DE,5722,Equipment-purchase and rental,-16,0,-16
Regeneration and Local Services,Direct Services,21100,Catering - General,Supplies and Services,324117,Provisions,09-Nov-16,5462497455,TESCO STORES 6029,5411,Catering costs - provisions,6.05,0,6.05
Children and Young Peoples Services,Education,71801,Selby Cottage Childcare Centre,Supplies and Services,328041,Clothing Uniforms and Laundry,09-Nov-16,5462497467,ARGOS LTD,5310,Clothing uniforms and laundry,52.44,0,52.44
Children and Young Peoples Services,Education,71801,Selby Cottage Childcare Centre,Supplies and Services,304259,Equipment and Materials,09-Nov-16,5462497471,WILKO RETAIL LIMIT,5722,Equipment-purchase and rental,50.5,0,50.5
Children and Young Peoples Services,Education,71801,Selby Cottage Childcare Centre,Supplies and Services,324117,Provisions,09-Nov-16,5462497477,TESCO STORES 2278,5411,Catering costs - provisions,17.11,0,17.11
Regeneration and Local Services,Economic Development and Housing,30699,Business Growth and Innovation General,Supplies and Services,312011,Newspapers Books and Periodicals,09-Nov-16,5462497531,FASTHOSTS INTERNET,4816,Books-school library,12.59,0,12.59
Children and Young Peoples Services,Childrens Services,71440,Barnard Castle One Point Hub,Supplies and Services,312011,Newspapers Books and Periodicals,09-Nov-16,5462497593,Amazon UK Marketplace,5942,Books-school library,39.95,0,39.95
Regeneration and Local Services,Economic Development and Housing,30737,Durham Works Flexible Fund,Transport,230031,Contract Hire,09-Nov-16,5462497597,GO NORTH EAST - V/T,4131,Pupils-transport to play fields etc,91.54,0,91.54
Regeneration and Local Services,Economic Development and Housing,30737,Durham Works Flexible Fund,Supplies and Services,328041,Clothing Uniforms and Laundry,09-Nov-16,5462497603,NEW LOOK 4001,5621,Clothing uniforms and laundry,129.93,0,129.93
Regeneration and Local Services,Direct Services,21242,Catering - County Hall,Supplies and Services,324117,Provisions,09-Nov-16,5462497607,FREEMAN CATERING BUTCH,5422,Catering costs - provisions,116.07,0,116.07
Regeneration and Local Services,Direct Services,21242,Catering - County Hall,Supplies and Services,324117,Provisions,09-Nov-16,5462497611,FREEMAN CATERING BUTCH,5422,Catering costs - provisions,43.8,0,43.8
Regeneration and Local Services,Direct Services,21242,Catering - County Hall,Supplies and Services,324117,Provisions,09-Nov-16,5462497615,JR HOLLAND FOODSERVICE,5422,Catering costs - provisions,193.97,0,193.97
Regeneration and Local Services,Direct Services,21242,Catering - County Hall,Supplies and Services,324117,Provisions,09-Nov-16,5462497625,JR HOLLAND FOODSERVICE,5422,Catering costs - provisions,31.35,0,31.35
Regeneration and Local Services,Direct Services,21242,Catering - County Hall,Supplies and Services,324117,Provisions,09-Nov-16,5462497627,BRAKE BROS LTD,5811,Catering costs - provisions,472.2,78.7,393.5
Regeneration and Local Services,Direct Services,21242,Catering - County Hall,Supplies and Services,324117,Provisions,09-Nov-16,5462497627 - 1,BRAKE BROS LTD,5811,Catering costs - provisions,207.34,,207.34
Regeneration and Local Services,Direct Services,21242,Catering - County Hall,Supplies and Services,324117,Provisions,09-Nov-16,5462497653,BRAKE BROS LTD,5811,Catering costs - provisions,200.03,0,200.03
Regeneration and Local Services,Direct Services,21242,Catering - County Hall,Supplies and Services,324117,Provisions,09-Nov-16,5462497661,BRAKE BROS LTD,5811,Catering costs - provisions,-9.5,0,-9.5
Resources,I.C.T. Services,70704,ICT School Services - DLG,Supplies and Services,372009,Subscriptions,09-Nov-16,5462497677,WEB NETWORKSOLUTIONS,5968,Subscriptions,163.82,0,163.82
Resources,I.C.T. Services,65464,Domains,Supplies and Services,372009,Subscriptions,09-Nov-16,5462497681,NOMINET UK,7379,Subscriptions,31.5,5.25,26.25
Regeneration and Local Services,Culture & Sport,54812,Gala Theatre - Catering etc,Supplies and Services,324117,Provisions,09-Nov-16,5462497693,FREEMAN CATERING BUTCH,5422,Catering costs - provisions,39.43,0,39.43
Regeneration and Local Services,Economic Development and Housing,30737,Durham Works Flexible Fund,Supplies and Services,324117,Provisions,09-Nov-16,5462497797,CO-OP GROUP 010518,5411,Catering costs - provisions,25,0,25
Children and Young Peoples Services,Childrens Services,85332,Middlestone Moor CU,Supplies and Services,304259,Equipment and Materials,09-Nov-16,5462497805,VAX LTD,5722,Equipment-purchase and rental,149.99,0,149.99
Children and Young Peoples Services,Childrens Services,85332,Middlestone Moor CU,Supplies and Services,324117,Provisions,09-Nov-16,5462497807,TESCO STORES 2371,5411,Catering costs - provisions,183.59,0,183.59
Children and Young Peoples Services,Childrens Services,85332,Middlestone Moor CU,Supplies and Services,304403,Equipment and Materials,09-Nov-16,5462497813,WWW ESPARES CO UK,5065,Other consumables,19.31,3.22,16.09
Children and Young Peoples Services,Childrens Services,88023,Chester Le Street 0 - 5,Supplies and Services,384237,Miscellaneous Expenses,09-Nov-16,5462497855,THE GIANTS GARDEN LTD,7999,Recreational exps outings parties,40,0,40
Children and Young Peoples Services,Childrens Services,85957,Secure Management,Supplies and Services,384999,Miscellaneous Expenses,09-Nov-16,5462497863,Amazon UK Marketplace,5942,Other expenses,7.86,0,7.86
Regeneration and Local Services,Culture & Sport,11060,Hardwick Park Catering,Supplies and Services,324117,Provisions,09-Nov-16,5462497897,FREEMAN CATERING BUTCH,5422,Catering costs - provisions,34.04,0,34.04
Regeneration and Local Services,Culture & Sport,11060,Hardwick Park Catering,Supplies and Services,324117,Provisions,09-Nov-16,5462497903,FREEMAN CATERING BUTCH,5422,Catering costs - provisions,33.63,0,33.63
Regeneration and Local Services,Culture & Sport,11060,Hardwick Park Catering,Supplies and Services,324117,Provisions,09-Nov-16,5462497905,FREEMAN CATERING BUTCH,5422,Catering costs - provisions,28.79,0,28.79
Regeneration and Local Services,Culture & Sport,11060,Hardwick Park Catering,Supplies and Services,324117,Provisions,09-Nov-16,5462497909,JR HOLLAND FOODSERVICE,5422,Catering costs - provisions,13.32,0,13.32
Regeneration and Local Services,Culture & Sport,11060,Hardwick Park Catering,Supplies and Services,324117,Provisions,09-Nov-16,5462497913,JR HOLLAND FOODSERVICE,5422,Catering costs - provisions,4.38,0,4.38
Regeneration and Local Services,Direct Services,21234,Catering - Locomotion,Supplies and Services,324117,Provisions,09-Nov-16,5462497935,BRAKE BROS LTD,5811,Catering costs - provisions,195.78,32.63,163.15
Regeneration and Local Services,Direct Services,21234,Catering - Locomotion,Supplies and Services,324117,Provisions,09-Nov-16,5462497935 - 1,BRAKE BROS LTD,5811,Catering costs - provisions,74.37,,74.37
Regeneration and Local Services,Direct Services,21234,Catering - Locomotion,Supplies and Services,324117,Provisions,09-Nov-16,5462497951,BRAKE BROS LTD,5811,Catering costs - provisions,151.22,0,151.22
Regeneration and Local Services,Direct Services,10525,Catering - Green Lane,Supplies and Services,324117,Provisions,09-Nov-16,5462497967,FREEMAN CATERING BUTCH,5422,Catering costs - provisions,105.88,0,105.88
Children and Young Peoples Services,Childrens Services,85352,Tow Law CU,Supplies and Services,328041,Clothing Uniforms and Laundry,09-Nov-16,5462497999,ARGOS LTD,5310,Clothing uniforms and laundry,75.97,0,75.97
Children and Young Peoples Services,Childrens Services,85333,Coxhoe Satelite Home,Supplies and Services,324117,Provisions,09-Nov-16,5462498127,TESCO STORES 2916,5411,Catering costs - provisions,179.39,0,179.39
Children and Young Peoples Services,Childrens Services,85333,Coxhoe Satelite Home,Supplies and Services,324117,Provisions,09-Nov-16,5462498133,TESCO STORES 2916,5411,Catering costs - provisions,27,0,27
Children and Young Peoples Services,Childrens Services,88053,Stanley 0 - 5,Supplies and Services,304259,Equipment and Materials,09-Nov-16,5462498139,WILKO.COM,5722,Equipment-purchase and rental,55.95,0,55.95
Children and Young Peoples Services,Childrens Services,88053,Stanley 0 - 5,Supplies and Services,304403,Equipment and Materials,09-Nov-16,5462498143,TESCO - Hughes,5999,Other consumables,45.99,0,45.99
Regeneration and Local Services,Direct Services,10367,C&G - South Grounds Maintenance,Supplies and Services,304221,Equipment and Materials,09-Nov-16,5462498147,R DEFTY,5200,Direct materials,82.9,13.82,69.08
Resources,I.C.T. Services,69010,Administration,Supplies and Services,304403,Equipment and Materials,09-Nov-16,5462498159,PAYPAL 3QD RISCOS,5734,Other consumables,33.5,0,33.5
Resources,I.C.T. Services,69010,Administration,Supplies and Services,312011,Newspapers Books and Periodicals,09-Nov-16,5462498163,Amazon UK Marketplace,5942,Books-school library,20.52,0,20.52
Regeneration and Local Services,Culture & Sport,54235,Bp Auckland Town Hall Cafe,Supplies and Services,324117,Provisions,09-Nov-16,5462498259,JR HOLLAND FOODSERVICE,5422,Catering costs - provisions,31.45,0,31.45
Regeneration and Local Services,Direct Services,21324,Catering - Meadowfield,Supplies and Services,324117,Provisions,09-Nov-16,5462498277,FREEMAN CATERING BUTCH,5422,Catering costs - provisions,65.97,0,65.97
Regeneration and Local Services,Direct Services,21324,Catering - Meadowfield,Supplies and Services,324117,Provisions,09-Nov-16,5462498283,FREEMAN CATERING BUTCH,5422,Catering costs - provisions,55.83,0,55.83
Regeneration and Local Services,Direct Services,21324,Catering - Meadowfield,Supplies and Services,324117,Provisions,09-Nov-16,5462498287,JR HOLLAND FOODSERVICE,5422,Catering costs - provisions,44.99,0,44.99
Regeneration and Local Services,Direct Services,21324,Catering - Meadowfield,Supplies and Services,324117,Provisions,09-Nov-16,5462498295,JR HOLLAND FOODSERVICE,5422,Catering costs - provisions,13.45,0,13.45
Regeneration and Local Services,Direct Services,21324,Catering - Meadowfield,Supplies and Services,324117,Provisions,09-Nov-16,5462498299,BRAKE BROS LTD,5811,Catering costs - provisions,113.1,18.85,94.25
Regeneration and Local Services,Direct Services,21324,Catering - Meadowfield,Supplies and Services,324117,Provisions,09-Nov-16,5462498299 - 1,BRAKE BROS LTD,5811,Catering costs - provisions,76.27,,76.27
Regeneration and Local Services,Direct Services,10301,C&G - North Grounds Maintenance,Supplies and Services,304999,Equipment and Materials,09-Nov-16,5462498335,GUSTHARTS CHAINSAW CTR,7699,Misc equipment tools and materials,53.33,8.89,44.44
Children and Young Peoples Services,Childrens Services,88073,Barnard Castle 0 - 5,Supplies and Services,324117,Provisions,09-Nov-16,5462498425,SAINSBURYS SACAT 2199,5411,Catering costs - provisions,12,0,12
Regeneration and Local Services,Economic Development and Housing,30737,Durham Works Flexible Fund,Supplies and Services,328041,Clothing Uniforms and Laundry,09-Nov-16,5462498493,WWW.ASOS.COM,5651,Clothing uniforms and laundry,162.49,0,162.49
Regeneration and Local Services,Direct Services,21235,Catering - Wharton Park,Supplies and Services,324117,Provisions,09-Nov-16,5462498541,JR HOLLAND FOODSERVICE,5422,Catering costs - provisions,8.52,0,8.52
Regeneration and Local Services,Culture & Sport,10605,Woodhouse Close Leisure Complex,Supplies and Services,324117,Provisions,09-Nov-16,5462498569,JR HOLLAND FOODSERVICE,5422,Catering costs - provisions,25.81,0,25.81
Regeneration and Local Services,Culture & Sport,11225,Locality 2 Team Management,Supplies and Services,324117,Provisions,09-Nov-16,5462498581,ASDA SUPERSTORE 4987,5411,Catering costs - provisions,37,0,37
Regeneration and Local Services,Economic Development and Housing,30699,Business Growth and Innovation General,Supplies and Services,336005,Advertising,09-Nov-16,5466905735,ADROLL,7311,Advertising other than for staff,2.46,0,2.46
Children and Young Peoples Services,Childrens Services,85957,Secure Management,Supplies and Services,328041,Clothing Uniforms and Laundry,09-Nov-16,5466906063,NEW LOOK INTERNET,5621,Clothing uniforms and laundry,-25.98,0,-25.98
Resources,I.C.T. Services,69010,Administration,Supplies and Services,304403,Equipment and Materials,09-Nov-16,5466906305,AMAZON UK RETAIL AMAZO,5999,Other consumables,45.64,0,45.64
Regeneration and Local Services,Economic Development and Housing,30749,Employability - Youth Contract,Supplies and Services,304259,Equipment and Materials,09-Nov-16,5466906477,SPORTSDIRECT.COM,5941,Equipment-purchase and rental,179.96,0,179.96
Children and Young Peoples Services,Childrens Services,71404,Laurel Avenue Childrens Centre,Supplies and Services,324117,Provisions,09-Nov-16,5478825057,TESCO STORES 2371,5411,Catering costs - provisions,6.81,0,6.81
Adult and Health Services,Head of Adults,51603,OP/PD Durham & CLS,Supplies and Services,340001,Postages,09-Nov-16,5482191561,POST OFFICE SHOP,9402,Postages,55,0,55
Resources,I.C.T. Services,70704,ICT School Services - DLG,Supplies and Services,372009,Subscriptions,10-Nov-16,5462497687,WEB NETWORKSOLUTIONS,5968,Subscriptions,4.51,0,4.51
Regeneration and Local Services,Economic Development and Housing,31500,Housing Solutions - Core Team,Supplies and Services,348037,Subsistence,10-Nov-16,5466905707,MANOR HOUSE,5812,Subsistence,50,0,50
Regeneration and Local Services,Economic Development and Housing,31500,Housing Solutions - Core Team,Supplies and Services,352001,Conference Expenses,10-Nov-16,5466905713,TRAVELODGE,3615,Conferencesseminars fees etc,362,0,362
Children and Young Peoples Services,Childrens Services,85957,Secure Management,Supplies and Services,384999,Miscellaneous Expenses,10-Nov-16,5466905729,Amazon UK Marketplace,5942,Other expenses,35.88,0,35.88
Resources,Financial Services,65180,Collections,Income,720130,Fees and Charges,10-Nov-16,5466905751,ROYAL MAIL ONLINE SHOP,9402,Fees-legal,64,0,64
Regeneration and Local Services,Economic Development and Housing,30737,Durham Works Flexible Fund,Supplies and Services,384999,Miscellaneous Expenses,10-Nov-16,5466905829,GRO HM PASSPORT OFFICE,9399,Other expenses,23.4,0,23.4
Regeneration and Local Services,Economic Development and Housing,30737,Durham Works Flexible Fund,Supplies and Services,384999,Miscellaneous Expenses,10-Nov-16,5466905833,GRO HM PASSPORT OFFICE,9399,Other expenses,9.25,0,9.25
Regeneration and Local Services,Economic Development and Housing,30737,Durham Works Flexible Fund,Transport,235005,Public Transport,10-Nov-16,5466905839,ARRIVA PASSENGER S,7538,Contract tickets,-7,0,-7
Regeneration and Local Services,Direct Services,21242,Catering - County Hall,Supplies and Services,324117,Provisions,10-Nov-16,5466905843,JR HOLLAND FOODSERVICE,5422,Catering costs - provisions,70.94,0,70.94
Regeneration and Local Services,Direct Services,21242,Catering - County Hall,Supplies and Services,324117,Provisions,10-Nov-16,5466905849,JR HOLLAND FOODSERVICE,5422,Catering costs - provisions,26.77,0,26.77
Regeneration and Local Services,Direct Services,21242,Catering - County Hall,Supplies and Services,324117,Provisions,10-Nov-16,5466905855,JR HOLLAND FOODSERVICE,5422,Catering costs - provisions,13.16,0,13.16
Regeneration and Local Services,Direct Services,21242,Catering - County Hall,Supplies and Services,324117,Provisions,10-Nov-16,5466905859,BRAKE BROS LTD,5811,Catering costs - provisions,-18.29,0,-18.29
Children and Young Peoples Services,Childrens Services,88037,One Point YEI,Supplies and Services,304259,Equipment and Materials,10-Nov-16,5466905863,SUNDERLAND CC,9399,Equipment-purchase and rental,10,0,10
Regeneration and Local Services,RED Departmental Support Costs,30020,Centrally Managed Costs,Supplies and Services,372009,Subscriptions,10-Nov-16,5466905875,WEB NETWORKSOLUTIONS,5968,Subscriptions,109.8,0,109.8
Regeneration and Local Services,Culture & Sport,54812,Gala Theatre - Catering etc,Supplies and Services,324117,Provisions,10-Nov-16,5466905883,JR HOLLAND FOODSERVICE,5422,Catering costs - provisions,59.31,0,59.31
Regeneration and Local Services,Direct Services,21242,Catering - County Hall,Supplies and Services,324117,Provisions,10-Nov-16,5466905903,SAINSBURYS SACAT 0776,5411,Catering costs - provisions,2.74,0,2.74
Regeneration and Local Services,Economic Development and Housing,30749,Employability - Youth Contract,Transport,235005,Public Transport,10-Nov-16,5466905973,ARRIVA PASSENGER S,7538,Contract tickets,59,0,59
Children and Young Peoples Services,Education,71732,Dean Bank Childcare,Supplies and Services,328041,Clothing Uniforms and Laundry,10-Nov-16,5466905997,B&M RETAIL LTD,5310,Clothing uniforms and laundry,20,0,20
Regeneration and Local Services,Economic Development and Housing,30737,Durham Works Flexible Fund,Supplies and Services,304259,Equipment and Materials,10-Nov-16,5466906009,ANGLIATOOLCENTRE,5211,Equipment-purchase and rental,459.96,76.66,383.3
Dedicated Schools Grant,Dedicated Schools Grant,79075,Learning Difficulties Team,Supplies and Services,384956,Miscellaneous Expenses,10-Nov-16,5466906013,WWW.ELKLAN.CO.UK,8299,Licences,50,0,50
Children and Young Peoples Services,Childrens Services,85955,Auckland,Supplies and Services,384999,Miscellaneous Expenses,10-Nov-16,5466906053,ARGOS RETAIL GROUP,5310,Other expenses,9.99,0,9.99
Children and Young Peoples Services,Childrens Services,85957,Secure Management,Supplies and Services,324117,Provisions,10-Nov-16,5466906057,TESCO STORES 6329,5411,Catering costs - provisions,119.56,0,119.56
Regeneration and Local Services,Direct Services,10301,C&G - North Grounds Maintenance,Supplies and Services,328041,Clothing Uniforms and Laundry,10-Nov-16,5466906073,THOMAS OWEN & SONS /N/,5611,Clothing uniforms and laundry,379.47,63.25,316.22
Regeneration and Local Services,Direct Services,10301,C&G - North Grounds Maintenance,Supplies and Services,328041,Clothing Uniforms and Laundry,10-Nov-16,5466906077,THOMAS OWEN & SONS /N/,5611,Clothing uniforms and laundry,183.55,30.59,152.96
Regeneration and Local Services,Direct Services,10301,C&G - North Grounds Maintenance,Supplies and Services,304259,Equipment and Materials,10-Nov-16,5466906083,B & Q 1203,5211,Equipment-purchase and rental,114.86,19.14,95.72
Regeneration and Local Services,Culture & Sport,11060,Hardwick Park Catering,Supplies and Services,324117,Provisions,10-Nov-16,5466906089,JR HOLLAND FOODSERVICE,5422,Catering costs - provisions,29.64,0,29.64
Resources,I.C.T. Services,70204,Operations - System & Repairs Team,Supplies and Services,304259,Equipment and Materials,10-Nov-16,5466906095,Amazon UK Marketplace,5942,Equipment-purchase and rental,57.98,0,57.98
Resources,I.C.T. Services,70204,Operations - System & Repairs Team,Supplies and Services,304639,Equipment and Materials,10-Nov-16,5466906099,Amazon UK Marketplace,5942,Technicians-supplies,31.54,0,31.54
Regeneration and Local Services,Direct Services,10525,Catering - Green Lane,Supplies and Services,324117,Provisions,10-Nov-16,5466906123,JR HOLLAND FOODSERVICE,5422,Catering costs - provisions,42.2,0,42.2
Regeneration and Local Services,Culture & Sport,10605,Woodhouse Close Leisure Complex,Supplies and Services,384999,Miscellaneous Expenses,10-Nov-16,5466906171,Amazon UK Marketplace,5942,Other expenses,2,0,2
Children and Young Peoples Services,Childrens Services,85352,Tow Law CU,Supplies and Services,324117,Provisions,10-Nov-16,5466906177,TESCO STORES 2371,5411,Catering costs - provisions,288.89,0,288.89
Children and Young Peoples Services,Childrens Services,88063,Bishop Auckland 0 - 5,Supplies and Services,324117,Provisions,10-Nov-16,5466906203,ASDA STORES,5411,Catering costs - provisions,4.04,0,4.04
Regeneration and Local Services,Direct Services,10367,C&G - South Grounds Maintenance,Supplies and Services,304259,Equipment and Materials,10-Nov-16,5466906211,SCREWFIX,5211,Equipment-purchase and rental,44.06,0,44.06
Regeneration and Local Services,Spatial Policy Planning Assets & Environment,31200,North Pennines Core,Supplies and Services,304403,Equipment and Materials,10-Nov-16,5466906267,AMAZON UK RETAIL AMAZO,5999,Other consumables,24.99,0,24.99
Resources,I.C.T. Services,69010,Administration,Supplies and Services,304403,Equipment and Materials,10-Nov-16,5466906293,ADOBE CAPTIVATE SUBS,5734,Other consumables,22.86,0,22.86
Resources,I.C.T. Services,69010,Administration,Supplies and Services,312011,Newspapers Books and Periodicals,10-Nov-16,5466906299,Amazon UK Marketplace,5942,Books-school library,0.98,0,0.98
Resources,I.C.T. Services,69010,Administration,Supplies and Services,328041,Clothing Uniforms and Laundry,10-Nov-16,5466906307,ESCAPADERS LTD,5631,Clothing uniforms and laundry,-9,0,-9
Regeneration and Local Services,Spatial Policy Planning Assets & Environment,31200,North Pennines Core,Transport,235057,Public Transport,10-Nov-16,5466906321,EXPRESS ONBOARD,4112,Staff travelling,22,0,22
Regeneration and Local Services,Spatial Policy Planning Assets & Environment,31200,North Pennines Core,Transport,235057,Public Transport,10-Nov-16,5466906325,VIRGINTRAINSEC KGX SHE,4112,Staff travelling,139,0,139
Children and Young Peoples Services,Childrens Services,88003,Peterlee 0 - 5,Supplies and Services,304259,Equipment and Materials,10-Nov-16,5466906391,SUNDERLAND CC,9399,Equipment-purchase and rental,20,0,20
Children and Young Peoples Services,Childrens Services,85801,CDYOS - Support,Supplies and Services,304259,Equipment and Materials,10-Nov-16,5466906401,B&Q DIRECT,5211,Equipment-purchase and rental,188.9,0,188.9
Regeneration and Local Services,Transport and Contracted Services,31701,Care Connect All Localities,Supplies and Services,344033,Telephones,10-Nov-16,5466906405,BT BILL PAYMENT 2,4812,Telephones general-all costs,129.28,21.55,107.73
Regeneration and Local Services,Transport and Contracted Services,31701,Care Connect All Localities,Supplies and Services,344033,Telephones,10-Nov-16,5466906409,BT BILL PAYMENT 2,4812,Telephones general-all costs,129.28,21.55,107.73
Regeneration and Local Services,Direct Services,10301,C&G - North Grounds Maintenance,Supplies and Services,328041,Clothing Uniforms and Laundry,10-Nov-16,5466906437,THOMAS OWEN & SONS /N/,5611,Clothing uniforms and laundry,492.48,82.08,410.4
Regeneration and Local Services,Direct Services,10301,C&G - North Grounds Maintenance,Supplies and Services,304999,Equipment and Materials,10-Nov-16,5466906443,GUSTHARTS CHAINSAW CTR,7699,Misc equipment tools and materials,171.84,28.64,143.2
Children and Young Peoples Services,Childrens Services,74000,TTF-Attachment and Results,Supplies and Services,304259,Equipment and Materials,10-Nov-16,5466906567,B&Q DIRECT,5211,Equipment-purchase and rental,145,0,145
Regeneration and Local Services,Culture & Sport,10605,Woodhouse Close Leisure Complex,Supplies and Services,324117,Provisions,10-Nov-16,5466906595,BRAKE BROS LTD,5811,Catering costs - provisions,46.86,7.81,39.05
Regeneration and Local Services,Culture & Sport,10605,Woodhouse Close Leisure Complex,Supplies and Services,324117,Provisions,10-Nov-16,5466906595 - 1,BRAKE BROS LTD,5811,Catering costs - provisions,62.73,,62.73
Children and Young Peoples Services,Childrens Services,85555,Child Protection Team Peterlee,Supplies and Services,308011,Furniture,10-Nov-16,5466906601,WWW.KIDDIEBEDS.CO.UK,1750,Furniture repair and replacement,"1,263.01",210.5,1052.51
Children and Young Peoples Services,Education,78557,Adult Employer Responsive,Employees,40149,Recruitment Instruction and Training,10-Nov-16,5466906607,HTTP://ACE.APPRENTICES,7392,Training-all costs,"1,100.00",0,1100
Regeneration and Local Services,Economic Development and Housing,30737,Durham Works Flexible Fund,Supplies and Services,328041,Clothing Uniforms and Laundry,10-Nov-16,5471820591,NEW LOOK INTERNET,5621,Clothing uniforms and laundry,45.97,0,45.97
Regeneration and Local Services,Economic Development and Housing,31578,Client Travel Reimbursements,Supplies and Services,384999,Miscellaneous Expenses,10-Nov-16,5471820827,RYANAIR,3246,Other expenses,30.59,0,30.59
Regeneration and Local Services,Culture & Sport,26591,Hardwick Park,Supplies and Services,304245,Equipment and Materials,10-Nov-16,5471821271,AMAZON UK RETAIL AMAZO,5999,Materials,50.4,0,50.4
Regeneration and Local Services,Economic Development and Housing,30699,Business Growth and Innovation General,Supplies and Services,336005,Advertising,11-Nov-16,5466905741,ADROLL,7311,Advertising other than for staff,0.07,0,0.07
Regeneration and Local Services,RED Departmental Support Costs,30020,Centrally Managed Costs,Supplies and Services,372009,Subscriptions,11-Nov-16,5466905879,WEB NETWORKSOLUTIONS,5968,Subscriptions,3.02,0,3.02
Children and Young Peoples Services,Education,71801,Selby Cottage Childcare Centre,Supplies and Services,324117,Provisions,11-Nov-16,5471820205,TESCO STORES 2278,5411,Catering costs - provisions,4.08,0,4.08
Children and Young Peoples Services,Education,71801,Selby Cottage Childcare Centre,Supplies and Services,304259,Equipment and Materials,11-Nov-16,5471820209,WILKO RETAIL LIMIT,5722,Equipment-purchase and rental,50.8,0,50.8
Regeneration and Local Services,Economic Development and Housing,37271,Group Repair,Income,720130,Fees and Charges,11-Nov-16,5471820235,WWW.MONEYCLAIM.GOV,9399,Fees-legal,60,0,60
Children and Young Peoples Services,Childrens Services,85342,9 Cedar Drive Aycliffe,Employees,40149,Recruitment Instruction and Training,11-Nov-16,5471820289,PARENTPAY.COM,8220,Training-all costs,20,0,20
Regeneration and Local Services,Economic Development and Housing,30674,Business Services General,Transport,235057,Public Transport,11-Nov-16,5471820315,INTERNATIONAL CENT,7523,Staff travelling,2.5,0.42,2.08
Regeneration and Local Services,Economic Development and Housing,30737,Durham Works Flexible Fund,Supplies and Services,384999,Miscellaneous Expenses,11-Nov-16,5471820357,GO NORTH EAST - V/T,4131,Other expenses,18.4,0,18.4
Regeneration and Local Services,Direct Services,21242,Catering - County Hall,Supplies and Services,324117,Provisions,11-Nov-16,5471820365,JR HOLLAND FOODSERVICE,5422,Catering costs - provisions,81.6,0,81.6
Regeneration and Local Services,Direct Services,21242,Catering - County Hall,Supplies and Services,324117,Provisions,11-Nov-16,5471820373,JR HOLLAND FOODSERVICE,5422,Catering costs - provisions,13.16,0,13.16
Regeneration and Local Services,Direct Services,21242,Catering - County Hall,Supplies and Services,324117,Provisions,11-Nov-16,5471820379,JR HOLLAND FOODSERVICE,5422,Catering costs - provisions,6.24,0,6.24
Regeneration and Local Services,Direct Services,21242,Catering - County Hall,Supplies and Services,324117,Provisions,11-Nov-16,5471820385,BRAKE BROS LTD,5811,Catering costs - provisions,163.96,0,163.96
Children and Young Peoples Services,Childrens Services,85622,Families First Ferryhill,Supplies and Services,384999,Miscellaneous Expenses,11-Nov-16,5471820393,DURHAM COUNTY COUNCIL,9399,Other expenses,12,0,12
Children and Young Peoples Services,Childrens Services,85622,Families First Ferryhill,Supplies and Services,384999,Miscellaneous Expenses,11-Nov-16,5471820399,DURHAM COUNTY COUNCIL,9399,Other expenses,12,0,12
Children and Young Peoples Services,Childrens Services,85622,Families First Ferryhill,Supplies and Services,384999,Miscellaneous Expenses,11-Nov-16,5471820403,DURHAM COUNTY COUNCIL,9399,Other expenses,12,0,12
Children and Young Peoples Services,Childrens Services,85622,Families First Ferryhill,Supplies and Services,384999,Miscellaneous Expenses,11-Nov-16,5471820409,DURHAM COUNTY COUNCIL,9399,Other expenses,12,0,12
Children and Young Peoples Services,Childrens Services,85622,Families First Ferryhill,Supplies and Services,384999,Miscellaneous Expenses,11-Nov-16,5471820413,DURHAM COUNTY COUNCIL,9399,Other expenses,12,0,12
Children and Young Peoples Services,Childrens Services,85622,Families First Ferryhill,Supplies and Services,384999,Miscellaneous Expenses,11-Nov-16,5471820419,DURHAM COUNTY COUNCIL,9399,Other expenses,12,0,12
Children and Young Peoples Services,Childrens Services,85622,Families First Ferryhill,Supplies and Services,384999,Miscellaneous Expenses,11-Nov-16,5471820421,DURHAM COUNTY COUNCIL,9399,Other expenses,12,0,12
Children and Young Peoples Services,Childrens Services,85622,Families First Ferryhill,Supplies and Services,384999,Miscellaneous Expenses,11-Nov-16,5471820427,DURHAM COUNTY COUNCIL,9399,Other expenses,12,0,12
Children and Young Peoples Services,Childrens Services,85622,Families First Ferryhill,Supplies and Services,384999,Miscellaneous Expenses,11-Nov-16,5471820435,DURHAM COUNTY COUNCIL,9399,Other expenses,12,0,12
Children and Young Peoples Services,Childrens Services,85622,Families First Ferryhill,Supplies and Services,384999,Miscellaneous Expenses,11-Nov-16,5471820439,DURHAM COUNTY COUNCIL,9399,Other expenses,12,2,10
Children and Young Peoples Services,Childrens Services,85351,Framwellgate Moor CU,Supplies and Services,304403,Equipment and Materials,11-Nov-16,5471820529,WWW ESPARES CO UK,5065,Other consumables,23.24,0,23.24
Regeneration and Local Services,Culture & Sport,11232,Locality 3 Team Management,Supplies and Services,304259,Equipment and Materials,11-Nov-16,5471820577,HALFORDS 0550,5940,Equipment-purchase and rental,289.99,48.33,241.66
Children and Young Peoples Services,Education,71732,Dean Bank Childcare,Supplies and Services,312011,Newspapers Books and Periodicals,11-Nov-16,5471820585,HOME BARGAINS SPENNYMO,5251,Books-school library,12.9,2.15,10.75
Regeneration and Local Services,Economic Development and Housing,30737,Durham Works Flexible Fund,Transport,235005,Public Transport,11-Nov-16,5471820595,ARRIVA PASSENGER S,7538,Contract tickets,25,0,25
Children and Young Peoples Services,Childrens Services,85957,Secure Management,Supplies and Services,328041,Clothing Uniforms and Laundry,11-Nov-16,5471820633,SELECT,5691,Clothing uniforms and laundry,158.86,26.48,132.38
Children and Young Peoples Services,Childrens Services,85957,Secure Management,Supplies and Services,324117,Provisions,11-Nov-16,5471820637,TESCO STORES 6329,5411,Catering costs - provisions,101.19,0,101.19
Children and Young Peoples Services,Childrens Services,85957,Secure Management,Supplies and Services,328041,Clothing Uniforms and Laundry,11-Nov-16,5471820643,VERY.CO.UK,5964,Clothing uniforms and laundry,55,0,55
Children and Young Peoples Services,Childrens Services,85957,Secure Management,Supplies and Services,328041,Clothing Uniforms and Laundry,11-Nov-16,5471820647,VERY.CO.UK,5964,Clothing uniforms and laundry,3.99,0,3.99
Children and Young Peoples Services,Childrens Services,85957,Secure Management,Supplies and Services,328041,Clothing Uniforms and Laundry,11-Nov-16,5471820655,WWW.FOOTLOCKER.EU,5661,Clothing uniforms and laundry,-129.99,0,-129.99
Children and Young Peoples Services,Childrens Services,85957,Secure Management,Supplies and Services,328041,Clothing Uniforms and Laundry,11-Nov-16,5471820659,VERY.CO.UK,5964,Clothing uniforms and laundry,-50,0,-50
Regeneration and Local Services,Culture & Sport,11060,Hardwick Park Catering,Supplies and Services,324117,Provisions,11-Nov-16,5471820685,JR HOLLAND FOODSERVICE,5422,Catering costs - provisions,12.02,0,12.02
Regeneration and Local Services,Culture & Sport,11060,Hardwick Park Catering,Supplies and Services,324117,Provisions,11-Nov-16,5471820689,BRAKE BROS LTD,5811,Catering costs - provisions,54.72,9.12,45.6
Regeneration and Local Services,Culture & Sport,11060,Hardwick Park Catering,Supplies and Services,324117,Provisions,11-Nov-16,5471820689 - 1,BRAKE BROS LTD,5811,Catering costs - provisions,125.71,,125.71
Regeneration and Local Services,Direct Services,21234,Catering - Locomotion,Supplies and Services,324117,Provisions,11-Nov-16,5471820715,BRAKE BROS LTD,5811,Catering costs - provisions,55.8,9.3,46.5
Regeneration and Local Services,Direct Services,21234,Catering - Locomotion,Supplies and Services,324117,Provisions,11-Nov-16,5471820715 - 1,BRAKE BROS LTD,5811,Catering costs - provisions,110.74,,110.74
Regeneration and Local Services,Direct Services,21234,Catering - Locomotion,Supplies and Services,324117,Provisions,11-Nov-16,5471820721,BRAKE BROS LTD,5811,Catering costs - provisions,99.42,16.57,82.85
Regeneration and Local Services,Direct Services,21234,Catering - Locomotion,Supplies and Services,324117,Provisions,11-Nov-16,5471820721 - 1,BRAKE BROS LTD,5811,Catering costs - provisions,58.59,,58.59
Regeneration and Local Services,Economic Development and Housing,31576,B& B - Temp Accom,Supplies and Services,364320,Grants to Voluntary Organisations,11-Nov-16,5471820763,MANOR HOUSE,5812,Accommodation assistance,50,0,50
Regeneration and Local Services,Direct Services,10525,Catering - Green Lane,Supplies and Services,324117,Provisions,11-Nov-16,5471820769,JR HOLLAND FOODSERVICE,5422,Catering costs - provisions,53.39,0,53.39
Regeneration and Local Services,Direct Services,10525,Catering - Green Lane,Supplies and Services,324117,Provisions,11-Nov-16,5471820775,BRAKE BROS LTD,5811,Catering costs - provisions,473.65,0,473.65
Regeneration and Local Services,Economic Development and Housing,31500,Housing Solutions - Core Team,Supplies and Services,328041,Clothing Uniforms and Laundry,11-Nov-16,5471820831,WWW.SCHOOLWEARSOLUTION,5641,Clothing uniforms and laundry,70.2,11.7,58.5
Regeneration and Local Services,Economic Development and Housing,31500,Housing Solutions - Core Team,Supplies and Services,328041,Clothing Uniforms and Laundry,11-Nov-16,5471820831 - 1,WWW.SCHOOLWEARSOLUTION,5641,Clothing uniforms and laundry,88.49,,88.49
Regeneration and Local Services,Direct Services,10367,C&G - South Grounds Maintenance,Supplies and Services,304259,Equipment and Materials,11-Nov-16,5471820857,SCREWFIX,5211,Equipment-purchase and rental,40.97,0,40.97
Children and Young Peoples Services,Childrens Services,74000,TTF-Attachment and Results,Supplies and Services,308011,Furniture,11-Nov-16,5471820919,FRANKS THE FLOORING ST,5713,Furniture repair and replacement,140,23.33,116.67
Resources,I.C.T. Services,69010,Administration,Transport,235057,Public Transport,11-Nov-16,5471820923,NATIONAL RAILCARD,4112,Staff travelling,30,0,30
Resources,I.C.T. Services,69010,Administration,Supplies and Services,304259,Equipment and Materials,11-Nov-16,5471820927,DISCLOSURE SCOT,9399,Equipment-purchase and rental,25,0,25
Resources,I.C.T. Services,69010,Administration,Supplies and Services,304259,Equipment and Materials,11-Nov-16,5471820929,DISCLOSURE SCOT,9399,Equipment-purchase and rental,25,0,25
Regeneration and Local Services,Culture & Sport,54399,Local Delivery-Libraries,Supplies and Services,312009,Newspapers Books and Periodicals,11-Nov-16,5471820951,AMAZON UK RETAIL AMAZO,5999,Newspapers books and periodicals,5.56,0,5.56
Children and Young Peoples Services,Childrens Services,85801,CDYOS - Support,Supplies and Services,304403,Equipment and Materials,11-Nov-16,5471821015,WWW.TREVORGREEN.CO.UK,5947,Other consumables,61.55,0,61.55
Children and Young Peoples Services,Childrens Services,85801,CDYOS - Support,Supplies and Services,384999,Miscellaneous Expenses,11-Nov-16,5471821017,HOBBYCRAFT (INTERNET),5970,Other expenses,29.79,0,29.79
Regeneration and Local Services,Direct Services,21324,Catering - Meadowfield,Supplies and Services,324117,Provisions,11-Nov-16,5471821035,JR HOLLAND FOODSERVICE,5422,Catering costs - provisions,36.52,0,36.52
Regeneration and Local Services,Direct Services,21324,Catering - Meadowfield,Supplies and Services,324117,Provisions,11-Nov-16,5471821045,JR HOLLAND FOODSERVICE,5422,Catering costs - provisions,9.87,0,9.87
Children and Young Peoples Services,Childrens Services,85333,Coxhoe Satelite Home,Supplies and Services,324117,Provisions,11-Nov-16,5471821055,ALDI,5411,Catering costs - provisions,32.48,0,32.48
Children and Young Peoples Services,Childrens Services,85333,Coxhoe Satelite Home,Supplies and Services,328041,Clothing Uniforms and Laundry,11-Nov-16,5471821069,B & M RETAIL,5310,Clothing uniforms and laundry,20.8,0,20.8
Regeneration and Local Services,Economic Development and Housing,30737,Durham Works Flexible Fund,Transport,235057,Public Transport,11-Nov-16,5471821173,WWW.SIMPLYGO.COM,4131,Staff travelling,86.54,0,86.54
Regeneration and Local Services,Culture & Sport,11225,Locality 2 Team Management,Supplies and Services,304259,Equipment and Materials,11-Nov-16,5471821293,WILKO RETAIL LIMIT,5722,Equipment-purchase and rental,36,0,36
Children and Young Peoples Services,Childrens Services,85955,Auckland,Supplies and Services,384999,Miscellaneous Expenses,12-Nov-16,5471820663,Amazon UK Marketplace,5942,Other expenses,12.49,0,12.49
Children and Young Peoples Services,Childrens Services,85955,Auckland,Supplies and Services,384999,Miscellaneous Expenses,12-Nov-16,5471820667,Amazon UK Marketplace,5942,Other expenses,15.49,0,15.49
Children and Young Peoples Services,Childrens Services,85957,Secure Management,Supplies and Services,324117,Provisions,12-Nov-16,5471820669,TESCO STORES 6329,5411,Catering costs - provisions,77.59,0,77.59
Regeneration and Local Services,Direct Services,10525,Catering - Green Lane,Supplies and Services,324117,Provisions,12-Nov-16,5471820787,BRAKE BROS LTD,5811,Catering costs - provisions,-2.93,0,-2.93
Resources,I.C.T. Services,69010,Administration,Supplies and Services,304403,Equipment and Materials,12-Nov-16,5471820933,Amazon UK Marketplace,5999,Other consumables,-43.98,0,-43.98
Children and Young Peoples Services,Childrens Services,85333,Coxhoe Satelite Home,Supplies and Services,328041,Clothing Uniforms and Laundry,12-Nov-16,5471821061,PAYPAL DRAGONSOULS,5699,Clothing uniforms and laundry,3.72,0,3.72
Children and Young Peoples Services,Childrens Services,85333,Coxhoe Satelite Home,Supplies and Services,304259,Equipment and Materials,12-Nov-16,5471821065,PAYPAL DIANZI247,5732,Equipment-purchase and rental,9.45,0,9.45
Children and Young Peoples Services,Childrens Services,88063,Bishop Auckland 0 - 5,Supplies and Services,324117,Provisions,13-Nov-16,5471820817,WM MORRISON 040,5411,Catering costs - provisions,32.47,0,32.47
Regeneration and Local Services,Culture & Sport,54399,Local Delivery-Libraries,Supplies and Services,312009,Newspapers Books and Periodicals,13-Nov-16,5471820957,Amazon UK Marketplace,5942,Newspapers books and periodicals,2.8,0,2.8
Children and Young Peoples Services,Childrens Services,85801,CDYOS - Support,Supplies and Services,324117,Provisions,13-Nov-16,5471821021,ASDA HOME SHOPPING,5411,Catering costs - provisions,25,0,25
Children and Young Peoples Services,Childrens Services,85801,CDYOS - Support,Supplies and Services,324117,Provisions,13-Nov-16,5471821025,ASDA HOME SHOPPING,5411,Catering costs - provisions,-8,0,-8
Children and Young Peoples Services,Childrens Services,85333,Coxhoe Satelite Home,Supplies and Services,312011,Newspapers Books and Periodicals,13-Nov-16,5471821075,Amazon UK Marketplace,5942,Books-school library,84.73,0,84.73
Regeneration and Local Services,Culture & Sport,11086,Positive Futures,Supplies and Services,324117,Provisions,13-Nov-16,5471821123,W M MORRISONS,5411,Catering costs - provisions,20.61,0,20.61
Adult and Health Services,Planning & Service Strategy,54630,Comm Marketing and Information,Supplies and Services,336005,Advertising,13-Nov-16,5471821255,FACEBK RV4WWASTS2,7311,Advertising other than for staff,200.17,0,200.17
Resources,I.C.T. Services,69010,Administration,Supplies and Services,352001,Conference Expenses,13-Nov-16,5478824581,COPTHORNE HOTEL ME,7011,Conferencesseminars fees etc,89.01,0,89.01
Resources,I.C.T. Services,69010,Administration,Supplies and Services,352001,Conference Expenses,13-Nov-16,5478824589,COPTHORNE HOTEL ME,7011,Conferencesseminars fees etc,79,0,79
Children and Young Peoples Services,Childrens Services,88093,Newton Aycliffe 0 - 5,Supplies and Services,324117,Provisions,14-Nov-16,5478823951,ASDA HOME SHOPPING,5411,Catering costs - provisions,28.8,0,28.8
Children and Young Peoples Services,Childrens Services,88093,Newton Aycliffe 0 - 5,Supplies and Services,324117,Provisions,14-Nov-16,5478823953,ASDA HOME SHOPPING,5411,Catering costs - provisions,-0.83,0,-0.83
Regeneration and Local Services,Economic Development and Housing,30699,Business Growth and Innovation General,Supplies and Services,342033,Computers and Communications,14-Nov-16,5478824003,WATCHFULPAYPAL,7379,Computer hardware,15.97,0,15.97
Regeneration and Local Services,Economic Development and Housing,30674,Business Services General,Supplies and Services,348037,Subsistence,14-Nov-16,5478824047,FINBARRS RESTAURAN,5812,Subsistence,308.55,51.43,257.12
Regeneration and Local Services,Direct Services,21242,Catering - County Hall,Supplies and Services,324117,Provisions,14-Nov-16,5478824091,BRAMBLES FOODS LTD,5499,Catering costs - provisions,628.92,0,628.92
Regeneration and Local Services,Direct Services,21242,Catering - County Hall,Supplies and Services,324117,Provisions,14-Nov-16,5478824095,JR HOLLAND FOODSERVICE,5422,Catering costs - provisions,80.45,0,80.45
Regeneration and Local Services,Direct Services,21242,Catering - County Hall,Supplies and Services,324117,Provisions,14-Nov-16,5478824103,JR HOLLAND FOODSERVICE,5422,Catering costs - provisions,13.52,0,13.52
Regeneration and Local Services,Direct Services,21242,Catering - County Hall,Supplies and Services,324117,Provisions,14-Nov-16,5478824107,BRAKE BROS LTD,5811,Catering costs - provisions,244.2,40.7,203.5
Regeneration and Local Services,Direct Services,21242,Catering - County Hall,Supplies and Services,324117,Provisions,14-Nov-16,5478824107 - 1,BRAKE BROS LTD,5811,Catering costs - provisions,303.02,,303.02
Regeneration and Local Services,Direct Services,21242,Catering - County Hall,Supplies and Services,324117,Provisions,14-Nov-16,5478824121,BRAKE BROS LTD,5811,Catering costs - provisions,223.47,0,223.47
Children and Young Peoples Services,Education,71732,Dean Bank Childcare,Supplies and Services,324117,Provisions,14-Nov-16,5478824241,ASDA HOME SHOPPING,5411,Catering costs - provisions,45.73,0,45.73
Resources,Legal & Democratic Services,67910,Democratic Representation,Supplies and Services,324117,Provisions,14-Nov-16,5478824247,SAINSBURYS 2199,5411,Catering costs - provisions,12,0,12
Regeneration and Local Services,Culture & Sport,11191,Wellbeing4Life,Supplies and Services,324117,Provisions,14-Nov-16,5478824269,ASDA STORES,5411,Catering costs - provisions,29.6,0,29.6
Regeneration and Local Services,Economic Development and Housing,30737,Durham Works Flexible Fund,Transport,230031,Contract Hire,14-Nov-16,5478824297,ARRIVA PASSENGER S,7538,Pupils-transport to play fields etc,62,0,62
Regeneration and Local Services,Culture & Sport,11060,Hardwick Park Catering,Supplies and Services,324117,Provisions,14-Nov-16,5478824307,JR HOLLAND FOODSERVICE,5422,Catering costs - provisions,15.8,0,15.8
Regeneration and Local Services,Culture & Sport,11060,Hardwick Park Catering,Supplies and Services,324117,Provisions,14-Nov-16,5478824311,BRAKE BROS LTD,5811,Catering costs - provisions,165.3,27.55,137.75
Regeneration and Local Services,Culture & Sport,11060,Hardwick Park Catering,Supplies and Services,324117,Provisions,14-Nov-16,5478824311 - 1,BRAKE BROS LTD,5811,Catering costs - provisions,75.98,,75.98
Resources,I.C.T. Services,70204,Operations - System & Repairs Team,Supplies and Services,304303,Equipment and Materials,14-Nov-16,5478824347,CRUSADER LTD,7372,Network for resale,48,8,40
Resources,I.C.T. Services,65335,Operations - System & Repairs Trading,Supplies and Services,304639,Equipment and Materials,14-Nov-16,5478824349,THE REPLACE BASE LTD,5999,Technicians-supplies,236.7,39.45,197.25
Regeneration and Local Services,Direct Services,21234,Catering - Locomotion,Supplies and Services,324117,Provisions,14-Nov-16,5478824357,BRAMBLES FOODS LTD,5499,Catering costs - provisions,265.62,0,265.62
Regeneration and Local Services,Direct Services,10525,Catering - Green Lane,Supplies and Services,324117,Provisions,14-Nov-16,5478824399,BRAMBLES FOODS LTD,5499,Catering costs - provisions,97.06,0,97.06
Adult and Health Services,Head of Adults,55302,Durham Pathways,Supplies and Services,312011,Newspapers Books and Periodicals,14-Nov-16,5478824433,Amazon UK Marketplace,5942,Books-school library,4.99,0,4.99
Adult and Health Services,Head of Adults,55302,Durham Pathways,Supplies and Services,304403,Equipment and Materials,14-Nov-16,5478824443,Amazon UK Marketplace,5942,Other consumables,35.99,0,35.99
Adult and Health Services,Head of Adults,55302,Durham Pathways,Supplies and Services,304649,Equipment and Materials,14-Nov-16,5478824445,Amazon UK Marketplace,5942,Toys,1.49,0,1.49
Children and Young Peoples Services,Childrens Services,88043,Consett 0 - 5,Supplies and Services,328041,Clothing Uniforms and Laundry,14-Nov-16,5478824535,B&M RETAIL,5310,Clothing uniforms and laundry,29.96,0,29.96
Children and Young Peoples Services,Childrens Services,88043,Consett 0 - 5,Supplies and Services,304403,Equipment and Materials,14-Nov-16,5478824539,TESCO DIRECT,5999,Other consumables,-29.94,0,-29.94
Children and Young Peoples Services,Childrens Services,88043,Consett 0 - 5,Supplies and Services,304403,Equipment and Materials,14-Nov-16,5478824543,TESCO DIRECT,5999,Other consumables,-32.94,0,-32.94
Children and Young Peoples Services,Childrens Services,71616,Seaham Childrens Centre,Supplies and Services,304259,Equipment and Materials,14-Nov-16,5478824567,WILKO RETAIL LIMIT,5722,Equipment-purchase and rental,10,0,10
Regeneration and Local Services,Culture & Sport,54399,Local Delivery-Libraries,Supplies and Services,312009,Newspapers Books and Periodicals,14-Nov-16,5478824639,Amazon Prime,5968,Newspapers books and periodicals,7.99,0,7.99
Regeneration and Local Services,Culture & Sport,54399,Local Delivery-Libraries,Supplies and Services,312009,Newspapers Books and Periodicals,14-Nov-16,5478824647,AMAZON UK RETAIL AMAZO,5999,Newspapers books and periodicals,9.37,0,9.37
Regeneration and Local Services,Culture & Sport,54235,Bp Auckland Town Hall Cafe,Supplies and Services,324117,Provisions,14-Nov-16,5478824749,JR HOLLAND FOODSERVICE,5422,Catering costs - provisions,15.56,0,15.56
Regeneration and Local Services,Direct Services,21324,Catering - Meadowfield,Supplies and Services,324117,Provisions,14-Nov-16,5478824783,BRAMBLES FOODS LTD,5499,Catering costs - provisions,114.08,0,114.08
Regeneration and Local Services,Culture & Sport,11086,Positive Futures,Supplies and Services,324117,Provisions,14-Nov-16,5478824923,TESCO STORES 6502,5411,Catering costs - provisions,1.37,0,1.37
Regeneration and Local Services,Economic Development and Housing,30737,Durham Works Flexible Fund,Supplies and Services,324117,Provisions,14-Nov-16,5478825007,CO-OP GROUP 310027,5411,Catering costs - provisions,92,15.33,76.67
Regeneration and Local Services,Direct Services,21235,Catering - Wharton Park,Supplies and Services,324117,Provisions,14-Nov-16,5478825067,BRAMBLES FOODS LTD,5499,Catering costs - provisions,54.26,0,54.26
Regeneration and Local Services,Culture & Sport,26591,Hardwick Park,Supplies and Services,332047,Printing Stationery and Gen Off Exps,14-Nov-16,5478825089,Amazon UK Marketplace,5942,Stationery,4.04,0,4.04
Regeneration and Local Services,Culture & Sport,10605,Woodhouse Close Leisure Complex,Supplies and Services,324117,Provisions,14-Nov-16,5478825109,JR HOLLAND FOODSERVICE,5422,Catering costs - provisions,31.87,0,31.87
Regeneration and Local Services,Culture & Sport,11225,Locality 2 Team Management,Supplies and Services,304259,Equipment and Materials,14-Nov-16,5478825123,WILKO RETAIL LIMIT,5722,Equipment-purchase and rental,25,0,25
Children and Young Peoples Services,Childrens Services,88033,Durham 0 - 5,Supplies and Services,324117,Provisions,14-Nov-16,5478825129,TESCO STORES 5970,5411,Catering costs - provisions,19.64,0,19.64
Regeneration and Local Services,Economic Development and Housing,30749,Employability - Youth Contract,Supplies and Services,324117,Provisions,14-Nov-16,5478825153,CO-OP GROUP 310015,5411,Catering costs - provisions,25,0,25
Children and Young Peoples Services,Childrens Services,88003,Peterlee 0 - 5,Supplies and Services,304259,Equipment and Materials,14-Nov-16,5478825171,WILKO.COM,5722,Equipment-purchase and rental,57,9.5,47.5
Regeneration and Local Services,Economic Development and Housing,30699,Business Growth and Innovation General,Supplies and Services,342033,Computers and Communications,15-Nov-16,5478824007,WATCHFULPAYPAL,7379,Computer hardware,0.44,0,0.44
Regeneration and Local Services,Spatial Policy Planning Assets & Environment,31222,North Pennines Allen Valleys Landscape Partnership,Supplies and Services,324117,Provisions,15-Nov-16,5482191131,WAITROSE 782,5411,Catering costs - provisions,31.94,0,31.94
Children and Young Peoples Services,Education,76006,Music Service Events,Supplies and Services,384199,Miscellaneous Expenses,15-Nov-16,5482191151,WWW.TROPHYSTORE.CO.UK,5947,Other hired and contracted services,16.48,2.75,13.73
Regeneration and Local Services,Direct Services,21242,Catering - County Hall,Supplies and Services,324117,Provisions,15-Nov-16,5482191159,FREEMAN CATERING BUTCH,5422,Catering costs - provisions,83.98,0,83.98
Regeneration and Local Services,Direct Services,21242,Catering - County Hall,Supplies and Services,324117,Provisions,15-Nov-16,5482191163,FREEMAN CATERING BUTCH,5422,Catering costs - provisions,28.86,0,28.86
Regeneration and Local Services,Direct Services,21242,Catering - County Hall,Supplies and Services,324117,Provisions,15-Nov-16,5482191169,JR HOLLAND FOODSERVICE,5422,Catering costs - provisions,37.15,0,37.15
Regeneration and Local Services,Direct Services,21242,Catering - County Hall,Supplies and Services,324117,Provisions,15-Nov-16,5482191173,JR HOLLAND FOODSERVICE,5422,Catering costs - provisions,6.58,0,6.58
Regeneration and Local Services,Direct Services,21242,Catering - County Hall,Supplies and Services,324117,Provisions,15-Nov-16,5482191177,BRAKE BROS LTD,5811,Catering costs - provisions,202.33,0,202.33
Regeneration and Local Services,Culture & Sport,54812,Gala Theatre - Catering etc,Supplies and Services,324117,Provisions,15-Nov-16,5482191195,JR HOLLAND FOODSERVICE,5422,Catering costs - provisions,38.63,0,38.63
Regeneration and Local Services,Culture & Sport,54812,Gala Theatre - Catering etc,Supplies and Services,324117,Provisions,15-Nov-16,5482191205,BRAKE BROS LTD,5811,Catering costs - provisions,98.52,16.42,82.1
Regeneration and Local Services,Culture & Sport,54812,Gala Theatre - Catering etc,Supplies and Services,324117,Provisions,15-Nov-16,5482191205 - 1,BRAKE BROS LTD,5811,Catering costs - provisions,167.05,,167.05
Regeneration and Local Services,Culture & Sport,54812,Gala Theatre - Catering etc,Supplies and Services,324117,Provisions,15-Nov-16,5482191217,BRAKE BROS LTD,5811,Catering costs - provisions,50.44,0,50.44
Regeneration and Local Services,Direct Services,21242,Catering - County Hall,Supplies and Services,324117,Provisions,15-Nov-16,5482191235,SAINSBURYS 0776,5411,Catering costs - provisions,23.6,0,23.6
Regeneration and Local Services,Direct Services,21242,Catering - County Hall,Supplies and Services,328041,Clothing Uniforms and Laundry,15-Nov-16,5482191239,Argos Durham Arnis,5310,Clothing uniforms and laundry,7.99,0,7.99
Children and Young Peoples Services,Childrens Services,85351,Framwellgate Moor CU,Supplies and Services,324117,Provisions,15-Nov-16,5482191253,ASDA HOME SHOPPING,5411,Catering costs - provisions,157.57,0,157.57
Children and Young Peoples Services,Childrens Services,85351,Framwellgate Moor CU,Supplies and Services,324117,Provisions,15-Nov-16,5482191259,ASDA HOME SHOPPING,5411,Catering costs - provisions,-1.86,0,-1.86
Regeneration and Local Services,Economic Development and Housing,30749,Employability - Youth Contract,Supplies and Services,304403,Equipment and Materials,15-Nov-16,5482191311,FLEX E VOUCHERS,5947,Other consumables,100,0,100
Regeneration and Local Services,Economic Development and Housing,30749,Employability - Youth Contract,Transport,235005,Public Transport,15-Nov-16,5482191315,ARRIVA PASSENGER S,7538,Contract tickets,59,0,59
Children and Young Peoples Services,Education,71732,Dean Bank Childcare,Supplies and Services,324117,Provisions,15-Nov-16,5482191331,ASDA SUPERSTORE 4987,5411,Catering costs - provisions,25.07,0,25.07
Children and Young Peoples Services,Childrens Services,85955,Auckland,Supplies and Services,304259,Equipment and Materials,15-Nov-16,5482191387,Amazon UK Marketplace,5942,Equipment-purchase and rental,15.99,0,15.99
Children and Young Peoples Services,Childrens Services,85957,Secure Management,Supplies and Services,312011,Newspapers Books and Periodicals,15-Nov-16,5482191393,Amazon EU,5969,Books-school library,7.99,0,7.99
Children and Young Peoples Services,Childrens Services,85957,Secure Management,Supplies and Services,328041,Clothing Uniforms and Laundry,15-Nov-16,5482191397,WWW.FOOTASYLUM.COM,5941,Clothing uniforms and laundry,175.92,0,175.92
Regeneration and Local Services,Direct Services,10367,C&G - South Grounds Maintenance,Supplies and Services,304259,Equipment and Materials,15-Nov-16,5482191403,MKM PETERLEE,5211,Equipment-purchase and rental,249.5,41.58,207.92
Regeneration and Local Services,Direct Services,10301,C&G - North Grounds Maintenance,Supplies and Services,304403,Equipment and Materials,15-Nov-16,5482191409,BESCOL,5231,Other consumables,53.36,0,53.36
Regeneration and Local Services,Culture & Sport,11060,Hardwick Park Catering,Supplies and Services,324117,Provisions,15-Nov-16,5482191413,FREEMAN CATERING BUTCH,5422,Catering costs - provisions,27.42,0,27.42
Regeneration and Local Services,Culture & Sport,11060,Hardwick Park Catering,Supplies and Services,324117,Provisions,15-Nov-16,5482191421,JR HOLLAND FOODSERVICE,5422,Catering costs - provisions,53.97,0,53.97
Regeneration and Local Services,Culture & Sport,11060,Hardwick Park Catering,Supplies and Services,324117,Provisions,15-Nov-16,5482191427,BRAKE BROS LTD,5811,Catering costs - provisions,111.01,0,111.01
Resources,I.C.T. Services,65335,Operations - System & Repairs Trading,Supplies and Services,304639,Equipment and Materials,15-Nov-16,5482191441,THE REPLACE BASE LTD,5999,Technicians-supplies,19.92,3.32,16.6
Resources,I.C.T. Services,65335,Operations - System & Repairs Trading,Supplies and Services,304639,Equipment and Materials,15-Nov-16,5482191441 - 1,THE REPLACE BASE LTD,5999,Technicians-supplies,1.22,,1.22
Regeneration and Local Services,Economic Development and Housing,30762,Organisational Training & Development,Employees,40149,Recruitment Instruction and Training,15-Nov-16,5482191447,CITB,8220,Training-all costs,301,0,301
Regeneration and Local Services,Direct Services,21234,Catering - Locomotion,Supplies and Services,324117,Provisions,15-Nov-16,5482191461,BRAKE BROS LTD,5811,Catering costs - provisions,499.68,83.28,416.4
Regeneration and Local Services,Direct Services,21234,Catering - Locomotion,Supplies and Services,324117,Provisions,15-Nov-16,5482191461 - 1,BRAKE BROS LTD,5811,Catering costs - provisions,71.95,,71.95
Regeneration and Local Services,Culture & Sport,54819,Gala Theatre - Theatre,Supplies and Services,384999,Miscellaneous Expenses,15-Nov-16,5482191491,WWW.PROJECTEDIMAGE.COM,5946,Other expenses,24.6,4.1,20.5
Regeneration and Local Services,Direct Services,10525,Catering - Green Lane,Supplies and Services,324117,Provisions,15-Nov-16,5482191517,FREEMAN CATERING BUTCH,5422,Catering costs - provisions,27.56,0,27.56
Regeneration and Local Services,Direct Services,10525,Catering - Green Lane,Supplies and Services,324117,Provisions,15-Nov-16,5482191521,BRAKE BROS LTD,5811,Catering costs - provisions,182.94,30.49,152.45
Regeneration and Local Services,Direct Services,10525,Catering - Green Lane,Supplies and Services,324117,Provisions,15-Nov-16,5482191521 - 1,BRAKE BROS LTD,5811,Catering costs - provisions,184.52,,184.52
Adult and Health Services,Head of Adults,55302,Durham Pathways,Supplies and Services,304649,Equipment and Materials,15-Nov-16,5482191567,"Amazon Svcs Europe,SAR",5942,Toys,8.8,0,8.8
Children and Young Peoples Services,Childrens Services,88063,Bishop Auckland 0 - 5,Supplies and Services,384999,Miscellaneous Expenses,15-Nov-16,5482191581,WILKO RETAIL LIMIT,5722,Other expenses,12.75,0,12.75
Children and Young Peoples Services,Childrens Services,88063,Bishop Auckland 0 - 5,Supplies and Services,324117,Provisions,15-Nov-16,5482191587,WM MORRISON 040,5411,Catering costs - provisions,22.43,0,22.43
Children and Young Peoples Services,Childrens Services,85333,Coxhoe Satelite Home,Supplies and Services,324117,Provisions,15-Nov-16,5482191619,ALDI,5411,Catering costs - provisions,86.9,0,86.9
Children and Young Peoples Services,Childrens Services,85333,Coxhoe Satelite Home,Supplies and Services,328041,Clothing Uniforms and Laundry,15-Nov-16,5482191627,MATALAN,5691,Clothing uniforms and laundry,53.3,8.88,44.42
Children and Young Peoples Services,Childrens Services,85333,Coxhoe Satelite Home,Supplies and Services,328041,Clothing Uniforms and Laundry,15-Nov-16,5482191635,B & M RETAIL,5310,Clothing uniforms and laundry,5.77,0,5.77
Resources,Resources Management,69000,Resources Management,Supplies and Services,324117,Provisions,15-Nov-16,5482191643,COSTCUTTER 10823,5411,Catering costs - provisions,6.34,0,6.34
Children and Young Peoples Services,Childrens Services,88053,Stanley 0 - 5,Supplies and Services,324117,Provisions,15-Nov-16,5482191649,ASDA 4387,5411,Catering costs - provisions,22.95,0,22.95
Children and Young Peoples Services,Childrens Services,88053,Stanley 0 - 5,Supplies and Services,304999,Equipment and Materials,15-Nov-16,5482191655,BOOTS.COM,5912,Misc equipment tools and materials,19.99,0,19.99
Children and Young Peoples Services,Childrens Services,88053,Stanley 0 - 5,Supplies and Services,304403,Equipment and Materials,15-Nov-16,5482191659,TESCO DIRECT,5999,Other consumables,43.84,0,43.84
Regeneration and Local Services,Spatial Policy Planning Assets & Environment,31200,North Pennines Core,Third Party Payments,430100,Rendered by Private Contractors,15-Nov-16,5482191677,MAILCHIMP,7399,Payments to sub-contractors,162.39,27.07,135.32
Children and Young Peoples Services,Childrens Services,74000,TTF-Attachment and Results,Supplies and Services,304403,Equipment and Materials,15-Nov-16,5482191693,TESCO - Seller_IST_1_2,5999,Other consumables,144.99,24.17,120.82
Resources,I.C.T. Services,69010,Administration,Supplies and Services,312011,Newspapers Books and Periodicals,15-Nov-16,5482191703,Amazon UK Marketplace,5942,Books-school library,13.62,0,13.62
Resources,I.C.T. Services,69010,Administration,Supplies and Services,312011,Newspapers Books and Periodicals,15-Nov-16,5482191709,Amazon UK Marketplace,5942,Books-school library,158.4,0,158.4
Resources,I.C.T. Services,69010,Administration,Supplies and Services,312011,Newspapers Books and Periodicals,15-Nov-16,5482191715,Amazon UK Marketplace,5942,Books-school library,8.49,0,8.49
Resources,I.C.T. Services,69010,Administration,Supplies and Services,312011,Newspapers Books and Periodicals,15-Nov-16,5482191721,Amazon UK Marketplace,5942,Books-school library,1.88,0,1.88
Regeneration and Local Services,Culture & Sport,54399,Local Delivery-Libraries,Supplies and Services,312009,Newspapers Books and Periodicals,15-Nov-16,5482191761,Amazon UK Marketplace,5999,Newspapers books and periodicals,-2.8,0,-2.8
Regeneration and Local Services,Direct Services,21324,Catering - Meadowfield,Supplies and Services,324117,Provisions,15-Nov-16,5482191799,FREEMAN CATERING BUTCH,5422,Catering costs - provisions,62.43,0,62.43
Regeneration and Local Services,Direct Services,21324,Catering - Meadowfield,Supplies and Services,324117,Provisions,15-Nov-16,5482191807,FREEMAN CATERING BUTCH,5422,Catering costs - provisions,52.12,0,52.12
Regeneration and Local Services,Direct Services,21324,Catering - Meadowfield,Supplies and Services,324117,Provisions,15-Nov-16,5482191813,BRAKE BROS LTD,5811,Catering costs - provisions,86.16,0,86.16
Children and Young Peoples Services,Childrens Services,74000,TTF-Attachment and Results,Supplies and Services,308011,Furniture,15-Nov-16,5482191931,EDS BEDS LTD,5712,Furniture repair and replacement,91,0,91
Children and Young Peoples Services,Childrens Services,74000,TTF-Attachment and Results,Supplies and Services,304403,Equipment and Materials,15-Nov-16,5482191937,TESCO - Seller_IST_1_2,5999,Other consumables,144.99,0,144.99
Children and Young Peoples Services,Childrens Services,74000,TTF-Attachment and Results,Supplies and Services,304403,Equipment and Materials,15-Nov-16,5482191945,TESCO - Seller_IST_1_2,5999,Other consumables,109.99,0,109.99
Children and Young Peoples Services,Childrens Services,74000,TTF-Attachment and Results,Supplies and Services,304403,Equipment and Materials,15-Nov-16,5482191947,TESCO-Seller_IST_1_240,5999,Other consumables,17.98,0,17.98
Regeneration and Local Services,Direct Services,21235,Catering - Wharton Park,Supplies and Services,324117,Provisions,15-Nov-16,5482191967,JR HOLLAND FOODSERVICE,5422,Catering costs - provisions,32.45,0,32.45
Regeneration and Local Services,Direct Services,21235,Catering - Wharton Park,Supplies and Services,324117,Provisions,15-Nov-16,5482191973,BRAKE BROS LTD,5811,Catering costs - provisions,125.58,20.93,104.65
Regeneration and Local Services,Direct Services,21235,Catering - Wharton Park,Supplies and Services,324117,Provisions,15-Nov-16,5482191973 - 1,BRAKE BROS LTD,5811,Catering costs - provisions,8.51,,8.51
Regeneration and Local Services,Culture & Sport,10605,Woodhouse Close Leisure Complex,Supplies and Services,324117,Provisions,15-Nov-16,5482192013,FREEMAN CATERING BUTCH,5422,Catering costs - provisions,43.8,0,43.8
Regeneration and Local Services,Culture & Sport,54399,Local Delivery-Libraries,Supplies and Services,312009,Newspapers Books and Periodicals,15-Nov-16,5486518473,AMAZON UK RETAIL AMAZO,5999,Newspapers books and periodicals,35.94,0,35.94
Children and Young Peoples Services,Education,71801,Selby Cottage Childcare Centre,Supplies and Services,304999,Equipment and Materials,16-Nov-16,5486517457,BOOTS 0511,5912,Misc equipment tools and materials,34.99,0,34.99
Children and Young Peoples Services,Education,71801,Selby Cottage Childcare Centre,Supplies and Services,324117,Provisions,16-Nov-16,5486517461,ALDI,5411,Catering costs - provisions,8.08,0,8.08
Children and Young Peoples Services,Education,71801,Selby Cottage Childcare Centre,Supplies and Services,328041,Clothing Uniforms and Laundry,16-Nov-16,5486517467,POUNDLAND LTD 1330,5310,Clothing uniforms and laundry,45.15,0,45.15
Children and Young Peoples Services,Education,71801,Selby Cottage Childcare Centre,Supplies and Services,304259,Equipment and Materials,16-Nov-16,5486517469,WILKO RETAIL LIMIT,5722,Equipment-purchase and rental,69.56,0,69.56
Children and Young Peoples Services,Education,71801,Selby Cottage Childcare Centre,Supplies and Services,324117,Provisions,16-Nov-16,5486517475,ASDA HOME SHOPPING,5411,Catering costs - provisions,155.13,0,155.13
Transformation and Partnerships,Planning & Performance Division,60131,County Records,Supplies and Services,304403,Equipment and Materials,16-Nov-16,5486517535,PARKER MERCHANTING-DOM,5065,Other consumables,36,6,30
Regeneration and Local Services,Direct Services,10383,C&G - South Street Cleansing,Supplies and Services,304259,Equipment and Materials,16-Nov-16,5486517549,SCREWFIX,5211,Equipment-purchase and rental,32.97,5.5,27.47
Adult and Health Services,Head of Adults,52760,OP Management,Income,720130,Fees and Charges,16-Nov-16,5486517575,COUNTY COURT,9222,Fees-legal,255,0,255
Resources,Financial Services,65180,Collections,Income,720130,Fees and Charges,16-Nov-16,5486517581,COUNTY COURT,9222,Fees-legal,44,0,44
Regeneration and Local Services,Economic Development and Housing,30737,Durham Works Flexible Fund,Transport,230031,Contract Hire,16-Nov-16,5486517677,ARRIVA PASSENGER S,7538,Pupils-transport to play fields etc,7,0,7
Regeneration and Local Services,Direct Services,21242,Catering - County Hall,Supplies and Services,324117,Provisions,16-Nov-16,5486517683,JR HOLLAND FOODSERVICE,5422,Catering costs - provisions,148.91,0,148.91
Regeneration and Local Services,Direct Services,21242,Catering - County Hall,Supplies and Services,324117,Provisions,16-Nov-16,5486517695,JR HOLLAND FOODSERVICE,5422,Catering costs - provisions,31.35,0,31.35
Regeneration and Local Services,Direct Services,21242,Catering - County Hall,Supplies and Services,324117,Provisions,16-Nov-16,5486517699,BRAKE BROS LTD,5811,Catering costs - provisions,289.62,48.27,241.35
Regeneration and Local Services,Direct Services,21242,Catering - County Hall,Supplies and Services,324117,Provisions,16-Nov-16,5486517699 - 1,BRAKE BROS LTD,5811,Catering costs - provisions,110.91,,110.91
Regeneration and Local Services,Direct Services,21242,Catering - County Hall,Supplies and Services,324117,Provisions,16-Nov-16,5486517717,BRAKE BROS LTD,5811,Catering costs - provisions,127.71,0,127.71
Children and Young Peoples Services,Education,71732,Dean Bank Childcare,Supplies and Services,324117,Provisions,16-Nov-16,5486517833,CO-OP GROUP 010518,5411,Catering costs - provisions,5.47,0,5.47
Children and Young Peoples Services,Childrens Services,85332,Middlestone Moor CU,Supplies and Services,304259,Equipment and Materials,16-Nov-16,5486517847,CURRYS ONLINE,5732,Equipment-purchase and rental,151,0,151
Children and Young Peoples Services,Childrens Services,88094,Newton Aycliffe 5 - 19,Supplies and Services,304403,Equipment and Materials,16-Nov-16,5486517883,GRO HM PASSPORT OFFICE,9399,Other consumables,27.75,0,27.75
Children and Young Peoples Services,Childrens Services,85955,Auckland,Supplies and Services,384999,Miscellaneous Expenses,16-Nov-16,5486517915,Amazon UK Marketplace,5942,Other expenses,10.45,0,10.45
Children and Young Peoples Services,Childrens Services,85957,Secure Management,Supplies and Services,384999,Miscellaneous Expenses,16-Nov-16,5486517917,Amazon UK Marketplace,5942,Other expenses,28.99,0,28.99
Children and Young Peoples Services,Childrens Services,85957,Secure Management,Supplies and Services,384999,Miscellaneous Expenses,16-Nov-16,5486517921,Amazon UK Marketplace,5942,Other expenses,53.99,0,53.99
Children and Young Peoples Services,Childrens Services,85957,Secure Management,Supplies and Services,384999,Miscellaneous Expenses,16-Nov-16,5486517927,Amazon UK Marketplace,5942,Other expenses,57.55,0,57.55
Children and Young Peoples Services,Childrens Services,85957,Secure Management,Supplies and Services,384999,Miscellaneous Expenses,16-Nov-16,5486517931,Amazon EU,5969,Other expenses,15.57,0,15.57
Children and Young Peoples Services,Childrens Services,85957,Secure Management,Supplies and Services,324117,Provisions,16-Nov-16,5486517933,TESCO STORES 6329,5411,Catering costs - provisions,112.11,0,112.11
Children and Young Peoples Services,Childrens Services,85957,Secure Management,Supplies and Services,328041,Clothing Uniforms and Laundry,16-Nov-16,5486517941,NEXT DIRECTORY,5651,Clothing uniforms and laundry,28.99,0,28.99
Children and Young Peoples Services,Childrens Services,85957,Secure Management,Supplies and Services,328041,Clothing Uniforms and Laundry,16-Nov-16,5486517943,VERY.CO.UK,5964,Clothing uniforms and laundry,58,0,58
Children and Young Peoples Services,Childrens Services,85957,Secure Management,Supplies and Services,328041,Clothing Uniforms and Laundry,16-Nov-16,5486517949,VERY.CO.UK,5964,Clothing uniforms and laundry,15.99,0,15.99
Children and Young Peoples Services,Childrens Services,85957,Secure Management,Supplies and Services,328041,Clothing Uniforms and Laundry,16-Nov-16,5486517951,VERY.CO.UK,5964,Clothing uniforms and laundry,3.99,0,3.99
Regeneration and Local Services,Direct Services,10367,C&G - South Grounds Maintenance,Supplies and Services,324117,Provisions,16-Nov-16,5486517959,J M RAINE,5399,Catering costs - provisions,216.85,36.14,180.71
Regeneration and Local Services,Culture & Sport,11060,Hardwick Park Catering,Supplies and Services,324117,Provisions,16-Nov-16,5486517979,JR HOLLAND FOODSERVICE,5422,Catering costs - provisions,22.8,0,22.8
Regeneration and Local Services,Culture & Sport,11060,Hardwick Park Catering,Supplies and Services,324117,Provisions,16-Nov-16,5486517987,BRAKE BROS LTD,5811,Catering costs - provisions,28.5,4.75,23.75
Regeneration and Local Services,Culture & Sport,11060,Hardwick Park Catering,Supplies and Services,324117,Provisions,16-Nov-16,5486517987 - 1,BRAKE BROS LTD,5811,Catering costs - provisions,143.9,,143.9
Regeneration and Local Services,Economic Development and Housing,30762,Organisational Training & Development,Employees,40149,Recruitment Instruction and Training,16-Nov-16,5486518009,CITB,8220,Training-all costs,30,5,25
Regeneration and Local Services,Economic Development and Housing,30762,Organisational Training & Development,Employees,40149,Recruitment Instruction and Training,16-Nov-16,5486518013,CITB,8220,Training-all costs,30,5,25
Regeneration and Local Services,Direct Services,21234,Catering - Locomotion,Supplies and Services,324117,Provisions,16-Nov-16,5486518021,BRAKE BROS LTD,5811,Catering costs - provisions,88.68,14.78,73.9
Regeneration and Local Services,Direct Services,21234,Catering - Locomotion,Supplies and Services,324117,Provisions,16-Nov-16,5486518021 - 1,BRAKE BROS LTD,5811,Catering costs - provisions,111.08,,111.08
Regeneration and Local Services,Direct Services,10525,Catering - Green Lane,Supplies and Services,324117,Provisions,16-Nov-16,5486518149,JR HOLLAND FOODSERVICE,5422,Catering costs - provisions,43.57,0,43.57
Children and Young Peoples Services,Education,79581,Emotional Wellbeing Team,Supplies and Services,304649,Equipment and Materials,16-Nov-16,5486518175,Amazon UK Marketplace,5942,Toys,27.97,0,27.97
Children and Young Peoples Services,Education,79581,Emotional Wellbeing Team,Supplies and Services,304649,Equipment and Materials,16-Nov-16,5486518181,Amazon UK Marketplace,5942,Toys,21.99,0,21.99
Adult and Health Services,Head of Adults,55302,Durham Pathways,Supplies and Services,304649,Equipment and Materials,16-Nov-16,5486518187,Amazon UK Marketplace,5942,Toys,44.75,0,44.75
Adult and Health Services,Head of Adults,55302,Durham Pathways,Supplies and Services,304649,Equipment and Materials,16-Nov-16,5486518191,Amazon EU,5969,Toys,149.06,0,149.06
Children and Young Peoples Services,Childrens Services,88063,Bishop Auckland 0 - 5,Supplies and Services,384999,Miscellaneous Expenses,16-Nov-16,5486518207,POUNDSTRETCHER 692,5714,Other expenses,66.33,0,66.33
Children and Young Peoples Services,Childrens Services,88063,Bishop Auckland 0 - 5,Supplies and Services,324117,Provisions,16-Nov-16,5486518209,LIDL UK,5411,Catering costs - provisions,20.98,0,20.98
Children and Young Peoples Services,Childrens Services,85334,West Rainton Satelite Home,Supplies and Services,312011,Newspapers Books and Periodicals,16-Nov-16,5486518281,Amazon UK Marketplace,5942,Books-school library,12.78,0,12.78
Children and Young Peoples Services,Childrens Services,88053,Stanley 0 - 5,Supplies and Services,304403,Equipment and Materials,16-Nov-16,5486518291,TESCO DIRECT,5999,Other consumables,24.98,0,24.98
Children and Young Peoples Services,Childrens Services,88053,Stanley 0 - 5,Supplies and Services,304999,Equipment and Materials,16-Nov-16,5486518297,BOOTS 0596,5912,Misc equipment tools and materials,-19.99,0,-19.99
Children and Young Peoples Services,Childrens Services,88043,Consett 0 - 5,Supplies and Services,312011,Newspapers Books and Periodicals,16-Nov-16,5486518355,Amazon UK Marketplace,5942,Books-school library,14.98,0,14.98
Children and Young Peoples Services,Childrens Services,88043,Consett 0 - 5,Supplies and Services,312011,Newspapers Books and Periodicals,16-Nov-16,5486518361,Amazon UK Marketplace,5942,Books-school library,3.27,0,3.27
Children and Young Peoples Services,Childrens Services,88043,Consett 0 - 5,Supplies and Services,312011,Newspapers Books and Periodicals,16-Nov-16,5486518399,Amazon UK Marketplace,5942,Books-school library,38.7,0,38.7
Children and Young Peoples Services,Childrens Services,88043,Consett 0 - 5,Supplies and Services,312011,Newspapers Books and Periodicals,16-Nov-16,5486518403,Amazon UK Marketplace,5942,Books-school library,53.1,0,53.1
Children and Young Peoples Services,Childrens Services,88043,Consett 0 - 5,Supplies and Services,312011,Newspapers Books and Periodicals,16-Nov-16,5486518407,Amazon EU,5969,Books-school library,37.53,0,37.53
Resources,I.C.T. Services,69010,Administration,Supplies and Services,312011,Newspapers Books and Periodicals,16-Nov-16,5486518423,Amazon UK Marketplace,5942,Books-school library,2.41,0,2.41
Resources,I.C.T. Services,69010,Administration,Supplies and Services,312011,Newspapers Books and Periodicals,16-Nov-16,5486518435,Amazon UK Marketplace,5942,Books-school library,3.6,0,3.6
Resources,I.C.T. Services,69010,Administration,Supplies and Services,312011,Newspapers Books and Periodicals,16-Nov-16,5486518441,Amazon UK Marketplace,5942,Books-school library,21.24,0,21.24
Resources,I.C.T. Services,69010,Administration,Supplies and Services,312011,Newspapers Books and Periodicals,16-Nov-16,5486518443,Amazon UK Marketplace,5942,Books-school library,3.46,0,3.46
Resources,I.C.T. Services,69010,Administration,Supplies and Services,342033,Computers and Communications,16-Nov-16,5486518447,SurveyMonkey,7372,Computer hardware,229,0,229
Resources,I.C.T. Services,69010,Administration,Employees,40149,Recruitment Instruction and Training,16-Nov-16,5486518451,UNIVERSITY OF NORT,8220,Training-all costs,75,0,75
Resources,I.C.T. Services,69010,Administration,Supplies and Services,304259,Equipment and Materials,16-Nov-16,5486518457,DVLA VEHICLE TAX,9399,Equipment-purchase and rental,167.5,0,167.5
Regeneration and Local Services,Direct Services,10301,C&G - North Grounds Maintenance,Supplies and Services,328041,Clothing Uniforms and Laundry,16-Nov-16,5486518503,THOMAS OWEN & SONS /N/,5611,Clothing uniforms and laundry,411.26,68.54,342.72
Regeneration and Local Services,Culture & Sport,54235,Bp Auckland Town Hall Cafe,Supplies and Services,324117,Provisions,16-Nov-16,5486518529,JR HOLLAND FOODSERVICE,5422,Catering costs - provisions,32.17,0,32.17
Regeneration and Local Services,Transport and Contracted Services,31701,Care Connect All Localities,Supplies and Services,304259,Equipment and Materials,16-Nov-16,5486518545,SECURITY INDUSTRY,7393,Equipment-purchase and rental,220,0,220
Regeneration and Local Services,Transport and Contracted Services,31701,Care Connect All Localities,Supplies and Services,304259,Equipment and Materials,16-Nov-16,5486518549,SECURITY INDUSTRY,7393,Equipment-purchase and rental,220,0,220
Regeneration and Local Services,Direct Services,21324,Catering - Meadowfield,Supplies and Services,324117,Provisions,16-Nov-16,5486518561,JR HOLLAND FOODSERVICE,5422,Catering costs - provisions,34.1,0,34.1
Regeneration and Local Services,Direct Services,21324,Catering - Meadowfield,Supplies and Services,324117,Provisions,16-Nov-16,5486518565,JR HOLLAND FOODSERVICE,5422,Catering costs - provisions,13.45,0,13.45
Regeneration and Local Services,Direct Services,21324,Catering - Meadowfield,Supplies and Services,324117,Provisions,16-Nov-16,5486518567,BRAKE BROS LTD,5811,Catering costs - provisions,98.82,16.47,82.35
Regeneration and Local Services,Direct Services,21324,Catering - Meadowfield,Supplies and Services,324117,Provisions,16-Nov-16,5486518567 - 1,BRAKE BROS LTD,5811,Catering costs - provisions,104.99,,104.99
Regeneration and Local Services,Culture & Sport,11191,Wellbeing4Life,Supplies and Services,324117,Provisions,16-Nov-16,5486518693,SAINSBURYS SACAT 0776,5411,Catering costs - provisions,5.48,0,5.48
Regeneration and Local Services,Culture & Sport,11191,Wellbeing4Life,Supplies and Services,328041,Clothing Uniforms and Laundry,16-Nov-16,5486518701,ORIGINAL FACTORY S,5311,Clothing uniforms and laundry,8,0,8
Children and Young Peoples Services,Childrens Services,71404,Laurel Avenue Childrens Centre,Supplies and Services,312011,Newspapers Books and Periodicals,16-Nov-16,5486518725,HOME BARGAINS,5251,Books-school library,62.5,0,62.5
Children and Young Peoples Services,Childrens Services,71404,Laurel Avenue Childrens Centre,Supplies and Services,324117,Provisions,16-Nov-16,5486518731,TESCO STORES 2371,5411,Catering costs - provisions,12.88,0,12.88
Regeneration and Local Services,Direct Services,21235,Catering - Wharton Park,Supplies and Services,324117,Provisions,16-Nov-16,5486518735,JR HOLLAND FOODSERVICE,5422,Catering costs - provisions,8.75,0,8.75
Regeneration and Local Services,Direct Services,21235,Catering - Wharton Park,Supplies and Services,324117,Provisions,16-Nov-16,5486518747,JR HOLLAND FOODSERVICE,5422,Catering costs - provisions,0.93,0,0.93
Regeneration and Local Services,Direct Services,21235,Catering - Wharton Park,Supplies and Services,324117,Provisions,16-Nov-16,5486518749,BRAKE BROS LTD,5811,Catering costs - provisions,72.84,12.14,60.7
Regeneration and Local Services,Direct Services,21235,Catering - Wharton Park,Supplies and Services,324117,Provisions,16-Nov-16,5486518749 - 1,BRAKE BROS LTD,5811,Catering costs - provisions,77.21,,77.21
Regeneration and Local Services,Culture & Sport,10605,Woodhouse Close Leisure Complex,Supplies and Services,324117,Provisions,16-Nov-16,5486518763,JR HOLLAND FOODSERVICE,5422,Catering costs - provisions,25.07,0,25.07
Regeneration and Local Services,Culture & Sport,10605,Woodhouse Close Leisure Complex,Supplies and Services,324117,Provisions,16-Nov-16,5486518767,BRAKE BROS LTD,5811,Catering costs - provisions,66.42,0,66.42
Regeneration and Local Services,Transport and Contracted Services,31701,Care Connect All Localities,Supplies and Services,338064,Services,16-Nov-16,5486518771,DISCLOSURE SCOT,9399,Disclosure & Barring (DBS) Fees,25,0,25
Regeneration and Local Services,Culture & Sport,11225,Locality 2 Team Management,Supplies and Services,304259,Equipment and Materials,16-Nov-16,5486518791,WILKO RETAIL LIMIT,5722,Equipment-purchase and rental,40,0,40
Regeneration and Local Services,Economic Development and Housing,30699,Business Growth and Innovation General,Supplies and Services,336005,Advertising,16-Nov-16,5491143357,ADROLL,7311,Advertising other than for staff,2.91,0,2.91
Children and Young Peoples Services,Childrens Services,88094,Newton Aycliffe 5 - 19,Supplies and Services,304403,Equipment and Materials,16-Nov-16,5552210719,GRO HM PASSPORT OFFICE,9399,Other consumables,-9.25,0,-9.25
Children and Young Peoples Services,Education,71801,Selby Cottage Childcare Centre,Supplies and Services,324117,Provisions,17-Nov-16,5491143315,TESCO STORES 2278,5411,Catering costs - provisions,7.56,0,7.56
Regeneration and Local Services,Economic Development and Housing,30699,Business Growth and Innovation General,Supplies and Services,304999,Equipment and Materials,17-Nov-16,5491143361,PatentInspirationEU,5817,Misc equipment tools and materials,85.14,0,85.14
Children and Young Peoples Services,Childrens Services,85952,Secure Education,Supplies and Services,304083,Equipment and Materials,17-Nov-16,5491143373,WWW.EQUIP4WORK.CO.UK,5943,Catering equipment,158.4,26.4,132
Regeneration and Local Services,Economic Development and Housing,30737,Durham Works Flexible Fund,Supplies and Services,328041,Clothing Uniforms and Laundry,17-Nov-16,5491143401,Amazon UK Marketplace,5942,Clothing uniforms and laundry,47.12,0,47.12
Regeneration and Local Services,Economic Development and Housing,30737,Durham Works Flexible Fund,Supplies and Services,328041,Clothing Uniforms and Laundry,17-Nov-16,5491143407,SELECT,5691,Clothing uniforms and laundry,32.02,0,32.02
Regeneration and Local Services,Economic Development and Housing,30737,Durham Works Flexible Fund,Transport,230031,Contract Hire,17-Nov-16,5491143409,ARRIVA PASSENGER S,7538,Pupils-transport to play fields etc,6.9,0,6.9
Regeneration and Local Services,Economic Development and Housing,30737,Durham Works Flexible Fund,Supplies and Services,328041,Clothing Uniforms and Laundry,17-Nov-16,5491143415,SHOE ZONE,5661,Clothing uniforms and laundry,17.99,0,17.99
Children and Young Peoples Services,Childrens Services,85332,Middlestone Moor CU,Supplies and Services,324117,Provisions,17-Nov-16,5491143469,TESCO STORES 2371,5411,Catering costs - provisions,271.89,0,271.89
Children and Young Peoples Services,Education,71903,EYDCP-Sustainability EDS,Supplies and Services,384199,Miscellaneous Expenses,17-Nov-16,5491143483,SAINSBURYS (2303),5411,Other hired and contracted services,42,0,42
Children and Young Peoples Services,Education,71903,EYDCP-Sustainability EDS,Supplies and Services,384199,Miscellaneous Expenses,17-Nov-16,5491143485,iZ PercyMiddlesbr,8699,Other hired and contracted services,28.1,0,28.1
Regeneration and Local Services,Direct Services,10301,C&G - North Grounds Maintenance,Supplies and Services,328041,Clothing Uniforms and Laundry,17-Nov-16,5491143497,THOMAS OWEN & SONS /N/,5611,Clothing uniforms and laundry,492.48,82.08,410.4
Regeneration and Local Services,Economic Development and Housing,30737,Durham Works Flexible Fund,Transport,230031,Contract Hire,17-Nov-16,5491143503,WWW.SIMPLYGO.COM,4131,Pupils-transport to play fields etc,4.85,0,4.85
Children and Young Peoples Services,Childrens Services,85957,Secure Management,Supplies and Services,384999,Miscellaneous Expenses,17-Nov-16,5491143513,Amazon UK Marketplace,5942,Other expenses,15.8,0,15.8
Children and Young Peoples Services,Childrens Services,85957,Secure Management,Supplies and Services,324117,Provisions,17-Nov-16,5491143515,TESCO STORES 6329,5411,Catering costs - provisions,112.29,0,112.29
Resources,I.C.T. Services,65335,Operations - System & Repairs Trading,Supplies and Services,304639,Equipment and Materials,17-Nov-16,5491143525,THE REPLACE BASE LTD,5999,Technicians-supplies,89.82,14.97,74.85
Resources,I.C.T. Services,65335,Operations - System & Repairs Trading,Supplies and Services,304639,Equipment and Materials,17-Nov-16,5491143525 - 1,THE REPLACE BASE LTD,5999,Technicians-supplies,4.82,,4.82
Regeneration and Local Services,Culture & Sport,54815,Gala Theatre Stage School,Supplies and Services,304403,Equipment and Materials,17-Nov-16,5491143531,AMAZON UK RETAIL AMAZO,5999,Other consumables,38.96,0,38.96
Regeneration and Local Services,Direct Services,21234,Catering - Locomotion,Supplies and Services,324117,Provisions,17-Nov-16,5491143549,JR HOLLAND FOODSERVICE,5422,Catering costs - provisions,11.9,0,11.9
Regeneration and Local Services,Direct Services,21234,Catering - Locomotion,Supplies and Services,324117,Provisions,17-Nov-16,5491143553,JR HOLLAND FOODSERVICE,5422,Catering costs - provisions,11.57,0,11.57
Regeneration and Local Services,Direct Services,21234,Catering - Locomotion,Supplies and Services,324117,Provisions,17-Nov-16,5491143557,JR HOLLAND FOODSERVICE,5422,Catering costs - provisions,8.18,0,8.18
Regeneration and Local Services,Direct Services,21234,Catering - Locomotion,Supplies and Services,324117,Provisions,17-Nov-16,5491143561,JR HOLLAND FOODSERVICE,5422,Catering costs - provisions,8.18,0,8.18
Regeneration and Local Services,Direct Services,21234,Catering - Locomotion,Supplies and Services,324117,Provisions,17-Nov-16,5491143567,JR HOLLAND FOODSERVICE,5422,Catering costs - provisions,6.44,0,6.44
Regeneration and Local Services,Direct Services,21234,Catering - Locomotion,Supplies and Services,324117,Provisions,17-Nov-16,5491143571,JR HOLLAND FOODSERVICE,5422,Catering costs - provisions,4,0,4
Regeneration and Local Services,Direct Services,21234,Catering - Locomotion,Supplies and Services,324117,Provisions,17-Nov-16,5491143573,JR HOLLAND FOODSERVICE,5422,Catering costs - provisions,3.96,0,3.96
Regeneration and Local Services,Direct Services,21234,Catering - Locomotion,Supplies and Services,324117,Provisions,17-Nov-16,5491143577,JR HOLLAND FOODSERVICE,5422,Catering costs - provisions,2.05,0,2.05
Regeneration and Local Services,Direct Services,21234,Catering - Locomotion,Supplies and Services,324117,Provisions,17-Nov-16,5491143579,JR HOLLAND FOODSERVICE,5422,Catering costs - provisions,1.86,0,1.86
Regeneration and Local Services,Direct Services,21234,Catering - Locomotion,Supplies and Services,324117,Provisions,17-Nov-16,5491143583,JR HOLLAND FOODSERVICE,5422,Catering costs - provisions,0.99,0,0.99
Children and Young Peoples Services,Education,79581,Emotional Wellbeing Team,Supplies and Services,304649,Equipment and Materials,17-Nov-16,5491143611,LEGO,5945,Toys,23.94,0,23.94
Children and Young Peoples Services,Childrens Services,85352,Tow Law CU,Supplies and Services,304259,Equipment and Materials,17-Nov-16,5491143619,AO RETAIL LIMITED,5722,Equipment-purchase and rental,338,0,338
Children and Young Peoples Services,Childrens Services,88063,Bishop Auckland 0 - 5,Supplies and Services,304259,Equipment and Materials,17-Nov-16,5491143631,WILKO RETAIL LIMIT,5722,Equipment-purchase and rental,25.8,0,25.8
Children and Young Peoples Services,Childrens Services,88064,Bishop Auckland 5 - 19,Supplies and Services,324117,Provisions,17-Nov-16,5491143635,TESCO STORES 6329,5411,Catering costs - provisions,14.39,0,14.39
Children and Young Peoples Services,Childrens Services,88063,Bishop Auckland 0 - 5,Supplies and Services,332047,Printing Stationery and Gen Off Exps,17-Nov-16,5491143639,RYMAN,5943,Stationery,8.98,0,8.98
Children and Young Peoples Services,Childrens Services,88064,Bishop Auckland 5 - 19,Supplies and Services,304259,Equipment and Materials,17-Nov-16,5491143641,SPORTSDIRECT 368,5941,Equipment-purchase and rental,69.09,0,69.09
Children and Young Peoples Services,Childrens Services,88064,Bishop Auckland 5 - 19,Supplies and Services,384999,Miscellaneous Expenses,17-Nov-16,5491143645,SPORTSDIRECT 368,5941,Other expenses,8.99,0,8.99
Children and Young Peoples Services,Childrens Services,85332,Middlestone Moor CU,Supplies and Services,328041,Clothing Uniforms and Laundry,17-Nov-16,5491143695,Serenata Flowers,5992,Clothing uniforms and laundry,32.98,0,32.98
Children and Young Peoples Services,Childrens Services,85333,Coxhoe Satelite Home,Supplies and Services,324117,Provisions,17-Nov-16,5491143733,TESCO STORES 2371,5411,Catering costs - provisions,33.3,0,33.3
Children and Young Peoples Services,Childrens Services,88043,Consett 0 - 5,Supplies and Services,312011,Newspapers Books and Periodicals,17-Nov-16,5491143739,Amazon UK Marketplace,5942,Books-school library,24.39,0,24.39
Children and Young Peoples Services,Childrens Services,88043,Consett 0 - 5,Supplies and Services,312011,Newspapers Books and Periodicals,17-Nov-16,5491143741,Amazon UK Marketplace,5942,Books-school library,25.9,0,25.9
Children and Young Peoples Services,Childrens Services,88043,Consett 0 - 5,Supplies and Services,312011,Newspapers Books and Periodicals,17-Nov-16,5491143743,Amazon UK Marketplace,5942,Books-school library,8.44,0,8.44
Children and Young Peoples Services,Childrens Services,88043,Consett 0 - 5,Supplies and Services,312011,Newspapers Books and Periodicals,17-Nov-16,5491143747,Amazon UK Marketplace,5942,Books-school library,14.08,0,14.08
Children and Young Peoples Services,Childrens Services,88043,Consett 0 - 5,Supplies and Services,312011,Newspapers Books and Periodicals,17-Nov-16,5491143751,Amazon UK Marketplace,5942,Books-school library,41.42,0,41.42
Resources,I.C.T. Services,69010,Administration,Supplies and Services,348037,Subsistence,17-Nov-16,5491143789,UNI OF DURHAM,5812,Subsistence,5,0,5
Regeneration and Local Services,Culture & Sport,54399,Local Delivery-Libraries,Supplies and Services,312009,Newspapers Books and Periodicals,17-Nov-16,5491143823,Amazon UK Marketplace,5942,Newspapers books and periodicals,3.89,0,3.89
Regeneration and Local Services,Direct Services,10301,C&G - North Grounds Maintenance,Supplies and Services,304259,Equipment and Materials,17-Nov-16,5491143863,HARELAW SAWMILL,5211,Equipment-purchase and rental,25.06,4.18,20.88
Children and Young Peoples Services,Childrens Services,88013,Seaham 0 - 5,Supplies and Services,304403,Equipment and Materials,17-Nov-16,5491143873,TESCO - Seller_IST_1_2,5999,Other consumables,37,0,37
Children and Young Peoples Services,Childrens Services,88013,Seaham 0 - 5,Supplies and Services,304403,Equipment and Materials,17-Nov-16,5491143879,TESCO DIRECT,5999,Other consumables,474.95,0,474.95
Children and Young Peoples Services,Childrens Services,88013,Seaham 0 - 5,Supplies and Services,304403,Equipment and Materials,17-Nov-16,5491143885,TESCO DIRECT,5999,Other consumables,19,0,19
Children and Young Peoples Services,Childrens Services,85801,CDYOS - Support,Supplies and Services,304259,Equipment and Materials,17-Nov-16,5491143915,WILKO.COM,5722,Equipment-purchase and rental,11.4,0,11.4
Regeneration and Local Services,Transport and Contracted Services,31701,Care Connect All Localities,Supplies and Services,304259,Equipment and Materials,17-Nov-16,5491143921,SECURITY INDUSTRY,7393,Equipment-purchase and rental,220,0,220
Regeneration and Local Services,Transport and Contracted Services,31701,Care Connect All Localities,Supplies and Services,344033,Telephones,17-Nov-16,5491143923,BT BILL PAYMENT 2,4812,Telephones general-all costs,88.47,14.75,73.72
Regeneration and Local Services,Direct Services,10301,C&G - North Grounds Maintenance,Supplies and Services,312011,Newspapers Books and Periodicals,17-Nov-16,5491143959,GRALANDS WOODWORK SUPP,5251,Books-school library,20.99,0,20.99
Regeneration and Local Services,Direct Services,10301,C&G - North Grounds Maintenance,Supplies and Services,304221,Equipment and Materials,17-Nov-16,5491143963,JG PAXTON & SONS LTD,8911,Direct materials,30.72,5.12,25.6
Regeneration and Local Services,Direct Services,10301,C&G - North Grounds Maintenance,Supplies and Services,304403,Equipment and Materials,17-Nov-16,5491143969,TIMPSON LTD,7251,Other consumables,9,0,9
Children and Young Peoples Services,Childrens Services,88083,Ferryhill 0 - 5,Supplies and Services,324117,Provisions,17-Nov-16,5491144009,ASDA SUPERSTORE 4987,5411,Catering costs - provisions,49.12,0,49.12
Regeneration and Local Services,Direct Services,21235,Catering - Wharton Park,Supplies and Services,324117,Provisions,17-Nov-16,5491144065,BRAKES (ASHFORD),5811,Catering costs - provisions,650.31,0,650.31
Regeneration and Local Services,Direct Services,21235,Catering - Wharton Park,Supplies and Services,324117,Provisions,17-Nov-16,5491144071,BRAKES (ASHFORD),5811,Catering costs - provisions,551.28,0,551.28
Regeneration and Local Services,Direct Services,21235,Catering - Wharton Park,Supplies and Services,324117,Provisions,17-Nov-16,5491144073,BRAKES (ASHFORD),5811,Catering costs - provisions,286.82,0,286.82
Regeneration and Local Services,Direct Services,21235,Catering - Wharton Park,Supplies and Services,324117,Provisions,17-Nov-16,5491144079,BRAKES (ASHFORD),5811,Catering costs - provisions,258,0,258
Regeneration and Local Services,Spatial Policy Planning Assets & Environment,31217,North Pennines - Cold Blooded & Spineless,Supplies and Services,324117,Provisions,17-Nov-16,5491144093,SCOTMID CO-OP STANHOPE,5411,Catering costs - provisions,7.37,0,7.37
Regeneration and Local Services,Culture & Sport,10605,Woodhouse Close Leisure Complex,Supplies and Services,324117,Provisions,17-Nov-16,5491144097,BRAKE BROS LTD,5811,Catering costs - provisions,88.08,14.68,73.4
Regeneration and Local Services,Culture & Sport,10605,Woodhouse Close Leisure Complex,Supplies and Services,324117,Provisions,17-Nov-16,5491144097 - 1,BRAKE BROS LTD,5811,Catering costs - provisions,148.82,,148.82
Regeneration and Local Services,Culture & Sport,11225,Locality 2 Team Management,Supplies and Services,324117,Provisions,17-Nov-16,5491144125,TESCO STORES 2916,5411,Catering costs - provisions,50.37,0,50.37
Regeneration and Local Services,Direct Services,10341,Nei.Prot - N. Wardens,Supplies and Services,340001,Postages,17-Nov-16,5496709111,POST OFFICE SHOP,9402,Postages,66.99,0,66.99
Regeneration and Local Services,Economic Development and Housing,30737,Durham Works Flexible Fund,Supplies and Services,328041,Clothing Uniforms and Laundry,17-Nov-16,5496709165,SPORTSDIRECT.COM,5941,Clothing uniforms and laundry,22.99,0,22.99
Children and Young Peoples Services,Childrens Services,85380,Operations Manager Adoption & Fostering,Employees,40149,Recruitment Instruction and Training,17-Nov-16,5496709773,WWW.CORAM.ORG.UK,8398,Training-all costs,10.95,0,10.95
Regeneration and Local Services,Economic Development and Housing,30699,Business Growth and Innovation General,Supplies and Services,336005,Advertising,18-Nov-16,5491143365,ADROLL,7311,Advertising other than for staff,0.08,0,0.08
Regeneration and Local Services,Economic Development and Housing,30699,Business Growth and Innovation General,Supplies and Services,304999,Equipment and Materials,18-Nov-16,5491143367,PatentInspirationEU,5817,Misc equipment tools and materials,2.34,0,2.34
Children and Young Peoples Services,Education,71801,Selby Cottage Childcare Centre,Supplies and Services,324117,Provisions,18-Nov-16,5496708805,ASDA HOME SHOPPING,5411,Catering costs - provisions,41.22,0,41.22
Children and Young Peoples Services,Education,71801,Selby Cottage Childcare Centre,Supplies and Services,324117,Provisions,18-Nov-16,5496708807,ASDA STORES LTD 4313,5411,Catering costs - provisions,44.99,0,44.99
Adult and Health Services,Head of Adults,52760,OP Management,Income,720130,Fees and Charges,18-Nov-16,5496708877,HMCOURT-SERVICES.G,9222,Fees-legal,110,0,110
Children and Young Peoples Services,Childrens Services,85342,9 Cedar Drive Aycliffe,Supplies and Services,312011,Newspapers Books and Periodicals,18-Nov-16,5496708883,PAYPAL FEHA DESIGN,5251,Books-school library,99,0,99
Regeneration and Local Services,Economic Development and Housing,30737,Durham Works Flexible Fund,Transport,230031,Contract Hire,18-Nov-16,5496708939,ARRIVA PASSENGER S,7538,Pupils-transport to play fields etc,20.7,0,20.7
Regeneration and Local Services,Direct Services,21242,Catering - County Hall,Supplies and Services,324117,Provisions,18-Nov-16,5496708945,JR HOLLAND FOODSERVICE,5422,Catering costs - provisions,91.99,0,91.99
Regeneration and Local Services,Direct Services,21242,Catering - County Hall,Supplies and Services,324117,Provisions,18-Nov-16,5496708949,JR HOLLAND FOODSERVICE,5422,Catering costs - provisions,79.31,0,79.31
Regeneration and Local Services,Direct Services,21242,Catering - County Hall,Supplies and Services,324117,Provisions,18-Nov-16,5496708955,JR HOLLAND FOODSERVICE,5422,Catering costs - provisions,62.05,0,62.05
Regeneration and Local Services,Direct Services,21242,Catering - County Hall,Supplies and Services,324117,Provisions,18-Nov-16,5496708959,JR HOLLAND FOODSERVICE,5422,Catering costs - provisions,13.16,0,13.16
Regeneration and Local Services,Direct Services,21242,Catering - County Hall,Supplies and Services,324117,Provisions,18-Nov-16,5496708961,JR HOLLAND FOODSERVICE,5422,Catering costs - provisions,13.16,0,13.16
Regeneration and Local Services,Direct Services,21242,Catering - County Hall,Supplies and Services,324117,Provisions,18-Nov-16,5496708963,BRAKE BROS LTD,5811,Catering costs - provisions,104.6,0,104.6
Regeneration and Local Services,Culture & Sport,54812,Gala Theatre - Catering etc,Supplies and Services,324117,Provisions,18-Nov-16,5496708979,JR HOLLAND FOODSERVICE,5422,Catering costs - provisions,71.11,0,71.11
Resources,Legal & Democratic Services,67910,Democratic Representation,Supplies and Services,324117,Provisions,18-Nov-16,5496709091,MARKS&SPENCER PLC,5411,Catering costs - provisions,5.5,0,5.5
Resources,Legal & Democratic Services,67910,Democratic Representation,Supplies and Services,312009,Newspapers Books and Periodicals,18-Nov-16,5496709093,WH SMITH,5994,Newspapers books and periodicals,60,0,60
Regeneration and Local Services,Economic Development and Housing,30737,Durham Works Flexible Fund,Supplies and Services,328041,Clothing Uniforms and Laundry,18-Nov-16,5496709155,NEW LOOK INTERNET,5621,Clothing uniforms and laundry,44.97,0,44.97
Regeneration and Local Services,Economic Development and Housing,30737,Durham Works Flexible Fund,Supplies and Services,328041,Clothing Uniforms and Laundry,18-Nov-16,5496709157,PEACOCK STORES LTD,5331,Clothing uniforms and laundry,8,0,8
Regeneration and Local Services,Economic Development and Housing,30737,Durham Works Flexible Fund,Supplies and Services,304245,Equipment and Materials,18-Nov-16,5496709161,SCREWFIX DIRECT,5211,Materials,24.96,4.16,20.8
Regeneration and Local Services,Economic Development and Housing,30737,Durham Works Flexible Fund,Supplies and Services,304245,Equipment and Materials,18-Nov-16,5496709161 - 1,SCREWFIX DIRECT,5211,Materials,30.03,,30.03
Children and Young Peoples Services,Childrens Services,85957,Secure Management,Supplies and Services,324117,Provisions,18-Nov-16,5496709177,TESCO STORES 6329,5411,Catering costs - provisions,44.4,0,44.4
Children and Young Peoples Services,Childrens Services,85957,Secure Management,Supplies and Services,328041,Clothing Uniforms and Laundry,18-Nov-16,5496709189,SPORTSDIRECT.COM,5941,Clothing uniforms and laundry,-47.99,0,-47.99
Regeneration and Local Services,Direct Services,10367,C&G - South Grounds Maintenance,Supplies and Services,304259,Equipment and Materials,18-Nov-16,5496709219,MKM PETERLEE,5211,Equipment-purchase and rental,161.68,26.95,134.73
Regeneration and Local Services,Culture & Sport,11060,Hardwick Park Catering,Supplies and Services,324117,Provisions,18-Nov-16,5496709241,JR HOLLAND FOODSERVICE,5422,Catering costs - provisions,42.26,0,42.26
Regeneration and Local Services,Culture & Sport,11060,Hardwick Park Catering,Supplies and Services,324117,Provisions,18-Nov-16,5496709247,JR HOLLAND FOODSERVICE,5422,Catering costs - provisions,24.8,0,24.8
Regeneration and Local Services,Culture & Sport,11060,Hardwick Park Catering,Supplies and Services,324117,Provisions,18-Nov-16,5496709251,BRAKE BROS LTD,5811,Catering costs - provisions,150.9,25.15,125.75
Regeneration and Local Services,Culture & Sport,11060,Hardwick Park Catering,Supplies and Services,324117,Provisions,18-Nov-16,5496709251 - 1,BRAKE BROS LTD,5811,Catering costs - provisions,226.17,,226.17
Regeneration and Local Services,Culture & Sport,11060,Hardwick Park Catering,Supplies and Services,324117,Provisions,18-Nov-16,5496709263,BRAKE BROS LTD,5811,Catering costs - provisions,85.98,14.33,71.65
Regeneration and Local Services,Culture & Sport,11060,Hardwick Park Catering,Supplies and Services,324117,Provisions,18-Nov-16,5496709263 - 1,BRAKE BROS LTD,5811,Catering costs - provisions,55.43,,55.43
Resources,I.C.T. Services,65335,Operations - System & Repairs Trading,Supplies and Services,304303,Equipment and Materials,18-Nov-16,5496709287,CRUSADER LTD,7372,Network for resale,48,8,40
Regeneration and Local Services,Economic Development and Housing,30762,Organisational Training & Development,Employees,40149,Recruitment Instruction and Training,18-Nov-16,5496709313,CITB,8220,Training-all costs,30,5,25
Regeneration and Local Services,Economic Development and Housing,30762,Organisational Training & Development,Employees,40149,Recruitment Instruction and Training,18-Nov-16,5496709319,CITB,8220,Training-all costs,30,5,25
Regeneration and Local Services,Economic Development and Housing,30762,Organisational Training & Development,Employees,40149,Recruitment Instruction and Training,18-Nov-16,5496709321,CITB,8220,Training-all costs,30,5,25
Regeneration and Local Services,Economic Development and Housing,30762,Organisational Training & Development,Employees,40149,Recruitment Instruction and Training,18-Nov-16,5496709325,CITB,8220,Training-all costs,30,5,25
Regeneration and Local Services,Economic Development and Housing,30762,Organisational Training & Development,Employees,40149,Recruitment Instruction and Training,18-Nov-16,5496709327,CITB,8220,Training-all costs,30,5,25
Regeneration and Local Services,Direct Services,21234,Catering - Locomotion,Supplies and Services,324117,Provisions,18-Nov-16,5496709343,JR HOLLAND FOODSERVICE,5422,Catering costs - provisions,23.35,0,23.35
Regeneration and Local Services,Direct Services,21234,Catering - Locomotion,Supplies and Services,324117,Provisions,18-Nov-16,5496709347,BRAKE BROS LTD,5811,Catering costs - provisions,136.85,0,136.85
Regeneration and Local Services,Culture & Sport,11204,Events,Supplies and Services,348037,Subsistence,18-Nov-16,5496709369,GREGGS,5812,Subsistence,11.85,0,11.85
Regeneration and Local Services,Direct Services,10525,Catering - Green Lane,Supplies and Services,324117,Provisions,18-Nov-16,5496709397,JR HOLLAND FOODSERVICE,5422,Catering costs - provisions,45.97,0,45.97
Children and Young Peoples Services,Childrens Services,85334,West Rainton Satelite Home,Supplies and Services,324117,Provisions,18-Nov-16,5496709495,ASDA STORES LTD 4313,5411,Catering costs - provisions,48.05,0,48.05
Children and Young Peoples Services,Childrens Services,85334,West Rainton Satelite Home,Supplies and Services,304259,Equipment and Materials,18-Nov-16,5496709501,B & Q 1343,5211,Equipment-purchase and rental,21.82,0,21.82
Children and Young Peoples Services,Childrens Services,85334,West Rainton Satelite Home,Supplies and Services,328041,Clothing Uniforms and Laundry,18-Nov-16,5496709507,ARGOS LTD,5310,Clothing uniforms and laundry,129.99,0,129.99
Children and Young Peoples Services,Childrens Services,85334,West Rainton Satelite Home,Supplies and Services,328041,Clothing Uniforms and Laundry,18-Nov-16,5496709511,B & M RETAIL,5310,Clothing uniforms and laundry,11.98,0,11.98
Children and Young Peoples Services,Childrens Services,85334,West Rainton Satelite Home,Supplies and Services,328041,Clothing Uniforms and Laundry,18-Nov-16,5496709513,B & M RETAIL,5310,Clothing uniforms and laundry,4.67,0,4.67
Children and Young Peoples Services,Childrens Services,88053,Stanley 0 - 5,Supplies and Services,304403,Equipment and Materials,18-Nov-16,5496709527,TESCO - Buy It Direct,5999,Other consumables,149.92,0,149.92
Resources,I.C.T. Services,69010,Administration,Supplies and Services,304259,Equipment and Materials,18-Nov-16,5496709553,SUNDERLAND CC,9399,Equipment-purchase and rental,20,0,20
Resources,I.C.T. Services,69010,Administration,Supplies and Services,304259,Equipment and Materials,18-Nov-16,5496709559,DISCLOSURE SCOT,9399,Equipment-purchase and rental,25,0,25
Regeneration and Local Services,Culture & Sport,54235,Bp Auckland Town Hall Cafe,Supplies and Services,324117,Provisions,18-Nov-16,5496709645,JR HOLLAND FOODSERVICE,5422,Catering costs - provisions,15.51,0,15.51
Regeneration and Local Services,Culture & Sport,54235,Bp Auckland Town Hall Cafe,Supplies and Services,324117,Provisions,18-Nov-16,5496709647,JR HOLLAND FOODSERVICE,5422,Catering costs - provisions,6.33,0,6.33
Regeneration and Local Services,Culture & Sport,54235,Bp Auckland Town Hall Cafe,Supplies and Services,324117,Provisions,18-Nov-16,5496709651,JR HOLLAND FOODSERVICE,5422,Catering costs - provisions,1.64,0,1.64
Regeneration and Local Services,Direct Services,21324,Catering - Meadowfield,Supplies and Services,324117,Provisions,18-Nov-16,5496709671,JR HOLLAND FOODSERVICE,5422,Catering costs - provisions,37.32,0,37.32
Regeneration and Local Services,Direct Services,21324,Catering - Meadowfield,Supplies and Services,324117,Provisions,18-Nov-16,5496709675,JR HOLLAND FOODSERVICE,5422,Catering costs - provisions,9.87,0,9.87
Regeneration and Local Services,Direct Services,10301,C&G - North Grounds Maintenance,Supplies and Services,304259,Equipment and Materials,18-Nov-16,5496709691,HARELAW SAWMILL,5211,Equipment-purchase and rental,136.08,0,136.08
Regeneration and Local Services,Culture & Sport,11086,Positive Futures,Supplies and Services,324117,Provisions,18-Nov-16,5496709751,ASDA STORES LTD,5411,Catering costs - provisions,21.63,0,21.63
Children and Young Peoples Services,Childrens Services,88073,Barnard Castle 0 - 5,Supplies and Services,304403,Equipment and Materials,18-Nov-16,5496709757,TESCO - Seller_IST_1_2,5999,Other consumables,79.99,0,79.99
Children and Young Peoples Services,Childrens Services,88073,Barnard Castle 0 - 5,Supplies and Services,304403,Equipment and Materials,18-Nov-16,5496709763,TESCO DIRECT,5999,Other consumables,23,0,23
Regeneration and Local Services,Economic Development and Housing,30737,Durham Works Flexible Fund,Supplies and Services,324117,Provisions,18-Nov-16,5496709815,ASDA SUPERSTORE,5411,Catering costs - provisions,8.05,0,8.05
Regeneration and Local Services,Direct Services,21235,Catering - Wharton Park,Supplies and Services,324117,Provisions,18-Nov-16,5496709843,JR HOLLAND FOODSERVICE,5422,Catering costs - provisions,16.87,0,16.87
Regeneration and Local Services,Direct Services,21235,Catering - Wharton Park,Supplies and Services,324117,Provisions,18-Nov-16,5496709845,JR HOLLAND FOODSERVICE,5422,Catering costs - provisions,1.27,0,1.27
Children and Young Peoples Services,Education,78411,16-19 Education & Training,Supplies and Services,340001,Postages,18-Nov-16,5496709849,ROYAL MAIL ONLINE SHOP,9402,Postages,335,0,335
Regeneration and Local Services,Transport and Contracted Services,31701,Care Connect All Localities,Supplies and Services,338064,Services,18-Nov-16,5496709875,DISCLOSURE SCOT,9399,Disclosure & Barring (DBS) Fees,25,0,25
Regeneration and Local Services,Economic Development and Housing,30749,Employability - Youth Contract,Supplies and Services,324117,Provisions,18-Nov-16,5496709933,CO-OP GROUP 310015,5411,Catering costs - provisions,25,0,25
Children and Young Peoples Services,Childrens Services,85332,Middlestone Moor CU,Supplies and Services,304259,Equipment and Materials,18-Nov-16,5511781289,WWW.EVENGREENER.COM,5261,Equipment-purchase and rental,35.97,0,35.97
Children and Young Peoples Services,Childrens Services,85957,Secure Management,Supplies and Services,324117,Provisions,19-Nov-16,5496709183,TESCO STORES 6329,5411,Catering costs - provisions,53.62,0,53.62
Regeneration and Local Services,Economic Development and Housing,31576,B& B - Temp Accom,Supplies and Services,364320,Grants to Voluntary Organisations,19-Nov-16,5496709383,TRAVELODGE,3615,Accommodation assistance,87,14.5,72.5
Resources,Resources Management,69000,Resources Management,Supplies and Services,324117,Provisions,19-Nov-16,5496709519,CO-OP GROUP 010830,5411,Catering costs - provisions,12.53,0,12.53
Adult and Health Services,Planning & Service Strategy,54630,Comm Marketing and Information,Supplies and Services,304999,Equipment and Materials,19-Nov-16,5496709857,GOOGLE ADWS8172786379,5968,Misc equipment tools and materials,187.39,0,187.39
Resources,I.C.T. Services,69010,Administration,Third Party Payments,430100,Rendered by Private Contractors,20-Nov-16,5496709563,HOOTSUITE MEDIA INC.,7399,Payments to sub-contractors,5.81,0,5.81
Regeneration and Local Services,Culture & Sport,11191,Wellbeing4Life,Supplies and Services,312011,Newspapers Books and Periodicals,20-Nov-16,5496709791,HOME BARGAINS,5251,Books-school library,47.49,0,47.49
Resources,I.C.T. Services,69010,Administration,Third Party Payments,430100,Rendered by Private Contractors,21-Nov-16,5496709565,HOOTSUITE MEDIA INC.,7399,Payments to sub-contractors,0.16,0,0.16
Children and Young Peoples Services,Education,71801,Selby Cottage Childcare Centre,Supplies and Services,312011,Newspapers Books and Periodicals,21-Nov-16,5503802225,Amazon UK Marketplace,5942,Books-school library,10.02,0,10.02
Children and Young Peoples Services,Education,71801,Selby Cottage Childcare Centre,Supplies and Services,324117,Provisions,21-Nov-16,5503802235,TESCO STORES 2278,5411,Catering costs - provisions,13.2,0,13.2
Children and Young Peoples Services,Childrens Services,88093,Newton Aycliffe 0 - 5,Supplies and Services,324117,Provisions,21-Nov-16,5503802265,ASDA HOME SHOPPING,5411,Catering costs - provisions,28.24,0,28.24
Children and Young Peoples Services,Childrens Services,71449,Ferryhill One Point Hub,Supplies and Services,324117,Provisions,21-Nov-16,5503802275,ASDA SUPERSTORE 4987,5411,Catering costs - provisions,16,0,16
Regeneration and Local Services,Direct Services,21242,Catering - County Hall,Supplies and Services,324117,Provisions,21-Nov-16,5503802387,BRAMBLES FOODS LTD,5499,Catering costs - provisions,846.33,0,846.33
Regeneration and Local Services,Direct Services,21242,Catering - County Hall,Supplies and Services,324117,Provisions,21-Nov-16,5503802391,JR HOLLAND FOODSERVICE,5422,Catering costs - provisions,65.06,0,65.06
Regeneration and Local Services,Direct Services,21242,Catering - County Hall,Supplies and Services,324117,Provisions,21-Nov-16,5503802397,JR HOLLAND FOODSERVICE,5422,Catering costs - provisions,13.52,0,13.52
Regeneration and Local Services,Direct Services,21242,Catering - County Hall,Supplies and Services,324117,Provisions,21-Nov-16,5503802401,JR HOLLAND FOODSERVICE,5422,Catering costs - provisions,2.25,0,2.25
Regeneration and Local Services,Direct Services,21242,Catering - County Hall,Supplies and Services,324117,Provisions,21-Nov-16,5503802405,BRAKE BROS LTD,5811,Catering costs - provisions,299.31,0,299.31
Children and Young Peoples Services,Childrens Services,85351,Framwellgate Moor CU,Supplies and Services,352001,Conference Expenses,21-Nov-16,5503802449,T S A GPAC,7011,Conferencesseminars fees etc,37.5,0,37.5
Children and Young Peoples Services,Childrens Services,85351,Framwellgate Moor CU,Supplies and Services,324117,Provisions,21-Nov-16,5503802455,ASDA HOME SHOPPING,5411,Catering costs - provisions,125.6,0,125.6
Children and Young Peoples Services,Childrens Services,85351,Framwellgate Moor CU,Supplies and Services,324117,Provisions,21-Nov-16,5503802459,ASDA HOME SHOPPING,5411,Catering costs - provisions,-0.25,0,-0.25
Regeneration and Local Services,Culture & Sport,11219,Office Services,Supplies and Services,304999,Equipment and Materials,21-Nov-16,5503802461,GOOGLE ADWS2420292471,5968,Misc equipment tools and materials,29.68,0,29.68
Regeneration and Local Services,Direct Services,10900,Fleet - Meadowfield Fleet,Transport,215013,Running Costs of Vehicles,21-Nov-16,5503802491,DVLA VEHICLE TAX,9399,Vehicle Excise Duty (VED),202.5,0,202.5
Regeneration and Local Services,Direct Services,10900,Fleet - Meadowfield Fleet,Transport,215013,Running Costs of Vehicles,21-Nov-16,5503802499,DVLA VEHICLE TAX,9399,Vehicle Excise Duty (VED),232.5,0,232.5
Regeneration and Local Services,Direct Services,10864,Fleet - Hackworth Road Fleet,Transport,215013,Running Costs of Vehicles,21-Nov-16,5503802507,DVLA VEHICLE TAX,9399,Vehicle Excise Duty (VED),652.5,0,652.5
Regeneration and Local Services,Direct Services,10864,Fleet - Hackworth Road Fleet,Transport,215013,Running Costs of Vehicles,21-Nov-16,5503802509,DVLA VEHICLE TAX,9399,Vehicle Excise Duty (VED),652.5,0,652.5
Regeneration and Local Services,Direct Services,10900,Fleet - Meadowfield Fleet,Transport,215013,Running Costs of Vehicles,21-Nov-16,5503802515,DVLA VEHICLE TAX,9399,Vehicle Excise Duty (VED),652.5,0,652.5
Regeneration and Local Services,Direct Services,10900,Fleet - Meadowfield Fleet,Transport,215013,Running Costs of Vehicles,21-Nov-16,5503802519,DVLA VEHICLE TAX,9399,Vehicle Excise Duty (VED),167.5,0,167.5
Regeneration and Local Services,Direct Services,10900,Fleet - Meadowfield Fleet,Transport,215013,Running Costs of Vehicles,21-Nov-16,5503802523,DVLA VEHICLE TAX,9399,Vehicle Excise Duty (VED),167.5,0,167.5
Regeneration and Local Services,Direct Services,10900,Fleet - Meadowfield Fleet,Transport,215013,Running Costs of Vehicles,21-Nov-16,5503802529,DVLA VEHICLE TAX,9399,Vehicle Excise Duty (VED),167.5,0,167.5
Regeneration and Local Services,Direct Services,10551,Fleet - Chilton Fleet,Transport,215013,Running Costs of Vehicles,21-Nov-16,5503802531,DVLA VEHICLE TAX,9399,Vehicle Excise Duty (VED),232.5,0,232.5
Children and Young Peoples Services,Childrens Services,85341,High Etherley Satelite Home,Supplies and Services,344033,Telephones,21-Nov-16,5503802617,TESCO STORES 6329,5411,Telephones general-all costs,9.49,0,9.49
Regeneration and Local Services,Economic Development and Housing,30737,Durham Works Flexible Fund,Transport,235005,Public Transport,21-Nov-16,5503802631,ARRIVA PASSENGER S,7538,Contract tickets,25,0,25
Regeneration and Local Services,Economic Development and Housing,30737,Durham Works Flexible Fund,Supplies and Services,324117,Provisions,21-Nov-16,5503802635,ASDA 4387,5411,Catering costs - provisions,16.5,0,16.5
Regeneration and Local Services,Culture & Sport,11191,Wellbeing4Life,Supplies and Services,324117,Provisions,21-Nov-16,5503802699,ASDA STORES,5411,Catering costs - provisions,23.11,0,23.11
Children and Young Peoples Services,Childrens Services,85957,Secure Management,Supplies and Services,384999,Miscellaneous Expenses,21-Nov-16,5503802721,Amazon UK Marketplace,5942,Other expenses,34.48,0,34.48
Regeneration and Local Services,Culture & Sport,11060,Hardwick Park Catering,Supplies and Services,324117,Provisions,21-Nov-16,5503802767,JR HOLLAND FOODSERVICE,5422,Catering costs - provisions,57.69,0,57.69
Regeneration and Local Services,Culture & Sport,11060,Hardwick Park Catering,Supplies and Services,324117,Provisions,21-Nov-16,5503802773,BRAKE BROS LTD,5811,Catering costs - provisions,10.86,1.81,9.05
Regeneration and Local Services,Culture & Sport,11060,Hardwick Park Catering,Supplies and Services,324117,Provisions,21-Nov-16,5503802773 - 1,BRAKE BROS LTD,5811,Catering costs - provisions,83.9,,83.9
Resources,I.C.T. Services,65335,Operations - System & Repairs Trading,Supplies and Services,304639,Equipment and Materials,21-Nov-16,5503802791,THE REPLACE BASE LTD,5999,Technicians-supplies,34.92,5.82,29.1
Resources,I.C.T. Services,65335,Operations - System & Repairs Trading,Supplies and Services,304639,Equipment and Materials,21-Nov-16,5503802791 - 1,THE REPLACE BASE LTD,5999,Technicians-supplies,1.22,,1.22
Regeneration and Local Services,Direct Services,21234,Catering - Locomotion,Supplies and Services,324117,Provisions,21-Nov-16,5503802809,BRAMBLES FOODS LTD,5499,Catering costs - provisions,349.75,0,349.75
Regeneration and Local Services,Direct Services,21234,Catering - Locomotion,Supplies and Services,324117,Provisions,21-Nov-16,5503802817,JR HOLLAND FOODSERVICE,5422,Catering costs - provisions,35.77,0,35.77
Regeneration and Local Services,Economic Development and Housing,31576,B& B - Temp Accom,Supplies and Services,364320,Grants to Voluntary Organisations,21-Nov-16,5503802835,DAYS INN,7011,Accommodation assistance,55,0,55
Regeneration and Local Services,Direct Services,10525,Catering - Green Lane,Supplies and Services,324117,Provisions,21-Nov-16,5503802879,BRAMBLES FOODS LTD,5499,Catering costs - provisions,106.49,0,106.49
Children and Young Peoples Services,Childrens Services,85352,Tow Law CU,Supplies and Services,324117,Provisions,21-Nov-16,5503802915,TESCO STORES 2371,5411,Catering costs - provisions,230.67,0,230.67
Children and Young Peoples Services,Childrens Services,88063,Bishop Auckland 0 - 5,Supplies and Services,324117,Provisions,21-Nov-16,5503802937,LIDL UK,5411,Catering costs - provisions,22.19,0,22.19
Children and Young Peoples Services,Childrens Services,85333,Coxhoe Satelite Home,Supplies and Services,324117,Provisions,21-Nov-16,5503802979,ASDA SUPERSTORE 4987,5411,Catering costs - provisions,118.05,0,118.05
Children and Young Peoples Services,Childrens Services,85333,Coxhoe Satelite Home,Supplies and Services,324117,Provisions,21-Nov-16,5503802983,ASDA SUPERSTORE 4987,5411,Catering costs - provisions,12,0,12
Children and Young Peoples Services,Childrens Services,88003,Peterlee 0 - 5,Supplies and Services,304259,Equipment and Materials,21-Nov-16,5503803067,HARTLEPOOL BC CNP,9399,Equipment-purchase and rental,14.25,0,14.25
Children and Young Peoples Services,Childrens Services,88003,Peterlee 0 - 5,Supplies and Services,304259,Equipment and Materials,21-Nov-16,5503803073,SUNDERLAND CC,9399,Equipment-purchase and rental,10,0,10
Regeneration and Local Services,Culture & Sport,54235,Bp Auckland Town Hall Cafe,Supplies and Services,324117,Provisions,21-Nov-16,5503803077,BRAKE BROS LTD,5811,Catering costs - provisions,61.52,0,61.52
Regeneration and Local Services,Culture & Sport,54235,Bp Auckland Town Hall Cafe,Supplies and Services,324117,Provisions,21-Nov-16,5503803083,BRAKE BROS LTD,5811,Catering costs - provisions,51.23,0,51.23
Regeneration and Local Services,Transport and Contracted Services,31701,Care Connect All Localities,Supplies and Services,304259,Equipment and Materials,21-Nov-16,5503803091,SECURITY INDUSTRY,7393,Equipment-purchase and rental,220,0,220
Regeneration and Local Services,Direct Services,21324,Catering - Meadowfield,Supplies and Services,324117,Provisions,21-Nov-16,5503803101,BRAMBLES FOODS LTD,5499,Catering costs - provisions,80.4,0,80.4
Regeneration and Local Services,Direct Services,10301,C&G - North Grounds Maintenance,Supplies and Services,304999,Equipment and Materials,21-Nov-16,5503803139,GUSTHARTS CHAINSAW CTR,7699,Misc equipment tools and materials,155.94,25.99,129.95
Children and Young Peoples Services,Childrens Services,88083,Ferryhill 0 - 5,Supplies and Services,324117,Provisions,21-Nov-16,5503803225,ASDA SUPERSTORE 4987,5411,Catering costs - provisions,41.71,0,41.71
Regeneration and Local Services,Culture & Sport,11191,Wellbeing4Life,Supplies and Services,328041,Clothing Uniforms and Laundry,21-Nov-16,5503803331,THE WORKS,5310,Clothing uniforms and laundry,8,0,8
Regeneration and Local Services,Economic Development and Housing,30737,Durham Works Flexible Fund,Transport,235057,Public Transport,21-Nov-16,5503803349,BISHOP AUCKLAND STN TO,4112,Staff travelling,9,1.5,7.5
Regeneration and Local Services,Economic Development and Housing,30737,Durham Works Flexible Fund,Supplies and Services,304259,Equipment and Materials,21-Nov-16,5503803353,SPORTSDIRECT 368,5941,Equipment-purchase and rental,223.94,37.32,186.62
Regeneration and Local Services,Direct Services,21235,Catering - Wharton Park,Supplies and Services,324117,Provisions,21-Nov-16,5503803371,JR HOLLAND FOODSERVICE,5422,Catering costs - provisions,23.44,0,23.44
Regeneration and Local Services,Culture & Sport,10605,Woodhouse Close Leisure Complex,Supplies and Services,324117,Provisions,21-Nov-16,5503803389,JR HOLLAND FOODSERVICE,5422,Catering costs - provisions,49.18,0,49.18
Regeneration and Local Services,Culture & Sport,10605,Woodhouse Close Leisure Complex,Supplies and Services,324117,Provisions,21-Nov-16,5503803399,BRAKE BROS LTD,5811,Catering costs - provisions,131.05,0,131.05
Resources,Financial Services,65166,Finance - Post Entry Training,Employees,40149,Recruitment Instruction and Training,21-Nov-16,5503803405,WWW.CIPS.ORG,8699,Training-all costs,99.96,0,99.96
Resources,Financial Services,65166,Finance - Post Entry Training,Employees,40149,Recruitment Instruction and Training,21-Nov-16,5503803411,WWW.CIPS.ORG,8699,Training-all costs,99.96,0,99.96
Resources,Financial Services,65166,Finance - Post Entry Training,Employees,40149,Recruitment Instruction and Training,21-Nov-16,5503803417,WWW.CIPS.ORG,8699,Training-all costs,99.96,0,99.96
Children and Young Peoples Services,Childrens Services,88003,Peterlee 0 - 5,Supplies and Services,328041,Clothing Uniforms and Laundry,21-Nov-16,5503803537,ARGOS RETAIL GROUP,5310,Clothing uniforms and laundry,43.93,7.32,36.61
